Workbook

Sheet Instructions
G1: Hot mix asphalt air emissions calculator
O3: p-sbap5-20 • 4/8/19
B5: Instructions
B6: 1) Begin with the first blue tab.
B7: 2) Use the blue tabs across the bottom to enter information for your business.
B8: 3) The green tabs total all potential and actual emissions from the information entered on the blue tabs.
B9: 4) The yellow 'Permits & requirements' tab will help you decide which permit to apply for.
B10: 5) You can use the blue tabs to calculate your actual emissions for the air emission inventory, a report due annually if you have an air permit.
B13: Color key
B14: Blue | C14: Enter information for your facility in the blue boxes.
B15: White | C15: Do not change the values/formulas in white boxes. White boxes contain intermediate calculations for determining emissions.
B16: Green | C16: Your emission totals are in green boxes. These are automatically calculated based on information entered in blue boxes.
B17: Yellow | C17: Permit and insignificant activity thresholds.
B18: Orange | C18: Orange boxes are filled with standard values. You may change them if you have test results that provide data specific to your site.
B19: Blue Text | C19: Key information
B22: Assistance
B23: This calculator was created by the Minnesota Pollution Control Agency's (MPCA) Business Assistance program.
B24: We provide free, confidential, environmental assistance to small businesses. For more information:
B25: Call: | C25: 651/282-6143 | E25: Email: | F25: smallbizhelp.pca@state.mn.us
C26: 800/657-3938
B28: Online at the MPCA website at: | E28: https://www.pca.state.mn.us/smallbizhelp
B30: More Information: | D30: https://www.pca.state.mn.us/regulations/hot-mix-asphalt

Sheet Federal standards
B1: =Instructions!$O$3 -> p-sbap5-20 • 4/8/19
B2: U.S. Environmental Protection Agency (EPA) standards
B4: New source performance standards (NSPS) require new emission sources to be less polluting than older sources. | I4: National emission standards for hazardous air pollutants (NESHAP) prevent or reduce emissions that have health impacts.
B7: ▪ | C7: Each NSPS or NESHAP applies to specific equipment, processes, or industries.
B8: ▪ | C8: Multiple federal standards may apply to your business. It is possible that if you make a change at your business, a federal standard that did not previously apply now will, or the one you are already following may have additional requirements.
B10: ▪ | C10: Federal standards can determine whether you need a permit and what requirements you must follow. You may have to follow federal standard requirements in addition to state permit requirements. Below are some of the common federal standards that affect hot mix asphalt facilities.
B15: New source performance standards (NSPS)
B16: Does the NSPS for hot mix asphalt facilities apply to you? | N16: Choose Y/N
B17: This standard applies if: | N17: =IF($N$16="Yes","Because this NSPS applies to your operation, you need an air permit.",IF($N$16="No","Continue to the next question.",IF($N$16="Choose Y/N"," "," "))) -> 
B18: 1) | C18: you manufacture hot mix asphalt by heating and drying aggregate and mixing with asphalt cements, and
B19: 2) | C19: your plant or equipment was constructed, reconstructed, or modified* after June 11, 1973.
B21: Resource: | D21: EPA Rule information | N21: =IF(N16="Yes","Continue to the next question",IF(N16="No","",IF(N16="Choose Y/N"," "))) -> 
B22: Regulation: | D22: 40 CFR pt. 60, subp. I
D24: If your facility also has on-site aggregate crushing or grinding:
D25: 1) | E25: The NSPS for nonmetallic mineral processors may apply
E26: Resource: | G26: EPA Rule information
E27: Regulation: | G27: 40 CFR pt. 60, subp. OOO
D28: 2) | E28: A separate calculator for aggregates is available and includes NSPS OOO.
E29: https://www.pca.state.mn.us/regulations/aggregate-sand-and-gravel
B32: Does an NSPS for internal combustion engines apply to you? | N32: Choose Y/N
B33: The two NSPSs that apply to engines are: | N33: =IF(N32="Yes","You must follow NSPS requirements. Assess emissions to see if you need a permit.",IF(N32="No","Continue to the next question.",IF(N32="Choose Y/N"," "," "))) -> 
B34: 1) | C34: Standards of Performance for Compression Ignition Engines | I34: Full Text: | J34: 40 CFR 60, subp. IIII
B35: 2) | C35: Standards of Performance for Spark Ignition Engines | J35: 40 CFR 60, subp. JJJJ
C37: To help understand if the rule applies, use the Regulation Navigation Tool provided by EPA for NSPS IIII and JJJJ.
C38: https://www3.epa.gov/ttn/atw/ice/quiz.html | N38: =IF(N32="Yes","Continue to the next question.",IF(N32="No","",IF(N32="Choose Y/N"," "))) -> 
B39: There are also engine standards for hazardous air pollutants -- see NESHAP info below.
B42: Does any other NSPS apply to you? | N42: Choose Y/N
B43: Additional performance standards: Even if the standards listed above do not apply to you, there are other NSPS that might, depending on what other equipment or activities you have at the facility. | N43: =IF(N42="Yes","Because an NSPS applies to your operation, you need an air permit.",IF(N42="No","Continue to the next question.",IF(N42="Choose Y/N"," "," "))) -> 
C46: A list of performance standards is available at: | G46: https://www.pca.state.mn.us/sites/default/files/aq-f1-gi09d.doc
C47: A permit is not required solely because it is subject to one or more NSPS as listed in: | K47: Minn. R. 7007.0300 | N47: =IF(N42="Yes","Continue to the next question.",IF(N42="No","",IF(N42="Choose Y/N"," "))) -> 
B50: National emission standards for hazardous air pollutants
B51: Does a federal NESHAP apply? | N51: Choose Y/N
B52: A NESHAP that may apply to your crusher engine or generator is for: | N52: =IF(N51="Yes","Follow NESHAP requirements. Assess emissions to see if you need a permit.",IF(N51="No","Continue to the next blue tab.",IF(N51="Choose Y/N"," "," "))) -> 
C53: Stationary Reciprocating Internal Combustion Engines | I53: Full Text: | J53: 40 CFR 63, subp. ZZZZ
C54: To help understand if the rule applies, use the Regulation Navigation Tool provided by EPA
C55: https://www3.epa.gov/airtoxics/rice/output/quiz.html
C57: A list of other NESHAPs is found at the end of the following document: | N57: =IF(N51="Yes","Continue to the next blue tab.",IF(N51="No","",IF(N51="Choose Y/N"," "))) -> 
C58: https://www.pca.state.mn.us/sites/default/files/aq-f3-rp07.pdf
B61: *Definition of "construction, modification, or reconstruction"
B62: If your business does an activity which is considered construction, modification, or reconstruction, as defined below or within the standard, an NSPS or NESHAP may apply to your business or create the need for a permit amendment.
B64: ▪ | C64: Construction includes fabricating, erecting, or installing an aggregate plant, engine, or storage tank.
B65: ▪ | C65: Modification is a physical or operational change at an existing facility that increases the amount of an air pollutant or results in the emission of a new air pollutant.
B67: ▪ | C67: Reconstruction is the replacement of components at an existing facility that exceeds 50% of the cost required to build a new facility.
B69: The full definitions of construction and modification are available at: | I69: 40 CFR § 60.2 | K69: and reconstruction at: | N69: 40 CFR § 60.15

Sheet State rules
B1: =Instructions!$O$3 -> p-sbap5-20 • 4/8/19
B2: State rules for hot mix asphalt plants
B3: All hot mix asphalt facilities must comply with these state rules.
B5: Operating requirements
B6: Compliance must be demonstrated through inspections, maintenance, monitoring, testing, recordkeeping, and reporting requirements. These requirements are listed on the hot mix asphalt 'Complying with air requirements' webpage.
B8: https://www.pca.state.mn.us/regulations/hot-mix-asphalt-plants-complying-air-requirements
B11: Material use
B12: Hot mix asphalt plants can only use:
C13: Materials | D13: ▪ clay, silt, sand, gravel, and crushed stone produced from naturally occurring geologic formations, without additives; ▪ recycled asphalt pavement ▪ portland cement concrete | J13: ▪ recycled sediments from asphalt plant scrubber operations ▪ fines from asphalt plant fabric filter operations ▪ asphalt cement ▪ hydrated lime
C17: Fuels | D17: ▪ natural gas, methane, butane, and propane ▪ gasoline, kerosene, diesel fuel, jet fuel, and fuel oils (No. 1, No. 2, No. 3, No. 4, No. 5, No. 6) ▪ on-specification used oil, defined in Minn. R. 7045.0020, subp. 60a, provided that total halogens not exceed 1,000 parts per million ▪ virgin oil that is discarded before use and that otherwise meets the requirements of this item for on-specification used oil
C21: Additives | D21: ▪ silicone, organic soaps, and other substances of a similar nature added to the asphalt cement
C22: You can request approval for materials that are not included above. | J22: See requirements in Minn. R. 7011.0913
B25: Control equipment
B26: 1) | C26: All control equipment must be operated according to the manufactures' specifications
B27: 2) | C27: If you choose to use a control efficiency to limit your actual emissions of particulate matter, the control equipment must be at least as efficient as the following:
D29: Control | F29: PM | H29: PM-10 | K29: Note: If you use a different type of control equipment, see required efficiencies in
D30: Fabric filter | F30: 0.99 | H30: 0.93
D31: Venturi scrubber | F31: 0.94 | H31: 0.84 | K31: Minn. R. 7011.0070
B34: Performance tests
B35: 1) | C35: A performance test for particulate matter and opacity are required for all hot mix asphalt plants. | L35: Minn. R. 7011.0922

Sheet Hot mix asphalt
J1: =Instructions!$O$3 -> p-sbap5-20 • 4/8/19
B2: Air emissions from hot mix asphalt plants
B3: Facility information
D5: Facility name: | G5: If you are using a different fuel in the dryer: | J5: Choose which one
C6: Plant type | E6: Choose one | G6: =IF(J5="Choose which one"," ","Then, choose this as your fuel type ------->") ->  | J6: =IF(J5="Choose which one"," ",IF(OR(J5='Data Validation'!B20,OR(J5='Data Validation'!B21,J5='Data Validation'!B22)),'Data Validation'!C20,IF(OR(J5='Data Validation'!B23,OR(J5='Data Validation'!B27,OR(J5='Data Validation'!B28,J5='Data Validation'!B29))),'Data Validation'!C23,IF(OR(J5='Data Validation'!B24,OR(J5='Data Validation'!B25,'Data Validation'!B26)),'Data Validation'!C24)))) -> 
B7: What fuel is used in your dryer? | E7: Choose one | G7: =IF(J5="Choose which one"," ","<---------------------------------------- Choose from drop-down list") -> 
B8: What is your maximum production rate? | F8: tons of mix per hour
B9: How many hours do you actually operate? | F9: hours/year
B11: Performance testing
B13: Do you have valid performance test results? | E13: Choose one | F13: *Must be MPCA-approved performance test
B15: Enter the particulate matter performance test factors (if available):
B16: PM
B17: PM10 | F17: Use the same factor for PM10 as PM if you do not have an MPCA-approved PM10 factor.
B19: Which type of emissions control do you have for the dryer, hot screen, and mixers? | G19: Choose one | I19: Minn. R. 7011.0060 - 7011.0080
B21: Control efficiency, applied to actual emissions: PM = | G21: ='Data Validation'!C34 -> 0 | H21: PM10 = | I21: ='Data Validation'!C37 -> 0
B23: Potential and actual emissions - Hot mix asphalt
C24: a | D24: b | E24: c | F24: d | G24: e | I24: f
B25: Pollutant1 | C25: GWP2 | D25: Production rate | E25: Actual hours operated | F25: Potential annual hours | G25: Potential Emission Factor3,5 | H25: Potential Emissions | I25: Actual Emission Factor3, 5 | J25: Actual Emissions
D26: (ton/hr) | E26: (hr/yr) | F26: (hr/yr) | G26: (lbs/ton) | H26: (ton/yr) | I26: (lbs/ton) | J26: (tons/yr)
D27: =E8 -> 0 | E27: =E9 -> 0 | F27: 8760 | G27: by pollutant | H27: (b * d * e) / 2000 | I27: by pollutant | J27: (b * c * f) / 2000
B28: Criteria Air Pollutants
B29: PM | G29: =IF($E$13="Yes",$E$16,IF(OR($E$13="No",$E$13="Choose one"),(IF($E$6=Ba,'Hot mix emission factors'!B12,IF($E$6=Dr,'Hot mix emission factors'!E12,0))))) -> 0 | H29: =$D$27*$F$27*$G29/2000 -> 0 | I29: =IF(OR($G$19="Choose one",$G$19=No),G29,(G29*(1-G21))) -> 0 | J29: =($D$27*$E$27*$I29)/2000 -> 0
B30: PM10 | G30: =IF($E$13="Yes",$E$17,IF(OR($E$13="No",$E$13="Choose one"),(IF($E$6=Ba,'Hot mix emission factors'!B13,IF($E$6=Dr,'Hot mix emission factors'!E13,0))))) -> 0 | H30: =$D$27*$F$27*$G30/2000 -> 0 | I30: =IF(OR($G$19="Choose one",$G$19=No),G30,(G30*(1-I21))) -> 0 | J30: =($D$27*$E$27*$I30)/2000 -> 0
B31: PM2.5 | G31: =IF($E$6=Ba,'Hot mix emission factors'!B14,IF($E$6=Dr,'Hot mix emission factors'!E14,0)) -> 0 | H31: 0 | I31: =G31 -> 0 | J31: 0
B32: SOx5 | G32: =IF(AND($E$6=Ba,$E$7=NG),'Hot mix emission factors'!B15,IF(AND($E$6=Ba,$E$7=D),'Hot mix emission factors'!C15,IF(AND($E$6=Ba,$E$7=O),'Hot mix emission factors'!D15,IF(AND($E$6=Dr,$E$7=NG),'Hot mix emission factors'!E15,IF(AND($E$6=Dr,$E$7=D),'Hot mix emission factors'!F15,IF(AND($E$6=Dr,$E$7=O),'Hot mix emission factors'!G15,IF(OR($E$6="Choose one",$E$7="Choose one"),0))))))) -> 0 | H32: 0 | I32: =G32 -> 0 | J32: 0
B33: NOx | G33: =IF(AND($E$6=Ba,$E$7=NG),'Hot mix emission factors'!B16,IF(AND($E$6=Ba,$E$7=D),'Hot mix emission factors'!C16,IF(AND($E$6=Ba,$E$7=O),'Hot mix emission factors'!D16,IF(AND($E$6=Dr,$E$7=NG),'Hot mix emission factors'!E16,IF(AND($E$6=Dr,$E$7=D),'Hot mix emission factors'!F16,IF(AND($E$6=Dr,$E$7=O),'Hot mix emission factors'!G16,IF(OR($E$6="Choose one",$E$7="Choose one"),0))))))) -> 0 | H33: 0 | I33: 0 | J33: 0
B34: VOC | G34: =IF(AND($E$6=Ba,$E$7=NG),'Hot mix emission factors'!B17,IF(AND($E$6=Ba,$E$7=D),'Hot mix emission factors'!C17,IF(AND($E$6=Ba,$E$7=O),'Hot mix emission factors'!D17,IF(AND($E$6=Dr,$E$7=NG),'Hot mix emission factors'!E17,IF(AND($E$6=Dr,$E$7=D),'Hot mix emission factors'!F17,IF(AND($E$6=Dr,$E$7=O),'Hot mix emission factors'!G17,IF(OR($E$6="Choose one",$E$7="Choose one"),0))))))) -> 0 | H34: 0 | I34: 0 | J34: 0
B35: CO | G35: =IF(AND($E$6=Ba,$E$7=NG),'Hot mix emission factors'!B18,IF(AND($E$6=Ba,$E$7=D),'Hot mix emission factors'!C18,IF(AND($E$6=Ba,$E$7=O),'Hot mix emission factors'!D18,IF(AND($E$6=Dr,$E$7=NG),'Hot mix emission factors'!E18,IF(AND($E$6=Dr,$E$7=D),'Hot mix emission factors'!F18,IF(AND($E$6=Dr,$E$7=O),'Hot mix emission factors'!G18,IF(OR($E$6="Choose one",$E$7="Choose one"),0))))))) -> 0 | H35: 0 | I35: 0 | J35: 0
B36: Lead | G36: =IF(AND($E$6=Ba,$E$7=NG),'Hot mix emission factors'!B19,IF(AND($E$6=Ba,$E$7=D),'Hot mix emission factors'!C19,IF(AND($E$6=Ba,$E$7=O),'Hot mix emission factors'!D19,IF(AND($E$6=Dr,$E$7=NG),'Hot mix emission factors'!E19,IF(AND($E$6=Dr,$E$7=D),'Hot mix emission factors'!F19,IF(AND($E$6=Dr,$E$7=O),'Hot mix emission factors'!G19,IF(OR($E$6="Choose one",$E$7="Choose one"),0))))))) -> 0 | H36: 0 | I36: =IF(OR($G$19="Choose one",$G$19=No),G36,(G36*(1-I21))) -> 0 | J36: 0
B37: Greenhouse Gas Emissions
B38: CO2 | C38: 1 | G38: =IF($E$6=Ba,'Hot mix emission factors'!B21,IF($E$6=Dr,'Hot mix emission factors'!E21,0)) -> 0 | H38: =$D$27*$F$27*$G38/2000 -> 0 | I38: =G38 -> 0 | J38: 0
B39: CH4 | C39: 298 | G39: =IF($E$6=Ba,'Hot mix emission factors'!B22,IF($E$6=Dr,'Hot mix emission factors'!E22,0)) -> 0 | H39: =$D$27*$F$27*$G39/2000 -> 0 | I39: =G39 -> 0 | J39: 0
F40: GHG total (CO2e) 4 | H40: =(C38*H38)+(C39*H39) -> 0 | J40: =(C38*J38)+(C39*J39) -> 0
B41: ='Hot mix emission factors'!A23 -> Non-PAH HAPS
B42: ='Hot mix emission factors'!A24 -> Acetaldehyde | G42: =IF(AND($E$6=Ba,$E$7=NG),'Hot mix emission factors'!B24,IF(AND($E$6=Ba,$E$7=D),'Hot mix emission factors'!C24,IF(AND($E$6=Ba,$E$7=O),'Hot mix emission factors'!D24,IF(AND($E$6=Dr,$E$7=NG),'Hot mix emission factors'!E24,IF(AND($E$6=Dr,$E$7=D),'Hot mix emission factors'!F24,IF(AND($E$6=Dr,$E$7=O),'Hot mix emission factors'!G24,IF(OR($E$6="Choose one",$E$7="Choose one"),0))))))) -> 0 | H42: =$D$27*$F$27*$G42/2000 -> 0 | I42: =G42 -> 0 | J42: =($D$27*$E$27*$I42)/2000 -> 0
B43: ='Hot mix emission factors'!A25 -> Benzene | G43: =IF(AND($E$6=Ba,$E$7=NG),'Hot mix emission factors'!B25,IF(AND($E$6=Ba,$E$7=D),'Hot mix emission factors'!C25,IF(AND($E$6=Ba,$E$7=O),'Hot mix emission factors'!D25,IF(AND($E$6=Dr,$E$7=NG),'Hot mix emission factors'!E25,IF(AND($E$6=Dr,$E$7=D),'Hot mix emission factors'!F25,IF(AND($E$6=Dr,$E$7=O),'Hot mix emission factors'!G25,IF(OR($E$6="Choose one",$E$7="Choose one"),0))))))) -> 0 | H43: 0 | I43: =G43 -> 0 | J43: 0
B44: ='Hot mix emission factors'!A26 -> Ethylbenzene | G44: =IF(AND($E$6=Ba,$E$7=NG),'Hot mix emission factors'!B26,IF(AND($E$6=Ba,$E$7=D),'Hot mix emission factors'!C26,IF(AND($E$6=Ba,$E$7=O),'Hot mix emission factors'!D26,IF(AND($E$6=Dr,$E$7=NG),'Hot mix emission factors'!E26,IF(AND($E$6=Dr,$E$7=D),'Hot mix emission factors'!F26,IF(AND($E$6=Dr,$E$7=O),'Hot mix emission factors'!G26,IF(OR($E$6="Choose one",$E$7="Choose one"),0))))))) -> 0 | H44: 0 | I44: 0 | J44: 0
B45: ='Hot mix emission factors'!A27 -> Formaldehyde | G45: =IF(AND($E$6=Ba,$E$7=NG),'Hot mix emission factors'!B27,IF(AND($E$6=Ba,$E$7=D),'Hot mix emission factors'!C27,IF(AND($E$6=Ba,$E$7=O),'Hot mix emission factors'!D27,IF(AND($E$6=Dr,$E$7=NG),'Hot mix emission factors'!E27,IF(AND($E$6=Dr,$E$7=D),'Hot mix emission factors'!F27,IF(AND($E$6=Dr,$E$7=O),'Hot mix emission factors'!G27,IF(OR($E$6="Choose one",$E$7="Choose one"),0))))))) -> 0 | H45: 0 | I45: 0 | J45: 0
B46: ='Hot mix emission factors'!A28 -> Quinone | G46: =IF(AND($E$6=Ba,$E$7=NG),'Hot mix emission factors'!B28,IF(AND($E$6=Ba,$E$7=D),'Hot mix emission factors'!C28,IF(AND($E$6=Ba,$E$7=O),'Hot mix emission factors'!D28,IF(AND($E$6=Dr,$E$7=NG),'Hot mix emission factors'!E28,IF(AND($E$6=Dr,$E$7=D),'Hot mix emission factors'!F28,IF(AND($E$6=Dr,$E$7=O),'Hot mix emission factors'!G28,IF(OR($E$6="Choose one",$E$7="Choose one"),0))))))) -> 0 | H46: 0 | I46: 0 | J46: 0
B47: ='Hot mix emission factors'!A29 -> Toluene | G47: =IF(AND($E$6=Ba,$E$7=NG),'Hot mix emission factors'!B29,IF(AND($E$6=Ba,$E$7=D),'Hot mix emission factors'!C29,IF(AND($E$6=Ba,$E$7=O),'Hot mix emission factors'!D29,IF(AND($E$6=Dr,$E$7=NG),'Hot mix emission factors'!E29,IF(AND($E$6=Dr,$E$7=D),'Hot mix emission factors'!F29,IF(AND($E$6=Dr,$E$7=O),'Hot mix emission factors'!G29,IF(OR($E$6="Choose one",$E$7="Choose one"),0))))))) -> 0 | H47: 0 | I47: 0 | J47: 0
B48: ='Hot mix emission factors'!A30 -> Xylene | G48: =IF(AND($E$6=Ba,$E$7=NG),'Hot mix emission factors'!B30,IF(AND($E$6=Ba,$E$7=D),'Hot mix emission factors'!C30,IF(AND($E$6=Ba,$E$7=O),'Hot mix emission factors'!D30,IF(AND($E$6=Dr,$E$7=NG),'Hot mix emission factors'!E30,IF(AND($E$6=Dr,$E$7=D),'Hot mix emission factors'!F30,IF(AND($E$6=Dr,$E$7=O),'Hot mix emission factors'!G30,IF(OR($E$6="Choose one",$E$7="Choose one"),0))))))) -> 0 | H48: 0 | I48: 0 | J48: 0
B49: ='Hot mix emission factors'!A31 -> Hexane | G49: =IF(AND($E$6=Ba,$E$7=NG),'Hot mix emission factors'!B31,IF(AND($E$6=Ba,$E$7=D),'Hot mix emission factors'!C31,IF(AND($E$6=Ba,$E$7=O),'Hot mix emission factors'!D31,IF(AND($E$6=Dr,$E$7=NG),'Hot mix emission factors'!E31,IF(AND($E$6=Dr,$E$7=D),'Hot mix emission factors'!F31,IF(AND($E$6=Dr,$E$7=O),'Hot mix emission factors'!G31,IF(OR($E$6="Choose one",$E$7="Choose one"),0))))))) -> 0 | H49: 0 | I49: 0 | J49: 0
B50: ='Hot mix emission factors'!A32 -> Isooctane | G50: =IF(AND($E$6=Ba,$E$7=NG),'Hot mix emission factors'!B32,IF(AND($E$6=Ba,$E$7=D),'Hot mix emission factors'!C32,IF(AND($E$6=Ba,$E$7=O),'Hot mix emission factors'!D32,IF(AND($E$6=Dr,$E$7=NG),'Hot mix emission factors'!E32,IF(AND($E$6=Dr,$E$7=D),'Hot mix emission factors'!F32,IF(AND($E$6=Dr,$E$7=O),'Hot mix emission factors'!G32,IF(OR($E$6="Choose one",$E$7="Choose one"),0))))))) -> 0 | H50: 0 | I50: 0 | J50: 0
B51: ='Hot mix emission factors'!A33 -> Methyl chloroform | G51: =IF(AND($E$6=Ba,$E$7=NG),'Hot mix emission factors'!B33,IF(AND($E$6=Ba,$E$7=D),'Hot mix emission factors'!C33,IF(AND($E$6=Ba,$E$7=O),'Hot mix emission factors'!D33,IF(AND($E$6=Dr,$E$7=NG),'Hot mix emission factors'!E33,IF(AND($E$6=Dr,$E$7=D),'Hot mix emission factors'!F33,IF(AND($E$6=Dr,$E$7=O),'Hot mix emission factors'!G33,IF(OR($E$6="Choose one",$E$7="Choose one"),0))))))) -> 0 | H51: 0 | I51: 0 | J51: 0
B52: ='Hot mix emission factors'!A34 -> Acrolein | G52: =IF(AND($E$6=Ba,$E$7=NG),'Hot mix emission factors'!B34,IF(AND($E$6=Ba,$E$7=D),'Hot mix emission factors'!C34,IF(AND($E$6=Ba,$E$7=O),'Hot mix emission factors'!D34,IF(AND($E$6=Dr,$E$7=NG),'Hot mix emission factors'!E34,IF(AND($E$6=Dr,$E$7=D),'Hot mix emission factors'!F34,IF(AND($E$6=Dr,$E$7=O),'Hot mix emission factors'!G34,IF(OR($E$6="Choose one",$E$7="Choose one"),0))))))) -> 0 | H52: 0 | I52: 0 | J52: 0
B53: ='Hot mix emission factors'!A35 -> Propionaldehyde | G53: =IF(AND($E$6=Ba,$E$7=NG),'Hot mix emission factors'!B35,IF(AND($E$6=Ba,$E$7=D),'Hot mix emission factors'!C35,IF(AND($E$6=Ba,$E$7=O),'Hot mix emission factors'!D35,IF(AND($E$6=Dr,$E$7=NG),'Hot mix emission factors'!E35,IF(AND($E$6=Dr,$E$7=D),'Hot mix emission factors'!F35,IF(AND($E$6=Dr,$E$7=O),'Hot mix emission factors'!G35,IF(OR($E$6="Choose one",$E$7="Choose one"),0))))))) -> 0 | H53: 0 | I53: 0 | J53: 0
B54: ='Hot mix emission factors'!A36 -> PAH HAPs
B55: ='Hot mix emission factors'!A37 -> 2-Methylnaphthalene | G55: =IF(AND($E$6=Ba,$E$7=NG),'Hot mix emission factors'!B37,IF(AND($E$6=Ba,$E$7=D),'Hot mix emission factors'!C37,IF(AND($E$6=Ba,$E$7=O),'Hot mix emission factors'!D37,IF(AND($E$6=Dr,$E$7=NG),'Hot mix emission factors'!E37,IF(AND($E$6=Dr,$E$7=D),'Hot mix emission factors'!F37,IF(AND($E$6=Dr,$E$7=O),'Hot mix emission factors'!G37,IF(OR($E$6="Choose one",$E$7="Choose one"),0))))))) -> 0 | H55: 0 | I55: 0 | J55: 0
B56: ='Hot mix emission factors'!A38 -> Acenaphthene | G56: =IF(AND($E$6=Ba,$E$7=NG),'Hot mix emission factors'!B38,IF(AND($E$6=Ba,$E$7=D),'Hot mix emission factors'!C38,IF(AND($E$6=Ba,$E$7=O),'Hot mix emission factors'!D38,IF(AND($E$6=Dr,$E$7=NG),'Hot mix emission factors'!E38,IF(AND($E$6=Dr,$E$7=D),'Hot mix emission factors'!F38,IF(AND($E$6=Dr,$E$7=O),'Hot mix emission factors'!G38,IF(OR($E$6="Choose one",$E$7="Choose one"),0))))))) -> 0 | H56: 0 | I56: 0 | J56: 0
B57: ='Hot mix emission factors'!A39 -> Acenaphthylene | G57: =IF(AND($E$6=Ba,$E$7=NG),'Hot mix emission factors'!B39,IF(AND($E$6=Ba,$E$7=D),'Hot mix emission factors'!C39,IF(AND($E$6=Ba,$E$7=O),'Hot mix emission factors'!D39,IF(AND($E$6=Dr,$E$7=NG),'Hot mix emission factors'!E39,IF(AND($E$6=Dr,$E$7=D),'Hot mix emission factors'!F39,IF(AND($E$6=Dr,$E$7=O),'Hot mix emission factors'!G39,IF(OR($E$6="Choose one",$E$7="Choose one"),0))))))) -> 0 | H57: 0 | I57: 0 | J57: 0
B58: ='Hot mix emission factors'!A40 -> Antharacene | G58: =IF(AND($E$6=Ba,$E$7=NG),'Hot mix emission factors'!B40,IF(AND($E$6=Ba,$E$7=D),'Hot mix emission factors'!C40,IF(AND($E$6=Ba,$E$7=O),'Hot mix emission factors'!D40,IF(AND($E$6=Dr,$E$7=NG),'Hot mix emission factors'!E40,IF(AND($E$6=Dr,$E$7=D),'Hot mix emission factors'!F40,IF(AND($E$6=Dr,$E$7=O),'Hot mix emission factors'!G40,IF(OR($E$6="Choose one",$E$7="Choose one"),0))))))) -> 0 | H58: 0 | I58: 0 | J58: 0
B59: ='Hot mix emission factors'!A41 -> Benzo(a)anthracene | G59: =IF(AND($E$6=Ba,$E$7=NG),'Hot mix emission factors'!B41,IF(AND($E$6=Ba,$E$7=D),'Hot mix emission factors'!C41,IF(AND($E$6=Ba,$E$7=O),'Hot mix emission factors'!D41,IF(AND($E$6=Dr,$E$7=NG),'Hot mix emission factors'!E41,IF(AND($E$6=Dr,$E$7=D),'Hot mix emission factors'!F41,IF(AND($E$6=Dr,$E$7=O),'Hot mix emission factors'!G41,IF(OR($E$6="Choose one",$E$7="Choose one"),0))))))) -> 0 | H59: 0 | I59: 0 | J59: 0
B60: ='Hot mix emission factors'!A42 -> Benzo(a)pyrene | G60: =IF(AND($E$6=Ba,$E$7=NG),'Hot mix emission factors'!B42,IF(AND($E$6=Ba,$E$7=D),'Hot mix emission factors'!C42,IF(AND($E$6=Ba,$E$7=O),'Hot mix emission factors'!D42,IF(AND($E$6=Dr,$E$7=NG),'Hot mix emission factors'!E42,IF(AND($E$6=Dr,$E$7=D),'Hot mix emission factors'!F42,IF(AND($E$6=Dr,$E$7=O),'Hot mix emission factors'!G42,IF(OR($E$6="Choose one",$E$7="Choose one"),0))))))) -> 0 | H60: 0 | I60: 0 | J60: 0
B61: ='Hot mix emission factors'!A43 -> Benzo(b)fluoranthene | G61: =IF(AND($E$6=Ba,$E$7=NG),'Hot mix emission factors'!B43,IF(AND($E$6=Ba,$E$7=D),'Hot mix emission factors'!C43,IF(AND($E$6=Ba,$E$7=O),'Hot mix emission factors'!D43,IF(AND($E$6=Dr,$E$7=NG),'Hot mix emission factors'!E43,IF(AND($E$6=Dr,$E$7=D),'Hot mix emission factors'!F43,IF(AND($E$6=Dr,$E$7=O),'Hot mix emission factors'!G43,IF(OR($E$6="Choose one",$E$7="Choose one"),0))))))) -> 0 | H61: 0 | I61: 0 | J61: 0
B62: ='Hot mix emission factors'!A44 -> Benzo(g,h,i)perylene | G62: =IF(AND($E$6=Ba,$E$7=NG),'Hot mix emission factors'!B44,IF(AND($E$6=Ba,$E$7=D),'Hot mix emission factors'!C44,IF(AND($E$6=Ba,$E$7=O),'Hot mix emission factors'!D44,IF(AND($E$6=Dr,$E$7=NG),'Hot mix emission factors'!E44,IF(AND($E$6=Dr,$E$7=D),'Hot mix emission factors'!F44,IF(AND($E$6=Dr,$E$7=O),'Hot mix emission factors'!G44,IF(OR($E$6="Choose one",$E$7="Choose one"),0))))))) -> 0 | H62: 0 | I62: 0 | J62: 0
B63: ='Hot mix emission factors'!A45 -> Benzo(k)fluoranthene | G63: =IF(AND($E$6=Ba,$E$7=NG),'Hot mix emission factors'!B45,IF(AND($E$6=Ba,$E$7=D),'Hot mix emission factors'!C45,IF(AND($E$6=Ba,$E$7=O),'Hot mix emission factors'!D45,IF(AND($E$6=Dr,$E$7=NG),'Hot mix emission factors'!E45,IF(AND($E$6=Dr,$E$7=D),'Hot mix emission factors'!F45,IF(AND($E$6=Dr,$E$7=O),'Hot mix emission factors'!G45,IF(OR($E$6="Choose one",$E$7="Choose one"),0))))))) -> 0 | H63: 0 | I63: 0 | J63: 0
B64: ='Hot mix emission factors'!A46 -> Chrysene | G64: =IF(AND($E$6=Ba,$E$7=NG),'Hot mix emission factors'!B46,IF(AND($E$6=Ba,$E$7=D),'Hot mix emission factors'!C46,IF(AND($E$6=Ba,$E$7=O),'Hot mix emission factors'!D46,IF(AND($E$6=Dr,$E$7=NG),'Hot mix emission factors'!E46,IF(AND($E$6=Dr,$E$7=D),'Hot mix emission factors'!F46,IF(AND($E$6=Dr,$E$7=O),'Hot mix emission factors'!G46,IF(OR($E$6="Choose one",$E$7="Choose one"),0))))))) -> 0 | H64: 0 | I64: 0 | J64: 0
B65: ='Hot mix emission factors'!A47 -> Dibenz(a,h)anthracene | G65: =IF(AND($E$6=Ba,$E$7=NG),'Hot mix emission factors'!B47,IF(AND($E$6=Ba,$E$7=D),'Hot mix emission factors'!C47,IF(AND($E$6=Ba,$E$7=O),'Hot mix emission factors'!D47,IF(AND($E$6=Dr,$E$7=NG),'Hot mix emission factors'!E47,IF(AND($E$6=Dr,$E$7=D),'Hot mix emission factors'!F47,IF(AND($E$6=Dr,$E$7=O),'Hot mix emission factors'!G47,IF(OR($E$6="Choose one",$E$7="Choose one"),0))))))) -> 0 | H65: 0 | I65: 0 | J65: 0
B66: ='Hot mix emission factors'!A48 -> Fluoranthene | G66: =IF(AND($E$6=Ba,$E$7=NG),'Hot mix emission factors'!B48,IF(AND($E$6=Ba,$E$7=D),'Hot mix emission factors'!C48,IF(AND($E$6=Ba,$E$7=O),'Hot mix emission factors'!D48,IF(AND($E$6=Dr,$E$7=NG),'Hot mix emission factors'!E48,IF(AND($E$6=Dr,$E$7=D),'Hot mix emission factors'!F48,IF(AND($E$6=Dr,$E$7=O),'Hot mix emission factors'!G48,IF(OR($E$6="Choose one",$E$7="Choose one"),0))))))) -> 0 | H66: 0 | I66: 0 | J66: 0
B67: ='Hot mix emission factors'!A49 -> Fluorene | G67: =IF(AND($E$6=Ba,$E$7=NG),'Hot mix emission factors'!B49,IF(AND($E$6=Ba,$E$7=D),'Hot mix emission factors'!C49,IF(AND($E$6=Ba,$E$7=O),'Hot mix emission factors'!D49,IF(AND($E$6=Dr,$E$7=NG),'Hot mix emission factors'!E49,IF(AND($E$6=Dr,$E$7=D),'Hot mix emission factors'!F49,IF(AND($E$6=Dr,$E$7=O),'Hot mix emission factors'!G49,IF(OR($E$6="Choose one",$E$7="Choose one"),0))))))) -> 0 | H67: 0 | I67: 0 | J67: 0
B68: ='Hot mix emission factors'!A50 -> Indeno(1,2,3-cd)pyrene | G68: =IF(AND($E$6=Ba,$E$7=NG),'Hot mix emission factors'!B50,IF(AND($E$6=Ba,$E$7=D),'Hot mix emission factors'!C50,IF(AND($E$6=Ba,$E$7=O),'Hot mix emission factors'!D50,IF(AND($E$6=Dr,$E$7=NG),'Hot mix emission factors'!E50,IF(AND($E$6=Dr,$E$7=D),'Hot mix emission factors'!F50,IF(AND($E$6=Dr,$E$7=O),'Hot mix emission factors'!G50,IF(OR($E$6="Choose one",$E$7="Choose one"),0))))))) -> 0 | H68: 0 | I68: 0 | J68: 0
B69: ='Hot mix emission factors'!A51 -> Naphthalene | G69: =IF(AND($E$6=Ba,$E$7=NG),'Hot mix emission factors'!B51,IF(AND($E$6=Ba,$E$7=D),'Hot mix emission factors'!C51,IF(AND($E$6=Ba,$E$7=O),'Hot mix emission factors'!D51,IF(AND($E$6=Dr,$E$7=NG),'Hot mix emission factors'!E51,IF(AND($E$6=Dr,$E$7=D),'Hot mix emission factors'!F51,IF(AND($E$6=Dr,$E$7=O),'Hot mix emission factors'!G51,IF(OR($E$6="Choose one",$E$7="Choose one"),0))))))) -> 0 | H69: 0 | I69: 0 | J69: 0
B70: ='Hot mix emission factors'!A52 -> Phenanthrene | G70: =IF(AND($E$6=Ba,$E$7=NG),'Hot mix emission factors'!B52,IF(AND($E$6=Ba,$E$7=D),'Hot mix emission factors'!C52,IF(AND($E$6=Ba,$E$7=O),'Hot mix emission factors'!D52,IF(AND($E$6=Dr,$E$7=NG),'Hot mix emission factors'!E52,IF(AND($E$6=Dr,$E$7=D),'Hot mix emission factors'!F52,IF(AND($E$6=Dr,$E$7=O),'Hot mix emission factors'!G52,IF(OR($E$6="Choose one",$E$7="Choose one"),0))))))) -> 0 | H70: 0 | I70: 0 | J70: 0
B71: ='Hot mix emission factors'!A53 -> Pyrene | G71: =IF(AND($E$6=Ba,$E$7=NG),'Hot mix emission factors'!B53,IF(AND($E$6=Ba,$E$7=D),'Hot mix emission factors'!C53,IF(AND($E$6=Ba,$E$7=O),'Hot mix emission factors'!D53,IF(AND($E$6=Dr,$E$7=NG),'Hot mix emission factors'!E53,IF(AND($E$6=Dr,$E$7=D),'Hot mix emission factors'!F53,IF(AND($E$6=Dr,$E$7=O),'Hot mix emission factors'!G53,IF(OR($E$6="Choose one",$E$7="Choose one"),0))))))) -> 0 | H71: 0 | I71: 0 | J71: 0
B72: ='Hot mix emission factors'!A54 -> Benzo(e)pyrene | G72: =IF(AND($E$6=Ba,$E$7=NG),'Hot mix emission factors'!B54,IF(AND($E$6=Ba,$E$7=D),'Hot mix emission factors'!C54,IF(AND($E$6=Ba,$E$7=O),'Hot mix emission factors'!D54,IF(AND($E$6=Dr,$E$7=NG),'Hot mix emission factors'!E54,IF(AND($E$6=Dr,$E$7=D),'Hot mix emission factors'!F54,IF(AND($E$6=Dr,$E$7=O),'Hot mix emission factors'!G54,IF(OR($E$6="Choose one",$E$7="Choose one"),0))))))) -> 0 | H72: 0 | I72: 0 | J72: 0
B73: ='Hot mix emission factors'!A55 -> Perylene | G73: =IF(AND($E$6=Ba,$E$7=NG),'Hot mix emission factors'!B55,IF(AND($E$6=Ba,$E$7=D),'Hot mix emission factors'!C55,IF(AND($E$6=Ba,$E$7=O),'Hot mix emission factors'!D55,IF(AND($E$6=Dr,$E$7=NG),'Hot mix emission factors'!E55,IF(AND($E$6=Dr,$E$7=D),'Hot mix emission factors'!F55,IF(AND($E$6=Dr,$E$7=O),'Hot mix emission factors'!G55,IF(OR($E$6="Choose one",$E$7="Choose one"),0))))))) -> 0 | H73: 0 | I73: =G73 -> 0 | J73: 0
B74: ='Hot mix emission factors'!A56 -> Metal HAPs
B75: ='Hot mix emission factors'!A57 -> Antimony | G75: =IF(AND($E$6=Ba,$E$7=NG),'Hot mix emission factors'!B57,IF(AND($E$6=Ba,$E$7=D),'Hot mix emission factors'!C57,IF(AND($E$6=Ba,$E$7=O),'Hot mix emission factors'!D57,IF(AND($E$6=Dr,$E$7=NG),'Hot mix emission factors'!E57,IF(AND($E$6=Dr,$E$7=D),'Hot mix emission factors'!F57,IF(AND($E$6=Dr,$E$7=O),'Hot mix emission factors'!G57,IF(OR($E$6="Choose one",$E$7="Choose one"),0))))))) -> 0 | H75: 0 | I75: 0 | J75: 0
B76: ='Hot mix emission factors'!A58 -> Arsenic | G76: =IF(AND($E$6=Ba,$E$7=NG),'Hot mix emission factors'!B58,IF(AND($E$6=Ba,$E$7=D),'Hot mix emission factors'!C58,IF(AND($E$6=Ba,$E$7=O),'Hot mix emission factors'!D58,IF(AND($E$6=Dr,$E$7=NG),'Hot mix emission factors'!E58,IF(AND($E$6=Dr,$E$7=D),'Hot mix emission factors'!F58,IF(AND($E$6=Dr,$E$7=O),'Hot mix emission factors'!G58,IF(OR($E$6="Choose one",$E$7="Choose one"),0))))))) -> 0 | H76: 0 | I76: 0 | J76: 0
B77: ='Hot mix emission factors'!A59 -> Beryllium | G77: =IF(AND($E$6=Ba,$E$7=NG),'Hot mix emission factors'!B59,IF(AND($E$6=Ba,$E$7=D),'Hot mix emission factors'!C59,IF(AND($E$6=Ba,$E$7=O),'Hot mix emission factors'!D59,IF(AND($E$6=Dr,$E$7=NG),'Hot mix emission factors'!E59,IF(AND($E$6=Dr,$E$7=D),'Hot mix emission factors'!F59,IF(AND($E$6=Dr,$E$7=O),'Hot mix emission factors'!G59,IF(OR($E$6="Choose one",$E$7="Choose one"),0))))))) -> 0 | H77: 0 | I77: 0 | J77: 0
B78: ='Hot mix emission factors'!A60 -> Cadmium | G78: =IF(AND($E$6=Ba,$E$7=NG),'Hot mix emission factors'!B60,IF(AND($E$6=Ba,$E$7=D),'Hot mix emission factors'!C60,IF(AND($E$6=Ba,$E$7=O),'Hot mix emission factors'!D60,IF(AND($E$6=Dr,$E$7=NG),'Hot mix emission factors'!E60,IF(AND($E$6=Dr,$E$7=D),'Hot mix emission factors'!F60,IF(AND($E$6=Dr,$E$7=O),'Hot mix emission factors'!G60,IF(OR($E$6="Choose one",$E$7="Choose one"),0))))))) -> 0 | H78: 0 | I78: 0 | J78: 0
B79: ='Hot mix emission factors'!A61 -> Chromium | G79: =IF(AND($E$6=Ba,$E$7=NG),'Hot mix emission factors'!B61,IF(AND($E$6=Ba,$E$7=D),'Hot mix emission factors'!C61,IF(AND($E$6=Ba,$E$7=O),'Hot mix emission factors'!D61,IF(AND($E$6=Dr,$E$7=NG),'Hot mix emission factors'!E61,IF(AND($E$6=Dr,$E$7=D),'Hot mix emission factors'!F61,IF(AND($E$6=Dr,$E$7=O),'Hot mix emission factors'!G61,IF(OR($E$6="Choose one",$E$7="Choose one"),0))))))) -> 0 | H79: 0 | I79: 0 | J79: 0
B80: ='Hot mix emission factors'!A62 -> Chromium (VI) | G80: =IF(AND($E$6=Ba,$E$7=NG),'Hot mix emission factors'!B62,IF(AND($E$6=Ba,$E$7=D),'Hot mix emission factors'!C62,IF(AND($E$6=Ba,$E$7=O),'Hot mix emission factors'!D62,IF(AND($E$6=Dr,$E$7=NG),'Hot mix emission factors'!E62,IF(AND($E$6=Dr,$E$7=D),'Hot mix emission factors'!F62,IF(AND($E$6=Dr,$E$7=O),'Hot mix emission factors'!G62,IF(OR($E$6="Choose one",$E$7="Choose one"),0))))))) -> 0 | H80: 0 | I80: 0 | J80: 0
B81: ='Hot mix emission factors'!A63 -> Cobalt | G81: =IF(AND($E$6=Ba,$E$7=NG),'Hot mix emission factors'!B63,IF(AND($E$6=Ba,$E$7=D),'Hot mix emission factors'!C63,IF(AND($E$6=Ba,$E$7=O),'Hot mix emission factors'!D63,IF(AND($E$6=Dr,$E$7=NG),'Hot mix emission factors'!E63,IF(AND($E$6=Dr,$E$7=D),'Hot mix emission factors'!F63,IF(AND($E$6=Dr,$E$7=O),'Hot mix emission factors'!G63,IF(OR($E$6="Choose one",$E$7="Choose one"),0))))))) -> 0 | H81: 0 | I81: 0 | J81: 0
B82: ='Hot mix emission factors'!A64 -> Manganese | G82: =IF(AND($E$6=Ba,$E$7=NG),'Hot mix emission factors'!B64,IF(AND($E$6=Ba,$E$7=D),'Hot mix emission factors'!C64,IF(AND($E$6=Ba,$E$7=O),'Hot mix emission factors'!D64,IF(AND($E$6=Dr,$E$7=NG),'Hot mix emission factors'!E64,IF(AND($E$6=Dr,$E$7=D),'Hot mix emission factors'!F64,IF(AND($E$6=Dr,$E$7=O),'Hot mix emission factors'!G64,IF(OR($E$6="Choose one",$E$7="Choose one"),0))))))) -> 0 | H82: 0 | I82: 0 | J82: 0
B83: ='Hot mix emission factors'!A65 -> Mercury | G83: =IF(AND($E$6=Ba,$E$7=NG),'Hot mix emission factors'!B65,IF(AND($E$6=Ba,$E$7=D),'Hot mix emission factors'!C65,IF(AND($E$6=Ba,$E$7=O),'Hot mix emission factors'!D65,IF(AND($E$6=Dr,$E$7=NG),'Hot mix emission factors'!E65,IF(AND($E$6=Dr,$E$7=D),'Hot mix emission factors'!F65,IF(AND($E$6=Dr,$E$7=O),'Hot mix emission factors'!G65,IF(OR($E$6="Choose one",$E$7="Choose one"),0))))))) -> 0 | H83: 0 | I83: 0 | J83: 0
B84: ='Hot mix emission factors'!A66 -> Nickel | G84: =IF(AND($E$6=Ba,$E$7=NG),'Hot mix emission factors'!B66,IF(AND($E$6=Ba,$E$7=D),'Hot mix emission factors'!C66,IF(AND($E$6=Ba,$E$7=O),'Hot mix emission factors'!D66,IF(AND($E$6=Dr,$E$7=NG),'Hot mix emission factors'!E66,IF(AND($E$6=Dr,$E$7=D),'Hot mix emission factors'!F66,IF(AND($E$6=Dr,$E$7=O),'Hot mix emission factors'!G66,IF(OR($E$6="Choose one",$E$7="Choose one"),0))))))) -> 0 | H84: 0 | I84: 0 | J84: 0
B85: ='Hot mix emission factors'!A67 -> Selenium | G85: =IF(AND($E$6=Ba,$E$7=NG),'Hot mix emission factors'!B67,IF(AND($E$6=Ba,$E$7=D),'Hot mix emission factors'!C67,IF(AND($E$6=Ba,$E$7=O),'Hot mix emission factors'!D67,IF(AND($E$6=Dr,$E$7=NG),'Hot mix emission factors'!E67,IF(AND($E$6=Dr,$E$7=D),'Hot mix emission factors'!F67,IF(AND($E$6=Dr,$E$7=O),'Hot mix emission factors'!G67,IF(OR($E$6="Choose one",$E$7="Choose one"),0))))))) -> 0 | H85: 0 | I85: =G85 -> 0 | J85: 0
B86: ='Hot mix emission factors'!A68 -> Dioxins
B87: ='Hot mix emission factors'!A69 -> Total TCCD | G87: =IF(AND($E$6=Ba,$E$7=NG),'Hot mix emission factors'!B69,IF(AND($E$6=Ba,$E$7=D),'Hot mix emission factors'!C69,IF(AND($E$6=Ba,$E$7=O),'Hot mix emission factors'!D69,IF(AND($E$6=Dr,$E$7=NG),'Hot mix emission factors'!E69,IF(AND($E$6=Dr,$E$7=D),'Hot mix emission factors'!F69,IF(AND($E$6=Dr,$E$7=O),'Hot mix emission factors'!G69,IF(OR($E$6="Choose one",$E$7="Choose one"),0))))))) -> 0 | H87: =$D$27*$F$27*$G87/2000 -> 0 | I87: 0 | J87: 0
B88: ='Hot mix emission factors'!A70 -> Total PeCDD | G88: =IF(AND($E$6=Ba,$E$7=NG),'Hot mix emission factors'!B70,IF(AND($E$6=Ba,$E$7=D),'Hot mix emission factors'!C70,IF(AND($E$6=Ba,$E$7=O),'Hot mix emission factors'!D70,IF(AND($E$6=Dr,$E$7=NG),'Hot mix emission factors'!E70,IF(AND($E$6=Dr,$E$7=D),'Hot mix emission factors'!F70,IF(AND($E$6=Dr,$E$7=O),'Hot mix emission factors'!G70,IF(OR($E$6="Choose one",$E$7="Choose one"),0))))))) -> 0 | H88: 0 | I88: 0 | J88: 0
B89: ='Hot mix emission factors'!A71 -> Total HxCDD | G89: =IF(AND($E$6=Ba,$E$7=NG),'Hot mix emission factors'!B71,IF(AND($E$6=Ba,$E$7=D),'Hot mix emission factors'!C71,IF(AND($E$6=Ba,$E$7=O),'Hot mix emission factors'!D71,IF(AND($E$6=Dr,$E$7=NG),'Hot mix emission factors'!E71,IF(AND($E$6=Dr,$E$7=D),'Hot mix emission factors'!F71,IF(AND($E$6=Dr,$E$7=O),'Hot mix emission factors'!G71,IF(OR($E$6="Choose one",$E$7="Choose one"),0))))))) -> 0 | H89: 0 | I89: 0 | J89: 0
B90: ='Hot mix emission factors'!A72 -> Total HpCDD | G90: =IF(AND($E$6=Ba,$E$7=NG),'Hot mix emission factors'!B72,IF(AND($E$6=Ba,$E$7=D),'Hot mix emission factors'!C72,IF(AND($E$6=Ba,$E$7=O),'Hot mix emission factors'!D72,IF(AND($E$6=Dr,$E$7=NG),'Hot mix emission factors'!E72,IF(AND($E$6=Dr,$E$7=D),'Hot mix emission factors'!F72,IF(AND($E$6=Dr,$E$7=O),'Hot mix emission factors'!G72,IF(OR($E$6="Choose one",$E$7="Choose one"),0))))))) -> 0 | H90: 0 | I90: 0 | J90: 0
B91: ='Hot mix emission factors'!A73 -> Total PCDD | G91: =IF(AND($E$6=Ba,$E$7=NG),'Hot mix emission factors'!B73,IF(AND($E$6=Ba,$E$7=D),'Hot mix emission factors'!C73,IF(AND($E$6=Ba,$E$7=O),'Hot mix emission factors'!D73,IF(AND($E$6=Dr,$E$7=NG),'Hot mix emission factors'!E73,IF(AND($E$6=Dr,$E$7=D),'Hot mix emission factors'!F73,IF(AND($E$6=Dr,$E$7=O),'Hot mix emission factors'!G73,IF(OR($E$6="Choose one",$E$7="Choose one"),0))))))) -> 0 | H91: 0 | I91: 0 | J91: 0
B92: ='Hot mix emission factors'!A74 -> Furans
B93: ='Hot mix emission factors'!A75 -> Total TCDF | G93: =IF(AND($E$6=Ba,$E$7=NG),'Hot mix emission factors'!B75,IF(AND($E$6=Ba,$E$7=D),'Hot mix emission factors'!C75,IF(AND($E$6=Ba,$E$7=O),'Hot mix emission factors'!D75,IF(AND($E$6=Dr,$E$7=NG),'Hot mix emission factors'!E75,IF(AND($E$6=Dr,$E$7=D),'Hot mix emission factors'!F75,IF(AND($E$6=Dr,$E$7=O),'Hot mix emission factors'!G75,IF(OR($E$6="Choose one",$E$7="Choose one"),0))))))) -> 0 | H93: 0 | I93: 0 | J93: 0
B94: ='Hot mix emission factors'!A76 -> Total PeCDF | G94: =IF(AND($E$6=Ba,$E$7=NG),'Hot mix emission factors'!B76,IF(AND($E$6=Ba,$E$7=D),'Hot mix emission factors'!C76,IF(AND($E$6=Ba,$E$7=O),'Hot mix emission factors'!D76,IF(AND($E$6=Dr,$E$7=NG),'Hot mix emission factors'!E76,IF(AND($E$6=Dr,$E$7=D),'Hot mix emission factors'!F76,IF(AND($E$6=Dr,$E$7=O),'Hot mix emission factors'!G76,IF(OR($E$6="Choose one",$E$7="Choose one"),0))))))) -> 0 | H94: 0 | I94: 0 | J94: 0
B95: ='Hot mix emission factors'!A77 -> Total HxCDF | G95: =IF(AND($E$6=Ba,$E$7=NG),'Hot mix emission factors'!B77,IF(AND($E$6=Ba,$E$7=D),'Hot mix emission factors'!C77,IF(AND($E$6=Ba,$E$7=O),'Hot mix emission factors'!D77,IF(AND($E$6=Dr,$E$7=NG),'Hot mix emission factors'!E77,IF(AND($E$6=Dr,$E$7=D),'Hot mix emission factors'!F77,IF(AND($E$6=Dr,$E$7=O),'Hot mix emission factors'!G77,IF(OR($E$6="Choose one",$E$7="Choose one"),0))))))) -> 0 | H95: 0 | I95: 0 | J95: 0
B96: ='Hot mix emission factors'!A78 -> Total HpCDF | G96: =IF(AND($E$6=Ba,$E$7=NG),'Hot mix emission factors'!B78,IF(AND($E$6=Ba,$E$7=D),'Hot mix emission factors'!C78,IF(AND($E$6=Ba,$E$7=O),'Hot mix emission factors'!D78,IF(AND($E$6=Dr,$E$7=NG),'Hot mix emission factors'!E78,IF(AND($E$6=Dr,$E$7=D),'Hot mix emission factors'!F78,IF(AND($E$6=Dr,$E$7=O),'Hot mix emission factors'!G78,IF(OR($E$6="Choose one",$E$7="Choose one"),0))))))) -> 0 | H96: 0 | I96: 0 | J96: 0
B97: ='Hot mix emission factors'!A79 -> Total PCDF | G97: =IF(AND($E$6=Ba,$E$7=NG),'Hot mix emission factors'!B79,IF(AND($E$6=Ba,$E$7=D),'Hot mix emission factors'!C79,IF(AND($E$6=Ba,$E$7=O),'Hot mix emission factors'!D79,IF(AND($E$6=Dr,$E$7=NG),'Hot mix emission factors'!E79,IF(AND($E$6=Dr,$E$7=D),'Hot mix emission factors'!F79,IF(AND($E$6=Dr,$E$7=O),'Hot mix emission factors'!G79,IF(OR($E$6="Choose one",$E$7="Choose one"),0))))))) -> 0 | H97: =$D$27*$F$27*$G97/2000 -> 0 | I97: 0 | J97: 0
B98: 1 Actual emission factors: SOx, NOx, CO, VOC, Vol-HAPs = no control; MHAP = fabric filter emission factor for fabric filter and venturi scrubber
B99: 2 Global Warming Potential from 40 CFR Part 98, Subpart A, Table A-1 | F99: 4 CO2e = carbon dioxide equivalents
B100: 3 See hot mix emission factors tab for references, Potential = uncontrolled; Emission factor cells without content (blank orange cell) for HAPs, Dioxins, and Furans means no data provided in AP-42. | F100: 5 Prior to the use of a dryer fuel with a sulfur content greater than 0.70 percent, you must perform air modeling with SCREEN3.
F102: https://www.epa.gov/scram/air-quality-dispersion-modeling-screening-models

Sheet Load out and silos
H1: =Instructions!$O$3 -> p-sbap5-20 • 4/8/19
B2: Air emissions from hot mix asphalt plants
B3: Load outs and silo filling
B5: Do you have site specific asphalt volatility and hot mix temperature? | F5: Choose one
D6: Asphalt volatility | F6: where a 0.5 percent loss-on-heating is expressed as “-0.5”
D7: Hot mix asphalt temperature | F7: degrees Fahrenheit (°F)
B9: Load out potential and actual emissions | J9: Silo filling potential and actual emissions
C10: b | D10: c | E10: d | F10: e | K10: b | L10: c | M10: d | N10: e
B11: Pollutant | C11: Plant capacity | D11: Actual hours operated | E11: Potential annual hours | F11: Emission Factor1 | G11: Potential Emissions | H11: Actual Emissions | J11: Pollutant | K11: Plant capacity | L11: Actual hours operated | M11: Potential annual hours | N11: Emission Factor1, 3 | O11: Potential Emissions | P11: Actual Emissions
C12: ton/hour | D12: (hr/yr) | E12: (hr/yr) | F12: (lbs/ton) | G12: (ton/yr) | H12: (tons/yr) | K12: ton/hour | L12: (hr/yr) | M12: (hr/yr) | N12: (lbs/ton) | O12: (ton/yr) | P12: (tons/yr)
C13: ='Hot mix asphalt'!E8 -> 0 | D13: ='Hot mix asphalt'!E9 -> 0 | E13: 8760 | F13: by pollutant | G13: (b * d * e) / 2000 | H13: (b * c * e) / 2000 | K13: =C13 -> 0 | L13: =D13 -> 0 | M13: 8760 | N13: by pollutant | O13: (b * d * e) / 2000 | P13: (b * c * e) / 2000
B14: Criteria Air Pollutants | J14: Criteria Air Pollutants
B15: PM | F15: =IF($F$5="no",'Hot mix emission factors'!J12,IF($F$5="yes",(0.000181+0.00141*(-$E$6)*EXP((0.0251)*($E$7+460)-20.43)),IF($F$5="Choose one",0))) -> 0 | G15: =$C$13*$E$13*$F15/2000 -> 0 | H15: =($C$13*$D$13*$F15)/2000 -> 0 | J15: PM | N15: =IF($F$5="no",'Hot mix emission factors'!L12,IF($F$5="yes",(0.000181+0.00141*(-$E$6)*EXP((0.0251)*($E$7+460)-20.43)),IF($F$5="Choose one",0))) -> 0 | O15: =$K$13*$M$13*$N15/2000 -> 0 | P15: =($K$13*$L$13*$N15)/2000 -> 0
B16: PM10 | F16: =IF($F$5="no",'Hot mix emission factors'!J13,IF($F$5="yes",(0.000181+0.00141*(-$E$6)*EXP((0.0251)*($E$7+460)-20.43)),IF($F$5="Choose one",0))) -> 0 | G16: =$C$13*$E$13*$F16/2000 -> 0 | H16: =($C$13*$D$13*$F16)/2000 -> 0 | J16: PM10 | N16: =IF($F$5="no",'Hot mix emission factors'!L13,IF($F$5="yes",(0.000181+0.00141*(-$E$6)*EXP((0.0251)*($E$7+460)-20.43)),IF($F$5="Choose one",0))) -> 0 | O16: =$K$13*$M$13*$N16/2000 -> 0 | P16: =($K$13*$L$13*$N16)/2000 -> 0
B17: PM2.5 | F17: =F16 -> 0 | G17: 0 | H17: =($C$13*$D$13*$F17)/2000 -> 0 | J17: PM2.5 | N17: =N16 -> 0 | O17: =$K$13*$M$13*$N17/2000 -> 0 | P17: =($K$13*$L$13*$N17)/2000 -> 0
B18: VOC | F18: =IF($F$5="no",'Hot mix emission factors'!J15,IF($F$5="yes",(0.94)*(0.0172*(-$E$6)*EXP((0.0251)*($E$7+460)-20.43)),IF($F$5="Choose one",0))) -> 0 | G18: 0 | H18: =($C$13*$D$13*$F18)/2000 -> 0 | J18: VOC | N18: =IF($F$5="no",'Hot mix emission factors'!L15,IF($F$5="yes",(0.94)*(0.0172*(-$E$6)*EXP((0.0251)*($E$7+460)-20.43)),IF($F$5="Choose one",0))) -> 0 | O18: =$K$13*$M$13*$N18/2000 -> 0 | P18: =($K$13*$L$13*$N18)/2000 -> 0
B19: CO | F19: =IF($F$5="no",'Hot mix emission factors'!J16,IF($F$5="yes",(0.94)*(0.0172*(-$E$6)*EXP((0.0251)*($E$7+460)-20.43)),IF($F$5="Choose one",0))) -> 0 | G19: 0 | H19: =($C$13*$D$13*$F19)/2000 -> 0 | J19: CO | N19: =IF($F$5="no",'Hot mix emission factors'!L16,IF($F$5="yes",(0.94)*(0.0172*(-$E$6)*EXP((0.0251)*($E$7+460)-20.43)),IF($F$5="Choose one",0))) -> 0 | O19: =$K$13*$M$13*$N19/2000 -> 0 | P19: =($K$13*$L$13*$N19)/2000 -> 0
B20: Greenhouse Gas Emissions | J20: Greenhouse Gas Emissions
B21: Methane | F21: =IF($F$5="no",'Hot mix emission factors'!$J$12,IF($F$5="yes",(0.000181+0.00141*(-$E$6)*EXP((0.0251)*($E$7+460)-20.43)),IF($F$5="Choose one",0)))*'Hot mix emission factors'!J18 -> 0 | G21: =$C$13*$E$13*$F21/2000 -> 0 | H21: =($C$13*$D$13*$F21)/2000 -> 0 | J21: Methane | N21: =IF($F$5="no",'Hot mix emission factors'!$L$12,IF($F$5="yes",(0.000181+0.00141*(-$E$6)*EXP((0.0251)*($E$7+460)-20.43)),IF($F$5="Choose one",0)))*'Hot mix emission factors'!L18 -> 0 | O21: =$K$13*$M$13*$N21/2000 -> 0 | P21: =($K$13*$L$13*$N21)/2000 -> 0
E22: GHG total (CO2e) 2 | G22: =G21*25 -> 0 | H22: =H21*25 -> 0 | M22: GHG total (CO2e) 2 | O22: =O21*25 -> 0 | P22: =P21*25 -> 0
B23: ='Hot mix emission factors'!I20 -> Non-PAH/Volatile HAPS | F23: =IF($F$5="no",'Hot mix emission factors'!$J$12,IF($F$5="yes",(0.00141*(-$E$6)*EXP((0.0251)*($E$7+460)-20.43)),IF($F$5="Choose one",0)))*'Hot mix emission factors'!J20 ->  | H23: =($C$13*$D$13*$F23)/2000 ->  | J23: ='Hot mix emission factors'!I20 -> Non-PAH/Volatile HAPS | N23: =IF($F$5="no",'Hot mix emission factors'!$L$12,IF($F$5="yes",(0.000181+0.00141*(-$E$6)*EXP((0.0251)*($E$7+460)-20.43)),IF($F$5="Choose one",0)))*'Hot mix emission factors'!L20 ->  | O23: =$K$13*$M$13*$N23/2000 ->  | P23: =($K$13*$L$13*$N23)/2000 -> 
B24: ='Hot mix emission factors'!I21 -> Benzene | F24: =IF($F$5="no",'Hot mix emission factors'!$J$12,IF($F$5="yes",(0.000181+0.00141*(-$E$6)*EXP((0.0251)*($E$7+460)-20.43)),IF($F$5="Choose one",0)))*'Hot mix emission factors'!J21 -> 0 | G24: =$C$13*$E$13*$F24/2000 -> 0 | H24: 0 | J24: ='Hot mix emission factors'!I21 -> Benzene | N24: =IF($F$5="no",'Hot mix emission factors'!$L$12,IF($F$5="yes",(0.000181+0.00141*(-$E$6)*EXP((0.0251)*($E$7+460)-20.43)),IF($F$5="Choose one",0)))*'Hot mix emission factors'!L21 -> 0 | O24: 0 | P24: 0
B25: ='Hot mix emission factors'!I22 -> Bromomethane | F25: =IF($F$5="no",'Hot mix emission factors'!$J$12,IF($F$5="yes",(0.000181+0.00141*(-$E$6)*EXP((0.0251)*($E$7+460)-20.43)),IF($F$5="Choose one",0)))*'Hot mix emission factors'!J22 -> 0 | G25: 0 | H25: 0 | J25: ='Hot mix emission factors'!I22 -> Bromomethane | N25: =IF($F$5="no",'Hot mix emission factors'!$L$12,IF($F$5="yes",(0.000181+0.00141*(-$E$6)*EXP((0.0251)*($E$7+460)-20.43)),IF($F$5="Choose one",0)))*'Hot mix emission factors'!L22 -> 0 | O25: 0 | P25: 0
B26: ='Hot mix emission factors'!I23 -> 2-Butanone | F26: =IF($F$5="no",'Hot mix emission factors'!$J$12,IF($F$5="yes",(0.000181+0.00141*(-$E$6)*EXP((0.0251)*($E$7+460)-20.43)),IF($F$5="Choose one",0)))*'Hot mix emission factors'!J23 -> 0 | G26: 0 | H26: 0 | J26: ='Hot mix emission factors'!I23 -> 2-Butanone | N26: =IF($F$5="no",'Hot mix emission factors'!$L$12,IF($F$5="yes",(0.000181+0.00141*(-$E$6)*EXP((0.0251)*($E$7+460)-20.43)),IF($F$5="Choose one",0)))*'Hot mix emission factors'!L23 -> 0 | O26: 0 | P26: 0
B27: ='Hot mix emission factors'!I24 -> Carbon Disulfide | F27: =IF($F$5="no",'Hot mix emission factors'!$J$12,IF($F$5="yes",(0.000181+0.00141*(-$E$6)*EXP((0.0251)*($E$7+460)-20.43)),IF($F$5="Choose one",0)))*'Hot mix emission factors'!J24 -> 0 | G27: 0 | H27: 0 | J27: ='Hot mix emission factors'!I24 -> Carbon Disulfide | N27: =IF($F$5="no",'Hot mix emission factors'!$L$12,IF($F$5="yes",(0.000181+0.00141*(-$E$6)*EXP((0.0251)*($E$7+460)-20.43)),IF($F$5="Choose one",0)))*'Hot mix emission factors'!L24 -> 0 | O27: 0 | P27: 0
B28: ='Hot mix emission factors'!I25 -> Chloroethane | F28: =IF($F$5="no",'Hot mix emission factors'!$J$12,IF($F$5="yes",(0.000181+0.00141*(-$E$6)*EXP((0.0251)*($E$7+460)-20.43)),IF($F$5="Choose one",0)))*'Hot mix emission factors'!J25 -> 0 | G28: 0 | H28: 0 | J28: ='Hot mix emission factors'!I25 -> Chloroethane | N28: =IF($F$5="no",'Hot mix emission factors'!$L$12,IF($F$5="yes",(0.000181+0.00141*(-$E$6)*EXP((0.0251)*($E$7+460)-20.43)),IF($F$5="Choose one",0)))*'Hot mix emission factors'!L25 -> 0 | O28: 0 | P28: 0
B29: ='Hot mix emission factors'!I26 -> Chloromethane | F29: =IF($F$5="no",'Hot mix emission factors'!$J$12,IF($F$5="yes",(0.000181+0.00141*(-$E$6)*EXP((0.0251)*($E$7+460)-20.43)),IF($F$5="Choose one",0)))*'Hot mix emission factors'!J26 -> 0 | G29: 0 | H29: 0 | J29: ='Hot mix emission factors'!I26 -> Chloromethane | N29: =IF($F$5="no",'Hot mix emission factors'!$L$12,IF($F$5="yes",(0.000181+0.00141*(-$E$6)*EXP((0.0251)*($E$7+460)-20.43)),IF($F$5="Choose one",0)))*'Hot mix emission factors'!L26 -> 0 | O29: 0 | P29: 0
B30: ='Hot mix emission factors'!I27 -> Cumene | F30: =IF($F$5="no",'Hot mix emission factors'!$J$12,IF($F$5="yes",(0.000181+0.00141*(-$E$6)*EXP((0.0251)*($E$7+460)-20.43)),IF($F$5="Choose one",0)))*'Hot mix emission factors'!J27 -> 0 | G30: 0 | H30: 0 | J30: ='Hot mix emission factors'!I27 -> Cumene | O30: 0 | P30: 0
B31: ='Hot mix emission factors'!I28 -> Ethylbenzene | F31: =IF($F$5="no",'Hot mix emission factors'!$J$12,IF($F$5="yes",(0.000181+0.00141*(-$E$6)*EXP((0.0251)*($E$7+460)-20.43)),IF($F$5="Choose one",0)))*'Hot mix emission factors'!J28 -> 0 | G31: 0 | H31: 0 | J31: ='Hot mix emission factors'!I28 -> Ethylbenzene | N31: =IF($F$5="no",'Hot mix emission factors'!$L$12,IF($F$5="yes",(0.000181+0.00141*(-$E$6)*EXP((0.0251)*($E$7+460)-20.43)),IF($F$5="Choose one",0)))*'Hot mix emission factors'!L28 -> 0 | O31: 0 | P31: 0
B32: ='Hot mix emission factors'!I29 -> Formaldehyde | F32: =IF($F$5="no",'Hot mix emission factors'!$J$12,IF($F$5="yes",(0.000181+0.00141*(-$E$6)*EXP((0.0251)*($E$7+460)-20.43)),IF($F$5="Choose one",0)))*'Hot mix emission factors'!J29 -> 0 | G32: 0 | H32: 0 | J32: ='Hot mix emission factors'!I29 -> Formaldehyde | N32: =IF($F$5="no",'Hot mix emission factors'!$L$12,IF($F$5="yes",(0.000181+0.00141*(-$E$6)*EXP((0.0251)*($E$7+460)-20.43)),IF($F$5="Choose one",0)))*'Hot mix emission factors'!L29 -> 0 | O32: 0 | P32: 0
B33: ='Hot mix emission factors'!I30 -> n-Hexane | F33: =IF($F$5="no",'Hot mix emission factors'!$J$12,IF($F$5="yes",(0.000181+0.00141*(-$E$6)*EXP((0.0251)*($E$7+460)-20.43)),IF($F$5="Choose one",0)))*'Hot mix emission factors'!J30 -> 0 | G33: 0 | H33: 0 | J33: ='Hot mix emission factors'!I30 -> n-Hexane | N33: =IF($F$5="no",'Hot mix emission factors'!$L$12,IF($F$5="yes",(0.000181+0.00141*(-$E$6)*EXP((0.0251)*($E$7+460)-20.43)),IF($F$5="Choose one",0)))*'Hot mix emission factors'!L30 -> 0 | O33: 0 | P33: 0
B34: ='Hot mix emission factors'!I31 -> Isooctane | F34: =IF($F$5="no",'Hot mix emission factors'!$J$12,IF($F$5="yes",(0.000181+0.00141*(-$E$6)*EXP((0.0251)*($E$7+460)-20.43)),IF($F$5="Choose one",0)))*'Hot mix emission factors'!J31 -> 0 | G34: 0 | H34: 0 | J34: ='Hot mix emission factors'!I31 -> Isooctane | N34: =IF($F$5="no",'Hot mix emission factors'!$L$12,IF($F$5="yes",(0.000181+0.00141*(-$E$6)*EXP((0.0251)*($E$7+460)-20.43)),IF($F$5="Choose one",0)))*'Hot mix emission factors'!L31 -> 0 | O34: 0 | P34: 0
B35: ='Hot mix emission factors'!I32 -> Methylene Chloride | F35: =IF($F$5="no",'Hot mix emission factors'!$J$12,IF($F$5="yes",(0.000181+0.00141*(-$E$6)*EXP((0.0251)*($E$7+460)-20.43)),IF($F$5="Choose one",0)))*'Hot mix emission factors'!J32 -> 0 | G35: 0 | H35: 0 | J35: ='Hot mix emission factors'!I32 -> Methylene Chloride | N35: =IF($F$5="no",'Hot mix emission factors'!$L$12,IF($F$5="yes",(0.000181+0.00141*(-$E$6)*EXP((0.0251)*($E$7+460)-20.43)),IF($F$5="Choose one",0)))*'Hot mix emission factors'!L32 -> 0 | O35: 0 | P35: 0
B36: ='Hot mix emission factors'!I33 -> MTBE | F36: =IF($F$5="no",'Hot mix emission factors'!$J$12,IF($F$5="yes",(0.000181+0.00141*(-$E$6)*EXP((0.0251)*($E$7+460)-20.43)),IF($F$5="Choose one",0)))*'Hot mix emission factors'!J33 -> 0 | G36: 0 | H36: 0 | J36: ='Hot mix emission factors'!I33 -> MTBE | O36: 0 | P36: 0
B37: ='Hot mix emission factors'!I34 -> Styrene | F37: =IF($F$5="no",'Hot mix emission factors'!$J$12,IF($F$5="yes",(0.000181+0.00141*(-$E$6)*EXP((0.0251)*($E$7+460)-20.43)),IF($F$5="Choose one",0)))*'Hot mix emission factors'!J34 -> 0 | G37: 0 | H37: 0 | J37: ='Hot mix emission factors'!I34 -> Styrene | N37: =IF($F$5="no",'Hot mix emission factors'!$L$12,IF($F$5="yes",(0.000181+0.00141*(-$E$6)*EXP((0.0251)*($E$7+460)-20.43)),IF($F$5="Choose one",0)))*'Hot mix emission factors'!L34 -> 0 | O37: 0 | P37: 0
B38: ='Hot mix emission factors'!I35 -> Tetrachloroethene | F38: =IF($F$5="no",'Hot mix emission factors'!$J$12,IF($F$5="yes",(0.000181+0.00141*(-$E$6)*EXP((0.0251)*($E$7+460)-20.43)),IF($F$5="Choose one",0)))*'Hot mix emission factors'!J35 -> 0 | G38: 0 | H38: 0 | J38: ='Hot mix emission factors'!I35 -> Tetrachloroethene | O38: 0 | P38: 0
B39: ='Hot mix emission factors'!I36 -> Toluene | F39: =IF($F$5="no",'Hot mix emission factors'!$J$12,IF($F$5="yes",(0.000181+0.00141*(-$E$6)*EXP((0.0251)*($E$7+460)-20.43)),IF($F$5="Choose one",0)))*'Hot mix emission factors'!J36 -> 0 | G39: 0 | H39: 0 | J39: ='Hot mix emission factors'!I36 -> Toluene | N39: =IF($F$5="no",'Hot mix emission factors'!$L$12,IF($F$5="yes",(0.000181+0.00141*(-$E$6)*EXP((0.0251)*($E$7+460)-20.43)),IF($F$5="Choose one",0)))*'Hot mix emission factors'!L36 -> 0 | O39: 0 | P39: 0
B40: ='Hot mix emission factors'!I37 -> 1,1,1-Trichloroethane | F40: =IF($F$5="no",'Hot mix emission factors'!$J$12,IF($F$5="yes",(0.000181+0.00141*(-$E$6)*EXP((0.0251)*($E$7+460)-20.43)),IF($F$5="Choose one",0)))*'Hot mix emission factors'!J37 -> 0 | G40: 0 | H40: 0 | J40: ='Hot mix emission factors'!I37 -> 1,1,1-Trichloroethane | O40: 0 | P40: 0
B41: ='Hot mix emission factors'!I38 -> Trichloroenthene | F41: =IF($F$5="no",'Hot mix emission factors'!$J$12,IF($F$5="yes",(0.000181+0.00141*(-$E$6)*EXP((0.0251)*($E$7+460)-20.43)),IF($F$5="Choose one",0)))*'Hot mix emission factors'!J38 -> 0 | G41: 0 | H41: 0 | J41: ='Hot mix emission factors'!I38 -> Trichloroenthene | O41: 0 | P41: 0
B42: ='Hot mix emission factors'!I39 -> Trichlorofluoromethane | F42: =IF($F$5="no",'Hot mix emission factors'!$J$12,IF($F$5="yes",(0.000181+0.00141*(-$E$6)*EXP((0.0251)*($E$7+460)-20.43)),IF($F$5="Choose one",0)))*'Hot mix emission factors'!J39 -> 0 | G42: 0 | H42: 0 | J42: ='Hot mix emission factors'!I39 -> Trichlorofluoromethane | O42: 0 | P42: 0
B43: ='Hot mix emission factors'!I40 -> Xylene | F43: =IF($F$5="no",'Hot mix emission factors'!$J$12,IF($F$5="yes",(0.000181+0.00141*(-$E$6)*EXP((0.0251)*($E$7+460)-20.43)),IF($F$5="Choose one",0)))*'Hot mix emission factors'!J40 -> 0 | G43: 0 | H43: 0 | J43: ='Hot mix emission factors'!I40 -> Xylene | N43: =IF($F$5="no",'Hot mix emission factors'!$L$12,IF($F$5="yes",(0.000181+0.00141*(-$E$6)*EXP((0.0251)*($E$7+460)-20.43)),IF($F$5="Choose one",0)))*'Hot mix emission factors'!L40 -> 0 | O43: 0 | P43: 0
B44: ='Hot mix emission factors'!I41 -> PAH HAPs | F44: =IF($F$5="no",'Hot mix emission factors'!$J$12,IF($F$5="yes",(0.00141*(-$E$6)*EXP((0.0251)*($E$7+460)-20.43)),IF($F$5="Choose one",0)))*'Hot mix emission factors'!J41 ->  | J44: ='Hot mix emission factors'!I41 -> PAH HAPs | N44: =IF($F$5="no",'Hot mix emission factors'!$L$12,IF($F$5="yes",(0.000181+0.00141*(-$E$6)*EXP((0.0251)*($E$7+460)-20.43)),IF($F$5="Choose one",0)))*'Hot mix emission factors'!L41 -> 
B45: ='Hot mix emission factors'!I42 -> Acenaphthene | F45: =IF($F$5="no",'Hot mix emission factors'!$J$12,IF($F$5="yes",(0.00141*(-$E$6)*EXP((0.0251)*($E$7+460)-20.43)),IF($F$5="Choose one",0)))*'Hot mix emission factors'!J42 -> 0 | G45: =$C$13*$E$13*$F45/2000 -> 0 | H45: 0 | J45: ='Hot mix emission factors'!I42 -> Acenaphthene | N45: =IF($F$5="no",'Hot mix emission factors'!$L$12,IF($F$5="yes",(0.00141*(-$E$6)*EXP((0.0251)*($E$7+460)-20.43)),IF($F$5="Choose one",0)))*'Hot mix emission factors'!L42 -> 0 | O45: 0 | P45: 0
B46: ='Hot mix emission factors'!I43 -> Acenaphthylene | F46: =IF($F$5="no",'Hot mix emission factors'!$J$12,IF($F$5="yes",(0.00141*(-$E$6)*EXP((0.0251)*($E$7+460)-20.43)),IF($F$5="Choose one",0)))*'Hot mix emission factors'!J43 -> 0 | G46: 0 | H46: 0 | J46: ='Hot mix emission factors'!I43 -> Acenaphthylene | N46: =IF($F$5="no",'Hot mix emission factors'!$L$12,IF($F$5="yes",(0.00141*(-$E$6)*EXP((0.0251)*($E$7+460)-20.43)),IF($F$5="Choose one",0)))*'Hot mix emission factors'!L43 -> 0 | O46: 0 | P46: 0
B47: ='Hot mix emission factors'!I44 -> Anthracene | F47: =IF($F$5="no",'Hot mix emission factors'!$J$12,IF($F$5="yes",(0.00141*(-$E$6)*EXP((0.0251)*($E$7+460)-20.43)),IF($F$5="Choose one",0)))*'Hot mix emission factors'!J44 -> 0 | G47: 0 | H47: 0 | J47: ='Hot mix emission factors'!I44 -> Anthracene | N47: =IF($F$5="no",'Hot mix emission factors'!$L$12,IF($F$5="yes",(0.00141*(-$E$6)*EXP((0.0251)*($E$7+460)-20.43)),IF($F$5="Choose one",0)))*'Hot mix emission factors'!L44 -> 0 | O47: 0 | P47: 0
B48: ='Hot mix emission factors'!I45 -> Benzo(a)anthracene | F48: =IF($F$5="no",'Hot mix emission factors'!$J$12,IF($F$5="yes",(0.00141*(-$E$6)*EXP((0.0251)*($E$7+460)-20.43)),IF($F$5="Choose one",0)))*'Hot mix emission factors'!J45 -> 0 | G48: 0 | H48: 0 | J48: ='Hot mix emission factors'!I45 -> Benzo(a)anthracene | N48: =IF($F$5="no",'Hot mix emission factors'!$L$12,IF($F$5="yes",(0.00141*(-$E$6)*EXP((0.0251)*($E$7+460)-20.43)),IF($F$5="Choose one",0)))*'Hot mix emission factors'!L45 -> 0 | O48: 0 | P48: 0
B49: ='Hot mix emission factors'!I46 -> Benzo(b)fluoranthene | F49: =IF($F$5="no",'Hot mix emission factors'!$J$12,IF($F$5="yes",(0.00141*(-$E$6)*EXP((0.0251)*($E$7+460)-20.43)),IF($F$5="Choose one",0)))*'Hot mix emission factors'!J46 -> 0 | G49: 0 | H49: 0 | J49: ='Hot mix emission factors'!I46 -> Benzo(b)fluoranthene | O49: 0 | P49: 0
B50: ='Hot mix emission factors'!I47 -> Benzo(k)fluoranthene | F50: =IF($F$5="no",'Hot mix emission factors'!$J$12,IF($F$5="yes",(0.00141*(-$E$6)*EXP((0.0251)*($E$7+460)-20.43)),IF($F$5="Choose one",0)))*'Hot mix emission factors'!J47 -> 0 | G50: 0 | H50: 0 | J50: ='Hot mix emission factors'!I47 -> Benzo(k)fluoranthene | O50: 0 | P50: 0
B51: ='Hot mix emission factors'!I48 -> Benzo(g,h,i)perylene | F51: =IF($F$5="no",'Hot mix emission factors'!$J$12,IF($F$5="yes",(0.00141*(-$E$6)*EXP((0.0251)*($E$7+460)-20.43)),IF($F$5="Choose one",0)))*'Hot mix emission factors'!J48 -> 0 | G51: 0 | H51: 0 | J51: ='Hot mix emission factors'!I48 -> Benzo(g,h,i)perylene | O51: 0 | P51: 0
B52: ='Hot mix emission factors'!I49 -> Benzo(a)pyrene | F52: =IF($F$5="no",'Hot mix emission factors'!$J$12,IF($F$5="yes",(0.00141*(-$E$6)*EXP((0.0251)*($E$7+460)-20.43)),IF($F$5="Choose one",0)))*'Hot mix emission factors'!J49 -> 0 | G52: 0 | H52: 0 | J52: ='Hot mix emission factors'!I49 -> Benzo(a)pyrene | O52: 0 | P52: 0
B53: ='Hot mix emission factors'!I50 -> Benzo(e)pyrene | F53: =IF($F$5="no",'Hot mix emission factors'!$J$12,IF($F$5="yes",(0.00141*(-$E$6)*EXP((0.0251)*($E$7+460)-20.43)),IF($F$5="Choose one",0)))*'Hot mix emission factors'!J50 -> 0 | G53: 0 | H53: 0 | J53: ='Hot mix emission factors'!I50 -> Benzo(e)pyrene | N53: =IF($F$5="no",'Hot mix emission factors'!$L$12,IF($F$5="yes",(0.00141*(-$E$6)*EXP((0.0251)*($E$7+460)-20.43)),IF($F$5="Choose one",0)))*'Hot mix emission factors'!L50 -> 0 | O53: 0 | P53: 0
B54: ='Hot mix emission factors'!I51 -> Chrysene | F54: =IF($F$5="no",'Hot mix emission factors'!$J$12,IF($F$5="yes",(0.00141*(-$E$6)*EXP((0.0251)*($E$7+460)-20.43)),IF($F$5="Choose one",0)))*'Hot mix emission factors'!J51 -> 0 | G54: 0 | H54: 0 | J54: ='Hot mix emission factors'!I51 -> Chrysene | N54: =IF($F$5="no",'Hot mix emission factors'!$L$12,IF($F$5="yes",(0.00141*(-$E$6)*EXP((0.0251)*($E$7+460)-20.43)),IF($F$5="Choose one",0)))*'Hot mix emission factors'!L51 -> 0 | O54: 0 | P54: 0
B55: ='Hot mix emission factors'!I52 -> Dibenz(a,h)anthracene | F55: =IF($F$5="no",'Hot mix emission factors'!$J$12,IF($F$5="yes",(0.00141*(-$E$6)*EXP((0.0251)*($E$7+460)-20.43)),IF($F$5="Choose one",0)))*'Hot mix emission factors'!J52 -> 0 | G55: 0 | H55: 0 | J55: ='Hot mix emission factors'!I52 -> Dibenz(a,h)anthracene | O55: 0 | P55: 0
B56: ='Hot mix emission factors'!I53 -> Fluoranthene | F56: =IF($F$5="no",'Hot mix emission factors'!$J$12,IF($F$5="yes",(0.00141*(-$E$6)*EXP((0.0251)*($E$7+460)-20.43)),IF($F$5="Choose one",0)))*'Hot mix emission factors'!J53 -> 0 | G56: 0 | H56: 0 | J56: ='Hot mix emission factors'!I53 -> Fluoranthene | N56: =IF($F$5="no",'Hot mix emission factors'!$L$12,IF($F$5="yes",(0.00141*(-$E$6)*EXP((0.0251)*($E$7+460)-20.43)),IF($F$5="Choose one",0)))*'Hot mix emission factors'!L53 -> 0 | O56: 0 | P56: 0
B57: ='Hot mix emission factors'!I54 -> Fluorene | F57: =IF($F$5="no",'Hot mix emission factors'!$J$12,IF($F$5="yes",(0.00141*(-$E$6)*EXP((0.0251)*($E$7+460)-20.43)),IF($F$5="Choose one",0)))*'Hot mix emission factors'!J54 -> 0 | G57: 0 | H57: 0 | J57: ='Hot mix emission factors'!I54 -> Fluorene | N57: =IF($F$5="no",'Hot mix emission factors'!$L$12,IF($F$5="yes",(0.00141*(-$E$6)*EXP((0.0251)*($E$7+460)-20.43)),IF($F$5="Choose one",0)))*'Hot mix emission factors'!L54 -> 0 | O57: 0 | P57: 0
B58: ='Hot mix emission factors'!I55 -> Indeno(1,2,3-cd)pyrene | F58: =IF($F$5="no",'Hot mix emission factors'!$J$12,IF($F$5="yes",(0.00141*(-$E$6)*EXP((0.0251)*($E$7+460)-20.43)),IF($F$5="Choose one",0)))*'Hot mix emission factors'!J55 -> 0 | G58: 0 | H58: 0 | J58: ='Hot mix emission factors'!I55 -> Indeno(1,2,3-cd)pyrene | O58: 0 | P58: 0
B59: ='Hot mix emission factors'!I56 -> 2-Methylnaphthalene | F59: =IF($F$5="no",'Hot mix emission factors'!$J$12,IF($F$5="yes",(0.00141*(-$E$6)*EXP((0.0251)*($E$7+460)-20.43)),IF($F$5="Choose one",0)))*'Hot mix emission factors'!J56 -> 0 | G59: 0 | H59: 0 | J59: ='Hot mix emission factors'!I56 -> 2-Methylnaphthalene | N59: =IF($F$5="no",'Hot mix emission factors'!$L$12,IF($F$5="yes",(0.00141*(-$E$6)*EXP((0.0251)*($E$7+460)-20.43)),IF($F$5="Choose one",0)))*'Hot mix emission factors'!L56 -> 0 | O59: 0 | P59: 0
B60: ='Hot mix emission factors'!I57 -> Naphthalene | F60: =IF($F$5="no",'Hot mix emission factors'!$J$12,IF($F$5="yes",(0.00141*(-$E$6)*EXP((0.0251)*($E$7+460)-20.43)),IF($F$5="Choose one",0)))*'Hot mix emission factors'!J57 -> 0 | G60: 0 | H60: 0 | J60: ='Hot mix emission factors'!I57 -> Naphthalene | N60: =IF($F$5="no",'Hot mix emission factors'!$L$12,IF($F$5="yes",(0.00141*(-$E$6)*EXP((0.0251)*($E$7+460)-20.43)),IF($F$5="Choose one",0)))*'Hot mix emission factors'!L57 -> 0 | O60: 0 | P60: 0
B61: ='Hot mix emission factors'!I58 -> Perylene | F61: =IF($F$5="no",'Hot mix emission factors'!$J$12,IF($F$5="yes",(0.00141*(-$E$6)*EXP((0.0251)*($E$7+460)-20.43)),IF($F$5="Choose one",0)))*'Hot mix emission factors'!J58 -> 0 | G61: 0 | H61: 0 | J61: ='Hot mix emission factors'!I58 -> Perylene | N61: =IF($F$5="no",'Hot mix emission factors'!$L$12,IF($F$5="yes",(0.00141*(-$E$6)*EXP((0.0251)*($E$7+460)-20.43)),IF($F$5="Choose one",0)))*'Hot mix emission factors'!L58 -> 0 | O61: 0 | P61: 0
B62: ='Hot mix emission factors'!I59 -> Phenanthrene | F62: =IF($F$5="no",'Hot mix emission factors'!$J$12,IF($F$5="yes",(0.00141*(-$E$6)*EXP((0.0251)*($E$7+460)-20.43)),IF($F$5="Choose one",0)))*'Hot mix emission factors'!J59 -> 0 | G62: 0 | H62: 0 | J62: ='Hot mix emission factors'!I59 -> Phenanthrene | N62: =IF($F$5="no",'Hot mix emission factors'!$L$12,IF($F$5="yes",(0.00141*(-$E$6)*EXP((0.0251)*($E$7+460)-20.43)),IF($F$5="Choose one",0)))*'Hot mix emission factors'!L59 -> 0 | O62: 0 | P62: 0
B63: ='Hot mix emission factors'!I60 -> Pyrene | F63: =IF($F$5="no",'Hot mix emission factors'!$J$12,IF($F$5="yes",(0.00141*(-$E$6)*EXP((0.0251)*($E$7+460)-20.43)),IF($F$5="Choose one",0)))*'Hot mix emission factors'!J60 -> 0 | G63: 0 | H63: 0 | J63: ='Hot mix emission factors'!I60 -> Pyrene | N63: =IF($F$5="no",'Hot mix emission factors'!$L$12,IF($F$5="yes",(0.00141*(-$E$6)*EXP((0.0251)*($E$7+460)-20.43)),IF($F$5="Choose one",0)))*'Hot mix emission factors'!L60 -> 0 | O63: 0 | P63: 0
B64: 1See hot mix emission factors tab for references | J64: 1See hot mix emission factors tab for references
B65: 2 CO2e = carbon dioxide equivalents for CH4 = 25; Global Warming Potential from 40 CFR Part 98, Subpart A, Table A-1 | J65: 2 CO2e = carbon dioxide equivalents for CH4 = 25; Global Warming Potential from 40 CFR Part 98, Subpart A, Table A-1
J66: 3 Emission factor cells without content (blank orange cell) means no data provided in AP-42.

Sheet Generator
K1: =Instructions!$O$3 -> p-sbap5-20 • 4/8/19
B2: Air emissions from internal combustion engines
B3: Reciprocating internal combustion engine (RICE)
B5: Engine and fuel type | E5: Choose one | G5: Facility identifier for engine | I5: Generator
B6: Engine use | E6: Choose one | F6: If emergency engine is used for peak-shaving or contracted for >15 hr/yr, choose 'Routine.'
B7: =IF(E5='Data Validation'!D6," ",IF(OR(E5=rd,E5=rg),"Rated mechanical output",IF(OR(E5=ngl,OR(E5=ngr,OR(E5=tng,E5=ng2l))),"Rated fuel input"," "))) ->  | E7: 0 | F7: =IF(B7=" "," ",IF(B7="Rated mechanical output",'Data Validation'!D21,IF(B7="Rated fuel input",'Data Validation'!D22))) -> 
B8: Choose one to calculate actual emissions | E8: 0 | F8: =IF(B8='Data Validation'!D33," ",IF(B8='Data Validation'!D34,'Data Validation'!D29,IF(AND(B8='Data Validation'!D35,OR(E5=tng,OR(E5=ngl,OR(E5=ngr,OR(E5=ng2l))))),'Data Validation'!D30,IF(AND(B8='Data Validation'!D35,OR(E5=rd,OR(E5=rg))),'Data Validation'!D31," ")))) -> 
B9: =IF(F7=" "," ",IF(F7='Data Validation'!D21,'Data Validation'!D25,IF(F7='Data Validation'!D22,'Data Validation'!D26))) ->  | E9: =IF(E5='Data Validation'!A6," ",IF(E5=rd,'Engine Emission Factors'!F47,IF(E5=rg,'Engine Emission Factors'!F48,IF(OR(E5=ngl,OR(E5=ngr,OR(E5=tng,E5=ng2l))),'Engine Emission Factors'!G46," ")))) ->  | F9: =IF(B9=" "," ",IF(B9='Data Validation'!D25,"(Btu/HP-hr)",IF(B9='Data Validation'!D26,"Btu/scf"))) -> 
B10: =IF(E5='Data Validation'!D6," ",IF(E5=rd,"Heat value of fuel",IF(E5=rg,"Heat value of fuel"," "))) ->  | D10: Heat value of fuel | E10: =IF(E5=rd,'Engine Emission Factors'!H47,IF(E5=rg,'Engine Emission Factors'!H48," ")) ->  | F10: =IF(E5='Data Validation'!D6," ",IF(E5=rd,"(Btu/gal)",IF(E5=rg,"(Btu/gal)"," "))) -> 
B11: Sulfur content of the fuel | E11: =IF(AND(E5=rd,E7>=600),"0.0015",IF(E5=tng,"0.00065","NA")) -> NA | F11: %
B13: Internal combustion engine potential and actual emissions
C14: a | D14: b | E14: c | F14: d | G14: e
B15: Pollutant | C15: GWP1 | D15: Engine Rated Output | E15: Actual Annual Throughput | F15: Potential Annual Hours3 | G15: Emission Factor | H15: Potential Emissions | I15: Actual Emissions | K15: Insignificant Activity4 Limits
D17: (MMBtu) | E17: (MMBtu/yr) | F17: (hr/yr) | G17: (lbs/MMBtu) | H17: (ton/yr) | I17: (tons/yr) | K17: (tons/yr)
D18: =IF(E5=select,0,IF(OR(E5=rd,E5=rg),(E7*E9/10^6),IF(OR(E5=ngl,OR(E5=ngr,OR(E5=tng,E5=ng2l))),(E7*E9/(10^6))))) -> 0 | E18: =IF(F8='Data Validation'!D30,E8,IF(AND(F8='Data Validation'!D31,E5=rd),(('Engine Emission Factors'!H47*E8)/1000000),IF(AND(F8='Data Validation'!D31,E5=rg),(('Engine Emission Factors'!H48*E8)/1000000),IF(F8='Data Validation'!D29,(E8*D18),IF(F8=" ",0))))) -> 0 | F18: =IF($E$6=so,0,IF($E$6=routine,8760,IF($E$6=emer,500))) -> 0 | G18: by pollutant | H18: (b * d * e) / 2000 | I18: (b * c * e) / 2000
B19: Criteria Air Pollutants | I19: see engine emission factors tab | J19: =SUM(J20:J26) -> 6
B20: PM | G20: =IF($E$5=rd,IF($E$7>=600,'Engine Emission Factors'!$C4,'Engine Emission Factors'!$B4),IF($E$5=rg,'Engine Emission Factors'!$E4,IF($E$5=tng,'Engine Emission Factors'!$D4,IF($E$5=ngr,'Engine Emission Factors'!$F4,IF($E$5=ngl,'Engine Emission Factors'!$G4,IF($E$5=ng2l,'Engine Emission Factors'!$H4,IF($E$5=select,'Engine Emission Factors'!$I5))))))) -> 0 | H20: =$D$18*$F$18*$G20/2000 -> 0 | I20: =($D$18*$E$18*$G20)/2000 -> 0 | J20: =IF(K20>H20,1,0) -> 1 | K20: 1
B21: PM10 | G21: =IF($E$5=rd,IF($E$7>=600,'Engine Emission Factors'!$C5,'Engine Emission Factors'!$B5),IF($E$5=rg,'Engine Emission Factors'!$E5,IF($E$5=tng,'Engine Emission Factors'!$D5,IF($E$5=ngr,'Engine Emission Factors'!$F5,IF($E$5=ngl,'Engine Emission Factors'!$G5,IF($E$5=ng2l,'Engine Emission Factors'!$H5,IF($E$5=select,'Engine Emission Factors'!$I6))))))) -> 0 | H21: =$D$18*$F$18*$G21/2000 -> 0 | I21: =($D$18*$E$18*$G21)/2000 -> 0 | J21: =IF(K21>H21,1,0) -> 1 | K21: 1
B22: PM2.5 | G22: =IF($E$5=rd,IF($E$7>=600,'Engine Emission Factors'!$C6,'Engine Emission Factors'!$B6),IF($E$5=rg,'Engine Emission Factors'!$E6,IF($E$5=tng,'Engine Emission Factors'!$D6,IF($E$5=ngr,'Engine Emission Factors'!$F6,IF($E$5=ngl,'Engine Emission Factors'!$G6,IF($E$5=ng2l,'Engine Emission Factors'!$H6,IF($E$5=select,'Engine Emission Factors'!$I7))))))) -> 0 | H22: 0 | I22: 0
B23: SOx | G23: =IF($E$5=rd,IF($E$7>=600,'Engine Emission Factors'!$C7,'Engine Emission Factors'!$B7),IF($E$5=rg,'Engine Emission Factors'!$E7,IF($E$5=tng,'Engine Emission Factors'!$D7,IF($E$5=ngr,'Engine Emission Factors'!$F7,IF($E$5=ngl,'Engine Emission Factors'!$G7,IF($E$5=ng2l,'Engine Emission Factors'!$H7,IF($E$5=select,'Engine Emission Factors'!$I8))))))) -> 0 | H23: 0 | I23: 0 | J23: 1 | K23: 1
B24: NOx | G24: =IF($E$5=rd,IF($E$7>=600,'Engine Emission Factors'!$C8,'Engine Emission Factors'!$B8),IF($E$5=rg,'Engine Emission Factors'!$E8,IF($E$5=tng,'Engine Emission Factors'!$D8,IF($E$5=ngr,'Engine Emission Factors'!$F8,IF($E$5=ngl,'Engine Emission Factors'!$G8,IF($E$5=ng2l,'Engine Emission Factors'!$H8,IF($E$5=select,'Engine Emission Factors'!$I9))))))) -> 0 | H24: 0 | I24: 0 | J24: 1 | K24: 1
B25: VOC | G25: =IF($E$5=rd,IF($E$7>=600,'Engine Emission Factors'!$C9,'Engine Emission Factors'!$B9),IF($E$5=rg,'Engine Emission Factors'!$E9,IF($E$5=tng,'Engine Emission Factors'!$D9,IF($E$5=ngr,'Engine Emission Factors'!$F9,IF($E$5=ngl,'Engine Emission Factors'!$G9,IF($E$5=ng2l,'Engine Emission Factors'!$H9,IF($E$5=select,'Engine Emission Factors'!$I10))))))) -> 0 | H25: 0 | I25: 0 | J25: 1 | K25: 1
B26: CO | G26: =IF($E$5=rd,IF($E$7>=600,'Engine Emission Factors'!$C10,'Engine Emission Factors'!$B10),IF($E$5=rg,'Engine Emission Factors'!$E10,IF($E$5=tng,'Engine Emission Factors'!$D10,IF($E$5=ngr,'Engine Emission Factors'!$F10,IF($E$5=ngl,'Engine Emission Factors'!$G10,IF($E$5=ng2l,'Engine Emission Factors'!$H10,IF($E$5=select,'Engine Emission Factors'!$I11))))))) -> 0 | H26: 0 | I26: 0 | J26: 1 | K26: 2
B27: Lead | G27: n/a | J27: 0
B28: Greenhouse Gas Emissions | I28: Source: 40 CFR 98, Subp. C, Table C-1 and C-2 | J28: 0
B29: CO2 2 | C29: 1 | G29: =IF($E$5=rd,IF($E$7>=600,'Engine Emission Factors'!$C12,'Engine Emission Factors'!$B12),IF($E$5=rg,'Engine Emission Factors'!$E12,IF($E$5=tng,'Engine Emission Factors'!$D12,IF($E$5=ngr,'Engine Emission Factors'!$F12,IF($E$5=ngl,'Engine Emission Factors'!$G12,IF($E$5=ng2l,'Engine Emission Factors'!$H12,IF($E$5=select,'Engine Emission Factors'!$I12))))))) -> 0 | H29: =$D$18*$F$18*$G29/2000 -> 0 | I29: =($D$18*$E$18*$G29)/2000 -> 0 | J29: 0
B30: CH4 2 | C30: 25 | G30: =IF($E$5=rd,IF($E$7>=600,'Engine Emission Factors'!$C13,'Engine Emission Factors'!$B13),IF($E$5=rg,'Engine Emission Factors'!$E13,IF($E$5=tng,'Engine Emission Factors'!$D13,IF($E$5=ngr,'Engine Emission Factors'!$F13,IF($E$5=ngl,'Engine Emission Factors'!$G13,IF($E$5=ng2l,'Engine Emission Factors'!$H13,IF($E$5=select,'Engine Emission Factors'!$I13))))))) -> 0 | H30: =$D$18*$F$18*$G30/2000 -> 0 | I30: =($D$18*$E$18*$G30)/2000 -> 0 | J30: 0
B31: N2O 2 | C31: 298 | G31: =IF($E$5=rd,IF($E$7>=600,'Engine Emission Factors'!$C14,'Engine Emission Factors'!$B14),IF($E$5=rg,'Engine Emission Factors'!$E14,IF($E$5=tng,'Engine Emission Factors'!$D14,IF($E$5=ngr,'Engine Emission Factors'!$F14,IF($E$5=ngl,'Engine Emission Factors'!$G14,IF($E$5=ng2l,'Engine Emission Factors'!$H14,IF($E$5=select,'Engine Emission Factors'!$I14))))))) -> 0 | H31: =$D$18*$F$18*$G31/2000 -> 0 | I31: =($D$18*$E$18*$G31)/2000 -> 0 | J31: 0
F32: GHG total (CO2e) 2 | H32: =(C29*H29)+(C30*H30)+(C31*H31) -> 0 | I32: =(C29*I29)+(C30*I30)+(C31*I31) -> 0 | J32: 1 | K32: 1000
B33: Hazardous Air Pollutants | G33: see engine emission factors tab
B34: 1,1,2,2-tetrachloroethane | G34: =IF($E$5=rd,IF($E$7>=600,'Engine Emission Factors'!$C16,'Engine Emission Factors'!$B16),IF($E$5=rg,'Engine Emission Factors'!$E16,IF($E$5=tng,'Engine Emission Factors'!$D16,IF($E$5=ngr,'Engine Emission Factors'!$F16,IF($E$5=ngl,'Engine Emission Factors'!$G16,IF($E$5=ng2l,'Engine Emission Factors'!$H16,IF($E$5=select,'Engine Emission Factors'!$I16))))))) -> 0 | H34: =$D$18*$F$18*$G34/2000 -> 0 | I34: =($D$18*$E$18*$G34)/2000 -> 0
B35: 1,1,2-trichloroethane | G35: =IF($E$5=rd,IF($E$7>=600,'Engine Emission Factors'!$C17,'Engine Emission Factors'!$B17),IF($E$5=rg,'Engine Emission Factors'!$E17,IF($E$5=tng,'Engine Emission Factors'!$D17,IF($E$5=ngr,'Engine Emission Factors'!$F17,IF($E$5=ngl,'Engine Emission Factors'!$G17,IF($E$5=ng2l,'Engine Emission Factors'!$H17,IF($E$5=select,'Engine Emission Factors'!$I17))))))) -> 0 | H35: 0 | I35: =($D$18*$E$18*$G35)/2000 -> 0
B36: 1,3-butadiene | G36: =IF($E$5=rd,IF($E$7>=600,'Engine Emission Factors'!$C18,'Engine Emission Factors'!$B18),IF($E$5=rg,'Engine Emission Factors'!$E18,IF($E$5=tng,'Engine Emission Factors'!$D18,IF($E$5=ngr,'Engine Emission Factors'!$F18,IF($E$5=ngl,'Engine Emission Factors'!$G18,IF($E$5=ng2l,'Engine Emission Factors'!$H18,IF($E$5=select,'Engine Emission Factors'!$I18))))))) -> 0 | H36: 0 | I36: 0
B37: 1,3-dichloropropene | G37: =IF($E$5=rd,IF($E$7>=600,'Engine Emission Factors'!$C19,'Engine Emission Factors'!$B19),IF($E$5=rg,'Engine Emission Factors'!$E19,IF($E$5=tng,'Engine Emission Factors'!$D19,IF($E$5=ngr,'Engine Emission Factors'!$F19,IF($E$5=ngl,'Engine Emission Factors'!$G19,IF($E$5=ng2l,'Engine Emission Factors'!$H19,IF($E$5=select,'Engine Emission Factors'!$I19))))))) -> 0 | H37: 0 | I37: 0
B38: Acetaldehyde | G38: =IF($E$5=rd,IF($E$7>=600,'Engine Emission Factors'!$C20,'Engine Emission Factors'!$B20),IF($E$5=rg,'Engine Emission Factors'!$E20,IF($E$5=tng,'Engine Emission Factors'!$D20,IF($E$5=ngr,'Engine Emission Factors'!$F20,IF($E$5=ngl,'Engine Emission Factors'!$G20,IF($E$5=ng2l,'Engine Emission Factors'!$H20,IF($E$5=select,'Engine Emission Factors'!$I20))))))) -> 0 | H38: 0 | I38: 0
B39: Acrolein | G39: =IF($E$5=rd,IF($E$7>=600,'Engine Emission Factors'!$C21,'Engine Emission Factors'!$B21),IF($E$5=rg,'Engine Emission Factors'!$E21,IF($E$5=tng,'Engine Emission Factors'!$D21,IF($E$5=ngr,'Engine Emission Factors'!$F21,IF($E$5=ngl,'Engine Emission Factors'!$G21,IF($E$5=ng2l,'Engine Emission Factors'!$H21,IF($E$5=select,'Engine Emission Factors'!$I21))))))) -> 0 | H39: 0 | I39: 0
B40: Benzene | G40: =IF($E$5=rd,IF($E$7>=600,'Engine Emission Factors'!$C22,'Engine Emission Factors'!$B22),IF($E$5=rg,'Engine Emission Factors'!$E22,IF($E$5=tng,'Engine Emission Factors'!$D22,IF($E$5=ngr,'Engine Emission Factors'!$F22,IF($E$5=ngl,'Engine Emission Factors'!$G22,IF($E$5=ng2l,'Engine Emission Factors'!$H22,IF($E$5=select,'Engine Emission Factors'!$I22))))))) -> 0 | H40: 0 | I40: 0
B41: Biphenyl | G41: =IF($E$5=rd,IF($E$7>=600,'Engine Emission Factors'!$C23,'Engine Emission Factors'!$B23),IF($E$5=rg,'Engine Emission Factors'!$E23,IF($E$5=tng,'Engine Emission Factors'!$D23,IF($E$5=ngr,'Engine Emission Factors'!$F23,IF($E$5=ngl,'Engine Emission Factors'!$G23,IF($E$5=ng2l,'Engine Emission Factors'!$H23,IF($E$5=select,'Engine Emission Factors'!$I23))))))) -> 0 | H41: 0 | I41: 0
B42: Carbon tetrachloride | G42: =IF($E$5=rd,IF($E$7>=600,'Engine Emission Factors'!$C24,'Engine Emission Factors'!$B24),IF($E$5=rg,'Engine Emission Factors'!$E24,IF($E$5=tng,'Engine Emission Factors'!$D24,IF($E$5=ngr,'Engine Emission Factors'!$F24,IF($E$5=ngl,'Engine Emission Factors'!$G24,IF($E$5=ng2l,'Engine Emission Factors'!$H24,IF($E$5=select,'Engine Emission Factors'!$I24))))))) -> 0 | H42: 0 | I42: 0
B43: Chlorobenzene | G43: =IF($E$5=rd,IF($E$7>=600,'Engine Emission Factors'!$C25,'Engine Emission Factors'!$B25),IF($E$5=rg,'Engine Emission Factors'!$E25,IF($E$5=tng,'Engine Emission Factors'!$D25,IF($E$5=ngr,'Engine Emission Factors'!$F25,IF($E$5=ngl,'Engine Emission Factors'!$G25,IF($E$5=ng2l,'Engine Emission Factors'!$H25,IF($E$5=select,'Engine Emission Factors'!$I25))))))) -> 0 | H43: 0 | I43: 0
B44: Chloroform | G44: =IF($E$5=rd,IF($E$7>=600,'Engine Emission Factors'!$C26,'Engine Emission Factors'!$B26),IF($E$5=rg,'Engine Emission Factors'!$E26,IF($E$5=tng,'Engine Emission Factors'!$D26,IF($E$5=ngr,'Engine Emission Factors'!$F26,IF($E$5=ngl,'Engine Emission Factors'!$G26,IF($E$5=ng2l,'Engine Emission Factors'!$H26,IF($E$5=select,'Engine Emission Factors'!$I26))))))) -> 0 | H44: 0 | I44: 0
B45: Ethylbenzene | G45: =IF($E$5=rd,IF($E$7>=600,'Engine Emission Factors'!$C27,'Engine Emission Factors'!$B27),IF($E$5=rg,'Engine Emission Factors'!$E27,IF($E$5=tng,'Engine Emission Factors'!$D27,IF($E$5=ngr,'Engine Emission Factors'!$F27,IF($E$5=ngl,'Engine Emission Factors'!$G27,IF($E$5=ng2l,'Engine Emission Factors'!$H27,IF($E$5=select,'Engine Emission Factors'!$I27))))))) -> 0 | H45: 0 | I45: 0
B46: Ethylene dibromide | G46: =IF($E$5=rd,IF($E$7>=600,'Engine Emission Factors'!$C28,'Engine Emission Factors'!$B28),IF($E$5=rg,'Engine Emission Factors'!$E28,IF($E$5=tng,'Engine Emission Factors'!$D28,IF($E$5=ngr,'Engine Emission Factors'!$F28,IF($E$5=ngl,'Engine Emission Factors'!$G28,IF($E$5=ng2l,'Engine Emission Factors'!$H28,IF($E$5=select,'Engine Emission Factors'!$I28))))))) -> 0 | H46: 0 | I46: 0
B47: Formaldehyde | G47: =IF($E$5=rd,IF($E$7>=600,'Engine Emission Factors'!$C29,'Engine Emission Factors'!$B29),IF($E$5=rg,'Engine Emission Factors'!$E29,IF($E$5=tng,'Engine Emission Factors'!$D29,IF($E$5=ngr,'Engine Emission Factors'!$F29,IF($E$5=ngl,'Engine Emission Factors'!$G29,IF($E$5=ng2l,'Engine Emission Factors'!$H29,IF($E$5=select,'Engine Emission Factors'!$I29))))))) -> 0 | H47: 0 | I47: 0
B48: Hexane | G48: =IF($E$5=rd,IF($E$7>=600,'Engine Emission Factors'!$C30,'Engine Emission Factors'!$B30),IF($E$5=rg,'Engine Emission Factors'!$E30,IF($E$5=tng,'Engine Emission Factors'!$D30,IF($E$5=ngr,'Engine Emission Factors'!$F30,IF($E$5=ngl,'Engine Emission Factors'!$G30,IF($E$5=ng2l,'Engine Emission Factors'!$H30,IF($E$5=select,'Engine Emission Factors'!$I30))))))) -> 0 | H48: 0 | I48: 0
B49: Methanol | G49: =IF($E$5=rd,IF($E$7>=600,'Engine Emission Factors'!$C31,'Engine Emission Factors'!$B31),IF($E$5=rg,'Engine Emission Factors'!$E31,IF($E$5=tng,'Engine Emission Factors'!$D31,IF($E$5=ngr,'Engine Emission Factors'!$F31,IF($E$5=ngl,'Engine Emission Factors'!$G31,IF($E$5=ng2l,'Engine Emission Factors'!$H31,IF($E$5=select,'Engine Emission Factors'!$I31))))))) -> 0 | H49: 0 | I49: 0
B50: Methylene chloride | G50: =IF($E$5=rd,IF($E$7>=600,'Engine Emission Factors'!$C32,'Engine Emission Factors'!$B32),IF($E$5=rg,'Engine Emission Factors'!$E32,IF($E$5=tng,'Engine Emission Factors'!$D32,IF($E$5=ngr,'Engine Emission Factors'!$F32,IF($E$5=ngl,'Engine Emission Factors'!$G32,IF($E$5=ng2l,'Engine Emission Factors'!$H32,IF($E$5=select,'Engine Emission Factors'!$I32))))))) -> 0 | H50: 0 | I50: 0
B51: Naphthalene | G51: =IF($E$5=rd,IF($E$7>=600,'Engine Emission Factors'!$C33,'Engine Emission Factors'!$B33),IF($E$5=rg,'Engine Emission Factors'!$E33,IF($E$5=tng,'Engine Emission Factors'!$D33,IF($E$5=ngr,'Engine Emission Factors'!$F33,IF($E$5=ngl,'Engine Emission Factors'!$G33,IF($E$5=ng2l,'Engine Emission Factors'!$H33,IF($E$5=select,'Engine Emission Factors'!$I33))))))) -> 0 | H51: 0 | I51: 0
B52: PAH | G52: =IF($E$5=rd,IF($E$7>=600,'Engine Emission Factors'!$C34,'Engine Emission Factors'!$B34),IF($E$5=rg,'Engine Emission Factors'!$E34,IF($E$5=tng,'Engine Emission Factors'!$D34,IF($E$5=ngr,'Engine Emission Factors'!$F34,IF($E$5=ngl,'Engine Emission Factors'!$G34,IF($E$5=ng2l,'Engine Emission Factors'!$H34,IF($E$5=select,'Engine Emission Factors'!$I34))))))) -> 0 | H52: 0 | I52: 0
B53: Phenol | G53: =IF($E$5=rd,IF($E$7>=600,'Engine Emission Factors'!$C35,'Engine Emission Factors'!$B35),IF($E$5=rg,'Engine Emission Factors'!$E35,IF($E$5=tng,'Engine Emission Factors'!$D35,IF($E$5=ngr,'Engine Emission Factors'!$F35,IF($E$5=ngl,'Engine Emission Factors'!$G35,IF($E$5=ng2l,'Engine Emission Factors'!$H35,IF($E$5=select,'Engine Emission Factors'!$I35))))))) -> 0 | H53: 0 | I53: 0
B54: Styrene | G54: =IF($E$5=rd,IF($E$7>=600,'Engine Emission Factors'!$C36,'Engine Emission Factors'!$B36),IF($E$5=rg,'Engine Emission Factors'!$E36,IF($E$5=tng,'Engine Emission Factors'!$D36,IF($E$5=ngr,'Engine Emission Factors'!$F36,IF($E$5=ngl,'Engine Emission Factors'!$G36,IF($E$5=ng2l,'Engine Emission Factors'!$H36,IF($E$5=select,'Engine Emission Factors'!$I36))))))) -> 0 | H54: 0 | I54: 0
B55: Tetrachloroethane | G55: =IF($E$5=rd,IF($E$7>=600,'Engine Emission Factors'!$C37,'Engine Emission Factors'!$B37),IF($E$5=rg,'Engine Emission Factors'!$E37,IF($E$5=tng,'Engine Emission Factors'!$D37,IF($E$5=ngr,'Engine Emission Factors'!$F37,IF($E$5=ngl,'Engine Emission Factors'!$G37,IF($E$5=ng2l,'Engine Emission Factors'!$H37,IF($E$5=select,'Engine Emission Factors'!$I37))))))) -> 0 | H55: 0 | I55: 0
B56: Toluene | G56: =IF($E$5=rd,IF($E$7>=600,'Engine Emission Factors'!$C38,'Engine Emission Factors'!$B38),IF($E$5=rg,'Engine Emission Factors'!$E38,IF($E$5=tng,'Engine Emission Factors'!$D38,IF($E$5=ngr,'Engine Emission Factors'!$F38,IF($E$5=ngl,'Engine Emission Factors'!$G38,IF($E$5=ng2l,'Engine Emission Factors'!$H38,IF($E$5=select,'Engine Emission Factors'!$I38))))))) -> 0 | H56: 0 | I56: 0
B57: Vinyl chloride | G57: =IF($E$5=rd,IF($E$7>=600,'Engine Emission Factors'!$C39,'Engine Emission Factors'!$B39),IF($E$5=rg,'Engine Emission Factors'!$E39,IF($E$5=tng,'Engine Emission Factors'!$D39,IF($E$5=ngr,'Engine Emission Factors'!$F39,IF($E$5=ngl,'Engine Emission Factors'!$G39,IF($E$5=ng2l,'Engine Emission Factors'!$H39,IF($E$5=select,'Engine Emission Factors'!$I39))))))) -> 0 | H57: 0 | I57: 0
B58: Xylene | G58: =IF($E$5=rd,IF($E$7>=600,'Engine Emission Factors'!$C40,'Engine Emission Factors'!$B40),IF($E$5=rg,'Engine Emission Factors'!$E40,IF($E$5=tng,'Engine Emission Factors'!$D40,IF($E$5=ngr,'Engine Emission Factors'!$F40,IF($E$5=ngl,'Engine Emission Factors'!$G40,IF($E$5=ng2l,'Engine Emission Factors'!$H40,IF($E$5=select,'Engine Emission Factors'!$I40))))))) -> 0 | H58: 0 | I58: 0
F59: HAP total | H59: =SUM(H34:H58) -> 0 | I59: =SUM(I34:I58) -> 0
B60: 1 Global Warming Potential from 40 CFR Part 98, Subpart A, Table A-1 | F60: 4 See information on insignificant activities at Minn. R. 7007.1300 and on the 'Permits & Requirements' tab.
B61: 2 CO2e = carbon dioxide equivalents
B62: 3 Routine = 24 hr/day * 365 day/yr or 8760 hr/yr; Emergency = 500 hr/yr | F62: Minn. R. 7007.1300

Sheet Natural gas (auxilary heat)
I1: =Instructions!$O$3 -> p-sbap5-20 • 4/8/19
B2: Air emissions from natural gas combustion | M2: Tip: How to use this calculator
B3: Natural gas combustion (less than 100 million Btu per hour) | M3: If you have… | O3: For potential emissions | Q3: For actual emissions
B5: If you have a boiler with a rating of more than 100 million Btu per hour, different emission factors must be used (see EPA AP-42 Chapter 1.4). | M5: One process/heating unit | O5: Enter maximum rated heat input | Q5: Enter amount of fuel burned or actual operation hours
B7: What is the total maximum rated heat input for the equipment? | G7: 0 | H7: Btu per hour | I7: (Check your units!) | M7: More than one process/heating unit | O7: Enter the total maximum rated heat input of all units, combined | Q7: Enter amount of fuel burned. Do not use operation hours.
B8: In the previous 12 months, how many | E8: Choose one | G8: 0 | H8: =IF(E8='Data Validation'!D40,"",IF(E8='Data Validation'!D41,"hours/year",IF(E8='Data Validation'!D42,"cu ft/year"))) -> 
M9: A unit that can burn more than one fuel type | O9: Calculate for both fuel types. The highest ton/yr per pollutant is to be used for potential emissions | Q9: Enter amount of each type of fuel burned.
B10: Natural gas potential and actual emissions
C11: a | D11: b | E11: c | F11: d | G11: e
B12: Pollutant | C12: GWP1 | D12: Hourly natural gas usage | E12: Actual natural gas burned | F12: Hours in a Year | G12: Emission Factor | H12: Potential Emissions | I12: Actual Emissions | K12: Insignificant Activity3 Limits
D13: (cu ft/hr) | E13: (cu ft/yr) | F13: (hr/yr) | G13: (lbs/cu ft) | H13: (ton/yr) | I13: (tons/yr) | K13: (tons/yr)
D14: (Btu/hr) / (1050 Btu/cu ft) | F14: 24 hrs/day * 365 days/yr | H14: (b * d * e) / 2000 | I14: ( c * e) / 2000
D15: =G7/1050 -> 0 | E15: =IF(E8='Data Validation'!D40,0,IF($E$8='Data Validation'!D41,(D15*G8),IF($E$8='Data Validation'!D42,G8))) -> 0 | F15: 8760 | G15: by pollutant
B16: Criteria Air Pollutants | I16: Source: EPA AP-42 Chapter 1.5 | J16: =SUM(J17:J29) -> 6
B17: PM | G17: 7.6e-06 | H17: =$D$15*$F$15*$G17/2000 -> 0 | I17: =$E$15*$G17/2000 -> 0 | J17: =IF(K17>H17,1,0) -> 1 | K17: 1
B18: PM10 | G18: =G17 -> 7.6e-06 | H18: 0 | I18: =$E$15*$G18/2000 -> 0 | J18: =IF(K18>H18,1,0) -> 1 | K18: 1
B19: PM2.5 | G19: =G18 -> 7.6e-06 | H19: 0 | I19: 0
B20: SOx | G20: 6e-07 | H20: 0 | I20: 0 | J20: 1 | K20: 1
B21: NOx | G21: 0.0001 | H21: 0 | I21: 0 | J21: 1 | K21: 1
B22: VOC | G22: 5.5e-06 | H22: 0 | I22: 0 | J22: 1 | K22: 1
B23: CO | G23: 8.4e-05 | H23: 0 | I23: 0 | J23: 1 | K23: 2
B24: Lead | G24: 5e-10 | H24: 0 | I24: 0 | J24: 0
B25: Greenhouse Gas Emissions | I25: Source: 40 CFR 98, Subp. C, Table C-1 and C-2 | J25: 0
B26: CO2 2 | C26: 1 | G26: =53.06/1000000*1026/0.453592 -> 0.1200187834 | H26: =$D$15*$F$15*$G26/2000 -> 0 | I26: =$E$15*$G26/2000 -> 0 | J26: 0
B27: CH4 2 | C27: 25 | G27: =(10^-3)/(10^6)*1026/0.453592 -> 2.261944655e-06 | H27: =$D$15*$F$15*$G27/2000 -> 0 | I27: =$E$15*$G27/2000 -> 0 | J27: 0
B28: N2O 2 | C28: 298 | G28: =(10^-4)/(10^6)*1026/0.453592 -> 2.261944655e-07 | H28: =$D$15*$F$15*$G28/2000 -> 0 | I28: 0 | J28: 0
F29: GHG Total (CO2e) 2 | H29: =(C26*H26)+(C27*H27)+(C28*H28) -> 0 | I29: =(C26*I26)+(C27*I27)+(C28*I28) -> 0 | K29: 1000
B30: Hazardous Air Pollutants | I30: Source: EPA AP-42 Chapter 1.4
B31: Benzene | G31: =0.0021/10^6 -> 2.1e-09 | H31: =$D$15*$F$15*$G31/2000 -> 0 | I31: =$E$15*$G31/2000 -> 0
B32: Formaldehyde | G32: =0.075/10^6 -> 7.5e-08 | H32: 0 | I32: 0
B33: Hexane | G33: =1.8/1000000 -> 1.8e-06 | H33: 0 | I33: 0
B34: Naphthalene | G34: 6.1e-10 | H34: 0 | I34: 0
B35: Toluene | G35: 3.4e-09 | H35: 0 | I35: 0
B36: Arsenic | G36: 2e-10 | H36: 0 | I36: 0
B37: Beryllium | G37: 1.2e-11 | H37: 0 | I37: 0
B38: Cadmium | G38: 1.1e-09 | H38: 0 | I38: 0
B39: Chromium | G39: 1.4e-09 | H39: 0 | I39: 0
B40: Cobalt | G40: 8.4e-11 | H40: 0 | I40: 0
B41: Manganese | G41: 3.8e-10 | H41: 0 | I41: 0
B42: Mercury | G42: 2.6e-10 | H42: 0 | I42: 0
B43: Nickel | G43: 2.1e-09 | H43: 0 | I43: 0
B44: Selenium | G44: 2.4e-11 | H44: 0 | I44: 0
F45: HAP total | H45: =SUM(H31:H44) -> 0 | I45: =SUM(I31:I44) -> 0
B46: 1 Global Warming Potential from 40 CFR Part 98, Subpart A, Table A-1
B47: 2 CO2e = carbon dioxide equivalents
B48: 3 See insignificant activities at Minn. R. 7007.1300 and on the 'Permits & Requirements' tab. | G48: Minn. R. 7007.1300

Sheet Propane (auxilary heat)
I1: =Instructions!$O$3 -> p-sbap5-20 • 4/8/19
B2: Air emissions from burning propane | M2: Tip: How to use this calculator
B3: Propane combustion | M3: If you have… | O3: For potential emissions | Q3: For actual emissions
M5: One process/heating unit | O5: Enter maximum rated heat input | Q5: Enter amount of fuel burned or actual operation hours
B6: What is the maximum rated heat input? | G6: 0 | H6: Btu per hour | I6: (Check your units!)
B7: In the previous 12 months, how many | E7: Choose one | G7: 0 | H7: =IF(E7='Data Validation'!D46," ",IF(E7='Data Validation'!D47,"hours/year",IF(E7='Data Validation'!D48,"gallons/year"))) ->  | M7: More than one process/heating unit | O7: Enter the total maximum rated heat input of all units, combined | Q7: Enter amount of fuel burned. Do not use operation hours.
B9: Sulfur content of propane | G9: 0.18 | H9: grains/100 cubic feet | M9: A unit that can burn more than one fuel type | O9: Calculate for both fuel types. The highest ton/yr per pollutant is to be used for potential emissions | Q9: Enter amount of each type of fuel burned.
B11: Propane potential and actual emissions
C12: a | D12: b | E12: c | F12: d | G12: e
B13: Pollutant | C13: GWP1 | D13: Hourly propane usage | E13: Actual propane burned | F13: Hours in a Year | G13: Emission Factor | H13: Potential Emissions | I13: Actual Emissions | K13: Insignificant Activity3 Limits
D14: (gal/hr) | E14: (gal/yr) | F14: (hr/yr) | G14: (lb/gal) | H14: (ton/yr) | I14: (tons/yr) | K14: (tons/yr)
D15: (Btu/hr) / (91500 Btu/gal) | F15: 24 hrs/day * 365 days/yr | H15: (b * d * e) / 2000 | I15: ( c * e ) / 2000
D16: =G6/91500 -> 0 | E16: =IF(E7='Data Validation'!D46,0,IF(E7='Data Validation'!D47,('Propane (auxilary heat)'!D16*'Propane (auxilary heat)'!G7),IF(E7='Data Validation'!D48,'Propane (auxilary heat)'!G7))) -> 0 | F16: 8760 | G16: by pollutant
B17: Criteria Air Pollutants | I17: Source: EPA AP-42 Chapter 1.5 | J17: =SUM(J18:J30) -> 6
B18: PM | G18: =0.7/1000 -> 0.0007 | H18: =$D$16*$F$16*$G18/2000 -> 0 | I18: =($E$16*$G18)/2000 -> 0 | J18: =IF(K18>H18,1,0) -> 1 | K18: 1
B19: PM10 | G19: =G18 -> 0.0007 | H19: 0 | I19: =($E$16*$G19)/2000 -> 0 | J19: =IF(K19>H19,1,0) -> 1 | K19: 1
B20: PM2.5 | G20: =G19 -> 0.0007 | H20: 0 | I20: 0
B21: SOx | G21: =0.001*G9 -> 0.00018 | H21: 0 | I21: 0 | J21: 1 | K21: 1
B22: NOx | G22: 0.013 | H22: 0 | I22: 0 | J22: 1 | K22: 1
B23: VOC | G23: 0.001 | H23: 0 | I23: 0 | J23: 1 | K23: 1
B24: CO | G24: 0.0075 | H24: 0 | I24: 0 | J24: 1 | K24: 2
B25: Lead | G25: n/a
B26: Greenhouse Gas Emissions | I26: Source: 40 CFR 98, Subp. C, Table C-1 and C-2
B27: CO2 | C27: 1 | G27: =61.46/1000000*91500/0.453592 -> 12.39790384 | H27: =$D$16*$F$16*$G27/2000 -> 0 | I27: =($E$16*$G27)/2000 -> 0
B28: CH4 | C28: 25 | G28: =(1*10^-3)/1000000*91500/0.453592 -> 0.0002017231344 | H28: =$D$16*$F$16*$G28/2000 -> 0 | I28: 0
B29: N2O | C29: 298 | G29: =(1*10^-4)/1000000*91500/0.453592 -> 2.017231344e-05 | H29: =$D$16*$F$16*$G29/2000 -> 0 | I29: 0
F30: GHG Total (CO2e) 2 | H30: =(C27*H27)+(C28*H28)+(C29*H29) -> 0 | I30: =(C27*I27)+(C28*I28)+(C29*I29) -> 0 | K30: 1000
B31: Hazardous Air Pollutants | I31: Source: EPA AP-42 Chapter 1.4
B32: Benzene | G32: =(0.0021/10^6)/2488*91500 -> 7.72307074e-08 | H32: =$D$16*$F$16*$G32/2000 -> 0 | I32: =($E$16*$G32)/2000 -> 0
B33: Formaldehyde | G33: =(0.075/10^6)/2488*91500 -> 2.75823955e-06 | H33: =$D$16*$F$16*$G33/2000 -> 0 | I33: 0
B34: Hexane | G34: =(1.8/1000000)/2488*91500 -> 6.61977492e-05 | H34: 0 | I34: 0
B35: Naphthalene | G35: =0.00000000061/2488*91500 -> 2.243368167e-08 | H35: 0 | I35: 0
B36: Toluene | G36: =0.0000000034/2488*91500 -> 1.250401929e-07 | H36: 0 | I36: 0
B37: Arsenic | G37: =0.0000000002/2488*91500 -> 7.355305466e-09 | H37: 0 | I37: 0
B38: Beryllium | G38: =0.000000000012/2488*91500 -> 4.41318328e-10 | H38: 0 | I38: 0
B39: Cadmium | G39: =0.0000000011/2488*91500 -> 4.045418006e-08 | H39: 0 | I39: 0
B40: Chromium | G40: =0.0000000014/2488*91500 -> 5.148713826e-08 | H40: 0 | I40: 0
B41: Cobalt | G41: =0.000000000084/2488*91500 -> 3.089228296e-09 | H41: 0 | I41: 0
B42: Manganese | G42: =0.00000000038/2488*91500 -> 1.397508039e-08 | H42: 0 | I42: 0
B43: Mercury | G43: =0.00000000026/2488*91500 -> 9.561897106e-09 | H43: 0 | I43: 0
B44: Nickel | G44: =0.0000000021/2488*91500 -> 7.72307074e-08 | H44: 0 | I44: 0
B45: Selenium | G45: =0.000000000024/2488*91500 -> 8.826366559e-10 | H45: 0 | I45: 0
F46: HAP total | H46: =SUM(H32:H45) -> 0 | I46: =SUM(I32:I45) -> 0
B47: 1 Global Warming Potential from 40 CFR Part 98, Subpart A, Table A-1
B48: 2 CO2e = carbon dioxide equivalents
B49: 3 See insignificant activities at Minn. R. 7007.1300 and on the 'Permits & Requirements' tab. | G49: Minn. R. 7007.1300

Sheet Fugitive
I1: =Instructions!$O$3 -> p-sbap5-20 • 4/8/19
B2: Air emissions from fugitive sources
B3: Fugitive emissions1
B4: Potential emissions
B5: Your potential emissions from fugitive sources must be used in identifying whether a permit is required. Fugitive sources include unpaved roads, material handling at stockpiles, and wind erosion of ground piles.
C8: Throughput (maximum capacity) | E8: <-------- The maximum throughput used on the hot mix asphalt tab for potential emissions is automatically entered here.
C9: ='Hot mix asphalt'!E8*'Hot mix asphalt'!F27 -> 0 | D9: tons/year
B11: Actual emissions
B12: Are you applying for or have an Option D registration permit?
B13: If… | C13: Then…
B14: Yes | C14: You are required… | E14: …to calculate actual emissions from fugitive sources (unpaved roads, material handling for stockpiles, and wind erosion of ground piles). Enter actual throughput for each activity below.
B16: No | C16: You are not required…
C19: Throughput (actual amount) | E19: <-------- The actual amount of hot mix asphalt processed, which you entered into the hot mix asphalt tab, is used here.
C20: ='Hot mix asphalt'!$E$27*'Hot mix asphalt'!$D$27 -> 0 | D20: tons/year
B22: Unpaved road2
B23: Enter the data for your trucks below to calculate unpaved road emissions.
D24: Vehicle 1 | E24: Vehicle 2
B25: % of total trips made by vehicle | D25: 0 | E25: 0 | F25: W = mean vehicle weight (ton) | I25: =D25*((D26+D27)/2)+E25*((E26+E27)/2) -> 0
B26: Empty weight of vehicle (tons) | F26: Vpotential = # vehicle trips / yr | I26: =IFERROR(IF(($C$9/((Fugitive!D25*(Fugitive!D27-Fugitive!D26))+(Fugitive!E25*(Fugitive!E27-Fugitive!E26))))=0,0,IF(($C$9/((Fugitive!D25*(Fugitive!D27-Fugitive!D26))+(Fugitive!E25*(Fugitive!E27-Fugitive!E26))))>0,($C$9/((Fugitive!D25*(Fugitive!D27-Fugitive!D26))+(Fugitive!E25*(Fugitive!E27-Fugitive!E26)))))),0) -> 0
B27: Full weight of loaded vehicle (tons) | F27: Vactual = # vehicle trips / yr | I27: =IFERROR(IF(((C20)/((Fugitive!D25*(Fugitive!D27-Fugitive!D26))+(Fugitive!E25*(Fugitive!E27-Fugitive!E26))))=0,0,IF((C20)/((Fugitive!D25*(Fugitive!D27-Fugitive!D26))+(Fugitive!E25*(Fugitive!E27-Fugitive!E26)))>0,((C20)/((Fugitive!D25*(Fugitive!D27-Fugitive!D26))+(Fugitive!E25*(Fugitive!E27-Fugitive!E26)))))),0) -> 0
B28: S = speed on unpaved road, mph
B29: m = miles of unpaved road per trip | E29: Potential Vehicle Miles Traveled (VMT)/yr = Vpotential x miles | I29: =IF((I26*D29)>0,(I26*D29),0) -> 0
B30: M = surface moisture content (%) | D30: 1.5 | E30: Actual Vehicle Miles Traveled (VMT)/yr = Vactual x miles | I30: =IF((I27*D29)>0,(I27*D29),0) -> 0
B31: s = silt content of road (%) | D31: 6
B32: p = # of days w/ >=0.01" precip/yr | D32: =(133+121+115+109+108)/5 -> 117.2 | E32: 4 | F32: Unpaved road emission factor equation3
B33: k = PM particle size multiplier | D33: 6 | E33: PM emission factor (lb/VMT) | I33: =((D33*((D31/12)^1)*((D28/30)^0.3)/((D30/0.5)^0.3))-0.00047)*((365-D32)/365) -> -0.0003190849315
B34: k10 = PM10 particle size multiplier | D34: 1.8 | E34: PM10 emission factor (lb/VMT) | I34: =((D34*((D31/12)^1)*((D28/30)^0.5)/((D30/0.5)^0.2))-0.00047)*((365-D32)/365) -> -0.0003190849315
B35: k2.5 = PM2.5 particle size multiplier | D35: 0.18 | G35: PM2.5 emission factor (lb/VMT) | I35: =((D35*((D31/12)^1)*((D28/30)^0.5)/((D30/0.5)^0.2))-0.00036)*((365-D32)/365) -> -0.0002444054795
B37: Material handling at stockpiles5
B38: k = PM particle size multiplier | D38: 0.74
B39: k10 = PM10 particle size multiplier | D39: 0.35 | E39: Material handling emission factor equation6
B40: k2.5 = PM2.5 particle size multiplier | D40: 0.053 | E40: PM emission factor (lb/ton) | I40: =D38*0.0032*(((D41/5)^1.3)/((D42/2)^1.4)) -> 0.008722378401
B41: U = mean wind speed (mph) | D41: 10 | E41: PM10 emission factor (lb/ton) | I41: =D39*0.0032*(((D41/5)^1.3)/((D42/2)^1.4)) -> 0.004125449244
B42: M = material moisture content (%) | D42: 1.5 | E42: PM2.5 emission factor (lb/ton) | I42: =D40*0.0032*(((D41/5)^1.3)/((D42/2)^1.4)) -> 0.0006247108855
B44: Wind erosion of ground pile7
B45: d = # days pile is present per year
B46: a = acres of pile base | E46: Wind erosion emission factor reference8
B47: s = silt content of material (%) | D47: 7.1 | E47: PM emission factor (lb/day*acre) | I47: =1.7*(D47/1.5)*((365-D48)/235)*(D49/15) -> 16.96990638
B48: p = # of days w/ >=0.01" precip/yr | D48: =(133+121+115+109+108)/5 -> 117.2 | E48: 4 | F48: PM10 emission factor = PM * 36% | I48: =I47*0.36 -> 6.109166298
B49: f = % wind > 12 mph at pile height | D49: 30 | E49: PM2.5 emission factor = PM * 9.5% | I49: =I47*0.095 -> 1.612141106
B51: Potential fugitive emissions
B52: Potential activity | C52: Unpaved road | E52: Material handling at stockpiles | G52: Wind erosion of ground pile | I52: Total potential emissions (ton/year)
C53: (VMT/yr) | E53: (ton/yr) | G53: (365d*a/yr)
C54: =I29 -> 0 | E54: =C9 -> 0 | G54: =IF(C9>0,(D46*365),0) -> 0
C55: Emission factor | D55: Potential | E55: Emission factor | F55: Potential | G55: Emission factor | H55: Potential
C56: (lb/VMT) | D56: (ton/yr) | E56: (lb/ton) | F56: (ton/yr) | G56: (lb/d*acre) | H56: (ton/yr)
B57: PM | C57: =I33 -> -0.0003190849315 | D57: =C$54*C57/2000 -> 0 | E57: =I40 -> 0.008722378401 | F57: =E$54*E57/2000 -> 0 | G57: =I47 -> 16.96990638 | H57: =G57*$G$54/2000 -> 0 | I57: =D57+F57+H57 -> 0
B58: PM10 | C58: =I34 -> -0.0003190849315 | D58: =C$54*C58/2000 -> 0 | E58: =I41 -> 0.004125449244 | F58: =E$54*E58/2000 -> 0 | G58: =I48 -> 6.109166298 | H58: =G58*$G$54/2000 -> 0 | I58: =D58+F58+H58 -> 0
B59: PM2.5 | C59: =I35 -> -0.0002444054795 | D59: 0 | E59: =I42 -> 0.0006247108855 | F59: 0 | G59: =I49 -> 1.612141106 | H59: 0 | I59: =D59+F59+H59 -> 0
B61: Actual fugitive emissions
B62: Actual activity | C62: Unpaved road | E62: Material handling at stockpiles | G62: Wind erosion of ground pile | I62: Total actual emissions (ton/year)
C63: (VMT/yr) | E63: (ton/yr) | G63: (days * acre) / yr
C64: =I30 -> 0 | E64: =C20 -> 0 | G64: =D45*D46 -> 0
C65: Emission factor | D65: Potential | E65: Emission factor | F65: Potential | G65: Emission factor | H65: Potential
C66: (lb/VMT) | D66: (ton/yr) | E66: (lb/ton) | F66: (ton/yr) | G66: (lb/d*acre) | H66: (ton/yr)
B67: PM | C67: =I33 -> -0.0003190849315 | D67: =C$64*C67/2000 -> 0 | E67: =E57 -> 0.008722378401 | F67: =E$64*E67/2000 -> 0 | G67: =I47 -> 16.96990638 | H67: =$G$64*G67/2000 -> 0 | I67: =D67+F67+H67 -> 0
B68: PM10 | C68: =I34 -> -0.0003190849315 | D68: =C$64*C68/2000 -> 0 | E68: =E58 -> 0.004125449244 | F68: =E$64*E68/2000 -> 0 | G68: =I48 -> 6.109166298 | H68: =$G$64*G68/2000 -> 0 | I68: =D68+F68+H68 -> 0
B69: PM2.5 | C69: =I35 -> -0.0002444054795 | D69: 0 | E69: =E59 -> 0.0006247108855 | F69: 0 | G69: =I49 -> 1.612141106 | H69: 0 | I69: =D69+F69+H69 -> 0
B71: 1 Sources: | C71: Minn. Rule 7007.0200 Subpart 2. B. | E71: Minn. Rule 7007.1130 Subpart 4. | G71: Minn. Rule 7007.1300 Subpart 3. J.
B72: 2 Unpaved road emissions reference sources: | E72: Source: AP-42 13.2.2 (11/2006)
B73: 3 Unpaved road particulate matter emission factor equation (lb/VMT) | F73: PM = {{[k[(s/12)^1][(S/30)^0.3)]/[(M/0.5)^0.3]}-0.00047}*(365-p/365)
B74: PM-10 = {{[k[(s/12)^1][(S/30)^0.5)]/[(M/0.5)^0.2]}-0.00047}*(365-p/365) | F74: PM-10 = {{[k[(s/12)^1][(S/30)^0.5)]/[(M/0.5)^0.2]}-0.00036}*(365-p/365)
B75: 4 Average across MN precipitation data in Comparative Climatic Data (CCD-2015) tables, page 42.
B76: 5 Stockpile reference | D76: Source: AP-42 13.2.4 (11/2006)
B77: 6 Stockpile emission factor equation (lb/ton) = k(0.0032)((U/5)1.3/(M/2)1.4)
B78: 7 Wind erosion reference | D78: EPA Air/Superfund National Technical Guidance Study Series, Vol. III, Table 21-23
B79: 8 Wind erosion emission factor equation (lb/day/acre)=1.7(s/1.5)((365-p)/235)(f/15)

Sheet Potential emissions
K1: =Instructions!$O$3 -> p-sbap5-20 • 4/8/19
B2: Potential emissions: hot mix asphalt
B3: =IF('Data Validation'!A36="yes","The flag next to a potential emission total means your potential emissions exceed the permitting threshold and a permit is required.","These pollutant totals represent the information you entered into this calculator.") -> These pollutant totals represent the information you entered into this calculator.
B4: Pollutant | C4: Hot Mix Asphalt | D4: Load Out | E4: Silos | F4: Generator | G4: Natural Gas, other | H4: Propane, other | I4: Fugitive | J4: Potential Emissions | K4: Permitting Threshold
C5: (ton/yr) | D5: (ton/yr) | E5: (ton/yr) | F5: (ton/yr) | G5: (ton/yr) | H5: (ton/yr) | I5: (ton/yr) | J5: (ton/yr) | K5: (ton/yr)
B6: Criteria Air Pollutants | G6: =IF(AND('Natural gas (auxilary heat)'!J16=6,'Natural gas (auxilary heat)'!G7>0),"Insignificant Activity","") ->  | H6: =IF(AND('Propane (auxilary heat)'!J17=6,'Propane (auxilary heat)'!G6>0),"Insignificant Activity","") -> 
B7: PM | C7: ='Hot mix asphalt'!H29 -> 0 | D7: ='Load out and silos'!G15 -> 0 | E7: ='Load out and silos'!O15 -> 0 | F7: =Generator!H20 -> 0 | G7: ='Natural gas (auxilary heat)'!H17 -> 0 | H7: ='Propane (auxilary heat)'!H18 -> 0 | I7: =Fugitive!I57 -> 0 | J7: =SUM(C7:I7) -> 0 | K7: 100
B8: PM10 | C8: ='Hot mix asphalt'!H30 -> 0 | D8: ='Load out and silos'!G16 -> 0 | E8: ='Load out and silos'!O16 -> 0 | F8: =Generator!H21 -> 0 | G8: ='Natural gas (auxilary heat)'!H18 -> 0 | H8: ='Propane (auxilary heat)'!H19 -> 0 | I8: =Fugitive!I58 -> 0 | J8: =SUM(C8:I8) -> 0 | K8: 25
B9: PM2.5 | C9: ='Hot mix asphalt'!H31 -> 0 | D9: ='Load out and silos'!G17 -> 0 | E9: ='Load out and silos'!O17 -> 0 | F9: =Generator!H22 -> 0 | G9: ='Natural gas (auxilary heat)'!H19 -> 0 | H9: ='Propane (auxilary heat)'!H20 -> 0 | I9: =Fugitive!I59 -> 0 | J9: =SUM(C9:I9) -> 0 | K9: 100
B10: SOx | C10: ='Hot mix asphalt'!H32 -> 0 | F10: =Generator!H23 -> 0 | G10: ='Natural gas (auxilary heat)'!H20 -> 0 | H10: ='Propane (auxilary heat)'!H21 -> 0 | J10: 0 | K10: 50
B11: NOx | C11: ='Hot mix asphalt'!H33 -> 0 | F11: =Generator!H24 -> 0 | G11: ='Natural gas (auxilary heat)'!H21 -> 0 | H11: ='Propane (auxilary heat)'!H22 -> 0 | J11: 0 | K11: 100
B12: VOC | C12: ='Hot mix asphalt'!H34 -> 0 | D12: ='Load out and silos'!G18 -> 0 | E12: ='Load out and silos'!O18 -> 0 | F12: =Generator!H25 -> 0 | G12: ='Natural gas (auxilary heat)'!H22 -> 0 | H12: ='Propane (auxilary heat)'!H23 -> 0 | J12: 0 | K12: 100
B13: CO | C13: ='Hot mix asphalt'!H35 -> 0 | D13: ='Load out and silos'!G19 -> 0 | E13: ='Load out and silos'!O19 -> 0 | F13: =Generator!H26 -> 0 | G13: ='Natural gas (auxilary heat)'!H23 -> 0 | H13: ='Propane (auxilary heat)'!H24 -> 0 | J13: 0 | K13: 100
B14: Lead | C14: ='Hot mix asphalt'!H36 -> 0 | F14: =Generator!H27 -> 0 | G14: ='Natural gas (auxilary heat)'!H24 -> 0 | H14: ='Propane (auxilary heat)'!H25 -> 0 | J14: 0 | K14: 0.5
B15: Greenhouse Gas Emissions
B16: CO2 | C16: ='Hot mix asphalt'!H38 -> 0 | F16: =Generator!H29 -> 0 | G16: ='Natural gas (auxilary heat)'!H26 -> 0 | H16: ='Propane (auxilary heat)'!H27 -> 0 | J16: 0
B17: CH4 | C17: ='Hot mix asphalt'!H39 -> 0 | D17: ='Load out and silos'!G21 -> 0 | E17: ='Load out and silos'!O21 -> 0 | F17: =Generator!H30 -> 0 | G17: ='Natural gas (auxilary heat)'!H27 -> 0 | H17: ='Propane (auxilary heat)'!H28 -> 0 | J17: 0
B18: N2O | F18: =Generator!H31 -> 0 | G18: ='Natural gas (auxilary heat)'!H28 -> 0 | H18: ='Propane (auxilary heat)'!H29 -> 0 | J18: 0
B19: GHG Total CO2e | J19: =(J16*1)+(J17*25)*(J18*298) -> 0 | K19: 100000
B20: Hazardous Air Pollutants
B21: 1,1,1-Trichloroethane | D21: ='Load out and silos'!G40 -> 0 | E21: ='Load out and silos'!O40 -> 0 | J21: =SUM(C21:I21) -> 0
B22: 1,1,2,2-tetrachloroethane | F22: =Generator!H34 -> 0 | J22: =SUM(C22:I22) -> 0
B23: 1,1,2-trichloroethane | F23: =Generator!H35 -> 0 | J23: 0
B24: 1,3-butadiene | F24: =Generator!H36 -> 0 | J24: 0
B25: 1,3-dichloropropene | F25: =Generator!H37 -> 0 | J25: 0
B26: 2-Butanone | D26: ='Load out and silos'!G26 -> 0 | E26: ='Load out and silos'!O26 -> 0 | J26: 0
B27: 2-Methylnaphthalene | C27: ='Hot mix asphalt'!H55 -> 0 | D27: ='Load out and silos'!G59 -> 0 | E27: ='Load out and silos'!O59 -> 0 | J27: 0
B28: Acenaphthene | C28: ='Hot mix asphalt'!H56 -> 0 | D28: ='Load out and silos'!G45 -> 0 | E28: ='Load out and silos'!O45 -> 0 | J28: 0
B29: Acenaphthylene | C29: ='Hot mix asphalt'!H57 -> 0 | D29: ='Load out and silos'!G46 -> 0 | E29: ='Load out and silos'!O46 -> 0 | J29: 0
B30: Acetaldehyde | C30: ='Hot mix asphalt'!H42 -> 0 | F30: =Generator!H38 -> 0 | J30: 0
B31: Acetaldehyde | J31: 0
B32: Acrolein | C32: ='Hot mix asphalt'!H52 -> 0 | F32: =Generator!H39 -> 0 | J32: 0
B33: Antharacene | C33: ='Hot mix asphalt'!H58 -> 0 | D33: ='Load out and silos'!G47 -> 0 | E33: ='Load out and silos'!O47 -> 0 | J33: 0
B34: Benzene | C34: ='Hot mix asphalt'!H43 -> 0 | D34: ='Load out and silos'!G24 -> 0 | E34: ='Load out and silos'!O24 -> 0 | F34: =Generator!H40 -> 0 | G34: ='Natural gas (auxilary heat)'!H31 -> 0 | H34: ='Propane (auxilary heat)'!H32 -> 0 | J34: 0
B35: Benzo(a)anthracene | C35: ='Hot mix asphalt'!H59 -> 0 | D35: ='Load out and silos'!G48 -> 0 | E35: ='Load out and silos'!O48 -> 0 | J35: 0
B36: Benzo(a)pyrene | C36: ='Hot mix asphalt'!H60 -> 0 | D36: ='Load out and silos'!G49 -> 0 | E36: ='Load out and silos'!O49 -> 0 | J36: 0
B37: Benzo(b)fluoranthene | C37: ='Hot mix asphalt'!H61 -> 0 | D37: ='Load out and silos'!G50 -> 0 | E37: ='Load out and silos'!O50 -> 0 | J37: 0
B38: Benzo(e)pyrene | C38: ='Hot mix asphalt'!H62 -> 0 | D38: ='Load out and silos'!G51 -> 0 | E38: ='Load out and silos'!O51 -> 0 | J38: 0
B39: Benzo(g,h,i)perylene | C39: ='Hot mix asphalt'!H63 -> 0 | D39: ='Load out and silos'!G52 -> 0 | E39: ='Load out and silos'!O52 -> 0 | J39: 0
B40: Benzo(k)fluoranthene | C40: ='Hot mix asphalt'!H64 -> 0 | D40: ='Load out and silos'!G53 -> 0 | E40: ='Load out and silos'!O53 -> 0 | J40: 0
B41: Biphenyl | F41: =Generator!H41 -> 0 | J41: 0
B42: Bromomethane | D42: ='Load out and silos'!G25 -> 0 | E42: ='Load out and silos'!O25 -> 0 | J42: 0
B43: Carbon Disulfide | D43: ='Load out and silos'!G27 -> 0 | E43: ='Load out and silos'!O27 -> 0 | J43: 0
B44: Carbon tetrachloride | F44: =Generator!H42 -> 0 | J44: 0
B45: Chlorobenzene | F45: =Generator!H43 -> 0 | J45: 0
B46: Chloroethane | D46: ='Load out and silos'!G28 -> 0 | E46: ='Load out and silos'!O28 -> 0 | J46: 0
B47: Chloroform | F47: =Generator!H44 -> 0 | J47: 0
B48: Chloromethane | D48: ='Load out and silos'!G29 -> 0 | E48: ='Load out and silos'!O29 -> 0 | J48: 0
B49: Chrysene | C49: ='Hot mix asphalt'!H64 -> 0 | D49: ='Load out and silos'!G54 -> 0 | E49: ='Load out and silos'!O54 -> 0 | J49: 0
B50: Cumene | D50: ='Load out and silos'!G30 -> 0 | E50: ='Load out and silos'!O30 -> 0 | J50: 0
B51: Dibenz(a,h)anthracene | C51: ='Hot mix asphalt'!H65 -> 0 | D51: ='Load out and silos'!G55 -> 0 | E51: ='Load out and silos'!O55 -> 0 | J51: 0
B52: Ethylbenzene | C52: ='Hot mix asphalt'!H44 -> 0 | D52: ='Load out and silos'!G31 -> 0 | E52: ='Load out and silos'!O31 -> 0 | F52: =Generator!H45 -> 0 | J52: 0
B53: Ethylene dibromide | F53: =Generator!H46 -> 0 | J53: 0
B54: Fluoranthene | C54: ='Hot mix asphalt'!H66 -> 0 | D54: ='Load out and silos'!G56 -> 0 | E54: ='Load out and silos'!O56 -> 0 | J54: 0
B55: Fluorene | C55: ='Hot mix asphalt'!H67 -> 0 | D55: ='Load out and silos'!G57 -> 0 | E55: ='Load out and silos'!O57 -> 0 | J55: 0
B56: Formaldehyde | C56: ='Hot mix asphalt'!H45 -> 0 | D56: ='Load out and silos'!G32 -> 0 | E56: ='Load out and silos'!O32 -> 0 | F56: =Generator!H47 -> 0 | G56: ='Natural gas (auxilary heat)'!H32 -> 0 | H56: ='Propane (auxilary heat)'!H33 -> 0 | J56: 0
B57: Hexane | C57: ='Hot mix asphalt'!H49 -> 0 | F57: =Generator!H48 -> 0 | G57: ='Natural gas (auxilary heat)'!H33 -> 0 | H57: ='Propane (auxilary heat)'!H34 -> 0 | J57: 0
B58: Indeno(1,2,3-cd)pyrene | C58: ='Hot mix asphalt'!H68 -> 0 | D58: ='Load out and silos'!G58 -> 0 | E58: ='Load out and silos'!O58 -> 0 | J58: 0
B59: Isooctane | C59: ='Hot mix asphalt'!H50 -> 0 | D59: ='Load out and silos'!G34 -> 0 | E59: ='Load out and silos'!O34 -> 0 | J59: 0
B60: Methanol | F60: =Generator!H49 -> 0 | J60: 0
B61: Methyl chloroform | C61: ='Hot mix asphalt'!H51 -> 0 | J61: 0
B62: Methylene Chloride | D62: ='Load out and silos'!G35 -> 0 | E62: ='Load out and silos'!O35 -> 0 | F62: =Generator!H50 -> 0 | J62: 0
B63: MTBE | D63: ='Load out and silos'!G36 -> 0 | E63: ='Load out and silos'!O36 -> 0 | J63: 0
B64: Naphthalene | C64: ='Hot mix asphalt'!H69 -> 0 | D64: ='Load out and silos'!G60 -> 0 | E64: ='Load out and silos'!O60 -> 0 | F64: =Generator!H51 -> 0 | G64: ='Natural gas (auxilary heat)'!H34 -> 0 | H64: ='Propane (auxilary heat)'!H35 -> 0 | J64: 0
B65: n-Hexane | D65: ='Load out and silos'!G33 -> 0 | E65: ='Load out and silos'!O33 -> 0 | J65: 0
B66: Perylene | C66: ='Hot mix asphalt'!H73 -> 0 | D66: ='Load out and silos'!G61 -> 0 | E66: ='Load out and silos'!O61 -> 0 | J66: 0
B67: Phenanthrene | C67: ='Hot mix asphalt'!H70 -> 0 | D67: ='Load out and silos'!G62 -> 0 | E67: ='Load out and silos'!O62 -> 0 | J67: 0
B68: Phenol | F68: =Generator!H53 -> 0 | J68: 0
B69: Propionaldehyde | C69: ='Hot mix asphalt'!H53 -> 0 | J69: 0
B70: Pyrene | C70: ='Hot mix asphalt'!H73 -> 0 | D70: ='Load out and silos'!G63 -> 0 | E70: ='Load out and silos'!O63 -> 0 | J70: 0
B71: Quinone | C71: ='Hot mix asphalt'!H46 -> 0 | J71: 0
B72: Styrene | D72: ='Load out and silos'!G37 -> 0 | E72: ='Load out and silos'!O37 -> 0 | F72: =Generator!H54 -> 0 | J72: 0
B73: Tetrachloroethane | F73: =Generator!H55 -> 0 | J73: 0
B74: Tetrachloroethene | D74: ='Load out and silos'!G38 -> 0 | E74: ='Load out and silos'!O38 -> 0 | J74: 0
B75: Toluene | C75: ='Hot mix asphalt'!H47 -> 0 | D75: ='Load out and silos'!G39 -> 0 | E75: ='Load out and silos'!O39 -> 0 | F75: =Generator!H56 -> 0 | G75: ='Natural gas (auxilary heat)'!H35 -> 0 | H75: ='Propane (auxilary heat)'!H36 -> 0 | J75: 0
B76: Trichloroenthene | D76: ='Load out and silos'!G41 -> 0 | E76: ='Load out and silos'!O41 -> 0 | J76: 0
B77: Trichlorofluoromethane | D77: ='Load out and silos'!G42 -> 0 | E77: ='Load out and silos'!O42 -> 0 | J77: 0
B78: Vinyl chloride | F78: =Generator!H57 -> 0 | J78: 0
B79: Xylene | C79: ='Hot mix asphalt'!H48 -> 0 | D79: ='Load out and silos'!G43 -> 0 | E79: ='Load out and silos'!O43 -> 0 | F79: =Generator!H58 -> 0 | J79: 0
B80: Metal HAPs
B81: Antimony | C81: ='Hot mix asphalt'!H75 -> 0 | J81: 0
B82: Arsenic | C82: ='Hot mix asphalt'!H76 -> 0 | G82: ='Natural gas (auxilary heat)'!H36 -> 0 | H82: ='Propane (auxilary heat)'!H37 -> 0 | J82: 0
B83: Beryllium | C83: ='Hot mix asphalt'!H77 -> 0 | G83: ='Natural gas (auxilary heat)'!H37 -> 0 | H83: ='Propane (auxilary heat)'!H38 -> 0 | J83: 0
B84: Cadmium | C84: ='Hot mix asphalt'!H78 -> 0 | G84: ='Natural gas (auxilary heat)'!H38 -> 0 | H84: ='Propane (auxilary heat)'!H39 -> 0 | J84: 0
B85: Chromium | C85: ='Hot mix asphalt'!H79 -> 0 | G85: ='Natural gas (auxilary heat)'!H39 -> 0 | H85: ='Propane (auxilary heat)'!H40 -> 0 | J85: 0
B86: Chromium (VI) | C86: ='Hot mix asphalt'!H80 -> 0 | J86: =SUM(C86:I86) -> 0
B87: Cobalt | C87: ='Hot mix asphalt'!H81 -> 0 | G87: ='Natural gas (auxilary heat)'!H40 -> 0 | H87: ='Propane (auxilary heat)'!H41 -> 0 | J87: 0
B88: Manganese | C88: ='Hot mix asphalt'!H82 -> 0 | G88: ='Natural gas (auxilary heat)'!H41 -> 0 | H88: ='Propane (auxilary heat)'!H42 -> 0 | J88: 0
B89: Mercury | C89: ='Hot mix asphalt'!H83 -> 0 | G89: ='Natural gas (auxilary heat)'!H42 -> 0 | H89: ='Propane (auxilary heat)'!H43 -> 0 | J89: 0
B90: Nickel | C90: ='Hot mix asphalt'!H84 -> 0 | G90: ='Natural gas (auxilary heat)'!H43 -> 0 | H90: ='Propane (auxilary heat)'!H44 -> 0 | J90: 0
B91: Selenium | C91: ='Hot mix asphalt'!H85 -> 0 | G91: ='Natural gas (auxilary heat)'!H44 -> 0 | H91: ='Propane (auxilary heat)'!H45 -> 0 | J91: 0
B92: Dioxins
B93: Total TCCD | C93: ='Hot mix asphalt'!H87 -> 0 | J93: =C93 -> 0
B94: Total PeCDD | C94: ='Hot mix asphalt'!H88 -> 0 | D94: =IF('Hot mix asphalt'!$E$6=Ba,"No emission factors in AP-42 for a",IF(AND('Hot mix asphalt'!$E$6=Dr,NG),"No emission factors in AP-42 for a","")) ->  | F94: =IF(D94="No emission factors in AP-42 for a",'Hot mix asphalt'!E6,"") ->  | J94: =C94 -> 0
B95: Total HxCDD | C95: ='Hot mix asphalt'!H89 -> 0 | E95: =IF(D94="No emission factors in AP-42 for a","that is using","") ->  | F95: =IF(D94="No emission factors in AP-42 for a",'Hot mix asphalt'!E7,"") ->  | J95: 0
B96: Total HpCDD | C96: ='Hot mix asphalt'!H90 -> 0 | J96: 0
B97: Total PCDD | C97: ='Hot mix asphalt'!H91 -> 0 | J97: =C97 -> 0
B98: Furans
B99: Total TCDF | C99: ='Hot mix asphalt'!H93 -> 0 | J99: =C99 -> 0
B100: Total PeCDF | C100: ='Hot mix asphalt'!H94 -> 0 | D100: =IF('Hot mix asphalt'!$E$6=Ba,"No emission factors in AP-42 for a",IF(AND('Hot mix asphalt'!$E$6=Dr,NG),"No emission factors in AP-42 for a","")) ->  | F100: =IF(D100="No emission factors in AP-42 for a",'Hot mix asphalt'!E6,"") ->  | J100: =C100 -> 0
B101: Total HxCDF | C101: ='Hot mix asphalt'!H95 -> 0 | E101: =IF(D100="No emission factors in AP-42 for a","that is using","") ->  | F101: =IF(D100="No emission factors in AP-42 for a",'Hot mix asphalt'!E7,"") ->  | J101: 0
B102: Total HpCDF | C102: ='Hot mix asphalt'!H96 -> 0 | J102: 0
B103: Total PCDF | C103: ='Hot mix asphalt'!H97 -> 0 | J103: 0
B104: HAP Indiv. Max | J104: =MAX(J21:J103) -> 0 | K104: 10
B105: HAP total | J105: =SUM(J21:J103) -> 0 | K105: 25

Sheet Actual emissions
K1: =Instructions!$O$3 -> p-sbap5-20 • 4/8/19
B2: Actual emissions: hot mix asphalt
B3: =IF('Data Validation'!A39="yes","The flag next to your actual emissions total indicates that your business exceeds the Option D limit and an individual permit is required.","These pollutant totals represent the information you entered into this calculator.") -> These pollutant totals represent the information you entered into this calculator.
B4: Pollutant | C4: Hot Mix Asphalt | D4: Load Out | E4: Silos | F4: Generator | G4: Natural Gas, other | H4: Propane, other | I4: Fugitive | J4: Actual Emissions | K4: Opt. D Permit Limits
C5: (ton/yr) | D5: (ton/yr) | E5: (ton/yr) | F5: (ton/yr) | G5: (ton/yr) | H5: (ton/yr) | I5: (ton/yr) | J5: (ton/yr) | K5: (ton/yr)
B6: Criteria Air Pollutants
B7: PM | C7: ='Hot mix asphalt'!J29 -> 0 | D7: ='Load out and silos'!H15 -> 0 | E7: ='Load out and silos'!P15 -> 0 | F7: =Generator!I20 -> 0 | G7: ='Natural gas (auxilary heat)'!I17 -> 0 | H7: ='Propane (auxilary heat)'!I18 -> 0 | I7: =Fugitive!I67 -> 0 | J7: =SUM(C7:I7) -> 0 | K7: 50
B8: PM10 | C8: ='Hot mix asphalt'!J30 -> 0 | D8: ='Load out and silos'!H16 -> 0 | E8: ='Load out and silos'!P16 -> 0 | F8: =Generator!I21 -> 0 | G8: ='Natural gas (auxilary heat)'!I18 -> 0 | H8: ='Propane (auxilary heat)'!I19 -> 0 | I8: =Fugitive!I68 -> 0 | J8: =SUM(C8:I8) -> 0 | K8: 50
B9: PM2.5 | C9: ='Hot mix asphalt'!J31 -> 0 | D9: ='Load out and silos'!H17 -> 0 | E9: ='Load out and silos'!P17 -> 0 | F9: =Generator!I22 -> 0 | G9: ='Natural gas (auxilary heat)'!I19 -> 0 | H9: ='Propane (auxilary heat)'!I20 -> 0 | I9: =Fugitive!I69 -> 0 | J9: =SUM(C9:I9) -> 0 | K9: 50
B10: SOx | C10: ='Hot mix asphalt'!J32 -> 0 | F10: =Generator!I23 -> 0 | G10: ='Natural gas (auxilary heat)'!I20 -> 0 | H10: ='Propane (auxilary heat)'!I21 -> 0 | J10: 0 | K10: 50
B11: NOx | C11: ='Hot mix asphalt'!J33 -> 0 | F11: =Generator!I24 -> 0 | G11: ='Natural gas (auxilary heat)'!I21 -> 0 | H11: ='Propane (auxilary heat)'!I22 -> 0 | J11: 0 | K11: 50
B12: VOC | C12: ='Hot mix asphalt'!J34 -> 0 | D12: ='Load out and silos'!H18 -> 0 | E12: ='Load out and silos'!P18 -> 0 | F12: =Generator!I25 -> 0 | G12: ='Natural gas (auxilary heat)'!I22 -> 0 | H12: ='Propane (auxilary heat)'!I23 -> 0 | J12: 0 | K12: 50
B13: CO | C13: ='Hot mix asphalt'!J35 -> 0 | D13: ='Load out and silos'!H19 -> 0 | E13: ='Load out and silos'!P19 -> 0 | F13: =Generator!I26 -> 0 | G13: ='Natural gas (auxilary heat)'!I23 -> 0 | H13: ='Propane (auxilary heat)'!I24 -> 0 | J13: 0 | K13: 50
B14: Lead | C14: ='Hot mix asphalt'!J36 -> 0 | F14: =Generator!I27 -> 0 | G14: ='Natural gas (auxilary heat)'!I24 -> 0 | H14: ='Propane (auxilary heat)'!I25 -> 0 | J14: 0 | K14: 0.5
B15: Greenhouse Gas Emissions
B16: CO2 | C16: ='Hot mix asphalt'!J38 -> 0 | F16: =Generator!I29 -> 0 | G16: ='Natural gas (auxilary heat)'!I26 -> 0 | H16: ='Propane (auxilary heat)'!I27 -> 0 | J16: =SUM(C16:I16) -> 0
B17: CH4 | C17: ='Hot mix asphalt'!J39 -> 0 | D17: ='Load out and silos'!H21 -> 0 | E17: ='Load out and silos'!P21 -> 0 | F17: =Generator!I30 -> 0 | G17: ='Natural gas (auxilary heat)'!I27 -> 0 | H17: ='Propane (auxilary heat)'!I28 -> 0 | J17: =SUM(C17:I17) -> 0
B18: N2O | F18: =Generator!I31 -> 0 | G18: ='Natural gas (auxilary heat)'!I28 -> 0 | H18: ='Propane (auxilary heat)'!I29 -> 0 | J18: =SUM(C18:I18) -> 0
B19: GHG Total CO2e | J19: =SUM(J16:J18) -> 0 | K19: 50000
B20: Hazardous Air Pollutants
B21: 1,1,1-Trichloroethane | D21: ='Load out and silos'!H40 -> 0 | E21: ='Load out and silos'!P40 -> 0 | J21: =SUM(C21:I21) -> 0
B22: 1,1,2,2-tetrachloroethane | F22: =Generator!I34 -> 0 | J22: =SUM(C22:I22) -> 0
B23: 1,1,2-trichloroethane | F23: =Generator!I35 -> 0 | J23: 0
B24: 1,3-butadiene | F24: =Generator!I36 -> 0 | J24: 0
B25: 1,3-dichloropropene | F25: =Generator!I37 -> 0 | J25: 0
B26: 2-Butanone | D26: ='Load out and silos'!H26 -> 0 | E26: ='Load out and silos'!P26 -> 0 | J26: 0
B27: 2-Methylnaphthalene | C27: ='Hot mix asphalt'!J55 -> 0 | D27: ='Load out and silos'!H59 -> 0 | E27: ='Load out and silos'!P59 -> 0 | J27: 0
B28: Acenaphthene | C28: ='Hot mix asphalt'!J56 -> 0 | D28: ='Load out and silos'!H45 -> 0 | E28: ='Load out and silos'!P45 -> 0 | J28: 0
B29: Acenaphthylene | C29: ='Hot mix asphalt'!J57 -> 0 | D29: ='Load out and silos'!H46 -> 0 | E29: ='Load out and silos'!P46 -> 0 | J29: 0
B30: Acetaldehyde | C30: ='Hot mix asphalt'!J42 -> 0 | F30: =Generator!I38 -> 0 | J30: 0
B31: Acetaldehyde | J31: 0
B32: Acrolein | C32: ='Hot mix asphalt'!J52 -> 0 | F32: =Generator!I39 -> 0 | J32: 0
B33: Antharacene | C33: ='Hot mix asphalt'!J58 -> 0 | D33: ='Load out and silos'!H47 -> 0 | E33: ='Load out and silos'!P47 -> 0 | J33: 0
B34: Benzene | C34: ='Hot mix asphalt'!J43 -> 0 | D34: ='Load out and silos'!H24 -> 0 | E34: ='Load out and silos'!P24 -> 0 | F34: =Generator!I40 -> 0 | G34: ='Natural gas (auxilary heat)'!I31 -> 0 | H34: ='Propane (auxilary heat)'!I32 -> 0 | J34: 0
B35: Benzo(a)anthracene | C35: ='Hot mix asphalt'!J59 -> 0 | D35: ='Load out and silos'!H48 -> 0 | E35: ='Load out and silos'!P48 -> 0 | J35: 0
B36: Benzo(a)pyrene | C36: ='Hot mix asphalt'!J60 -> 0 | D36: ='Load out and silos'!H49 -> 0 | E36: ='Load out and silos'!P49 -> 0 | J36: 0
B37: Benzo(b)fluoranthene | C37: ='Hot mix asphalt'!J61 -> 0 | D37: ='Load out and silos'!H50 -> 0 | E37: ='Load out and silos'!P50 -> 0 | J37: 0
B38: Benzo(e)pyrene | C38: ='Hot mix asphalt'!J62 -> 0 | D38: ='Load out and silos'!H51 -> 0 | E38: ='Load out and silos'!P51 -> 0 | J38: 0
B39: Benzo(g,h,i)perylene | C39: ='Hot mix asphalt'!J63 -> 0 | D39: ='Load out and silos'!H52 -> 0 | E39: ='Load out and silos'!P52 -> 0 | J39: 0
B40: Benzo(k)fluoranthene | C40: ='Hot mix asphalt'!J64 -> 0 | D40: ='Load out and silos'!H53 -> 0 | E40: ='Load out and silos'!P53 -> 0 | J40: 0
B41: Biphenyl | F41: =Generator!I41 -> 0 | J41: 0
B42: Bromomethane | D42: ='Load out and silos'!H25 -> 0 | E42: ='Load out and silos'!P25 -> 0 | J42: 0
B43: Carbon Disulfide | D43: ='Load out and silos'!H27 -> 0 | E43: ='Load out and silos'!P27 -> 0 | J43: 0
B44: Carbon tetrachloride | F44: =Generator!I42 -> 0 | J44: 0
B45: Chlorobenzene | F45: =Generator!I43 -> 0 | J45: 0
B46: Chloroethane | D46: ='Load out and silos'!H28 -> 0 | E46: ='Load out and silos'!P28 -> 0 | J46: 0
B47: Chloroform | F47: =Generator!I44 -> 0 | J47: 0
B48: Chloromethane | D48: ='Load out and silos'!H29 -> 0 | E48: ='Load out and silos'!P29 -> 0 | J48: 0
B49: Chrysene | C49: ='Hot mix asphalt'!J64 -> 0 | D49: ='Load out and silos'!H54 -> 0 | E49: ='Load out and silos'!P54 -> 0 | J49: 0
B50: Cumene | D50: ='Load out and silos'!H30 -> 0 | E50: ='Load out and silos'!P30 -> 0 | J50: 0
B51: Dibenz(a,h)anthracene | C51: ='Hot mix asphalt'!J65 -> 0 | D51: ='Load out and silos'!H55 -> 0 | E51: ='Load out and silos'!P55 -> 0 | J51: 0
B52: Ethylbenzene | C52: ='Hot mix asphalt'!J44 -> 0 | D52: ='Load out and silos'!H31 -> 0 | E52: ='Load out and silos'!P31 -> 0 | F52: =Generator!I45 -> 0 | J52: 0
B53: Ethylene dibromide | F53: =Generator!I46 -> 0 | J53: 0
B54: Fluoranthene | C54: ='Hot mix asphalt'!J66 -> 0 | D54: ='Load out and silos'!H56 -> 0 | E54: ='Load out and silos'!P56 -> 0 | J54: 0
B55: Fluorene | C55: ='Hot mix asphalt'!J67 -> 0 | D55: ='Load out and silos'!H57 -> 0 | E55: ='Load out and silos'!P57 -> 0 | J55: 0
B56: Formaldehyde | C56: ='Hot mix asphalt'!J45 -> 0 | D56: ='Load out and silos'!H32 -> 0 | E56: ='Load out and silos'!P32 -> 0 | F56: =Generator!I47 -> 0 | G56: ='Natural gas (auxilary heat)'!I32 -> 0 | H56: ='Propane (auxilary heat)'!I33 -> 0 | J56: 0
B57: Hexane | C57: ='Hot mix asphalt'!J49 -> 0 | F57: =Generator!I48 -> 0 | G57: ='Natural gas (auxilary heat)'!I33 -> 0 | H57: ='Propane (auxilary heat)'!I34 -> 0 | J57: 0
B58: Indeno(1,2,3-cd)pyrene | C58: ='Hot mix asphalt'!J68 -> 0 | D58: ='Load out and silos'!H58 -> 0 | E58: ='Load out and silos'!P58 -> 0 | J58: 0
B59: Isooctane | C59: ='Hot mix asphalt'!J50 -> 0 | D59: ='Load out and silos'!H34 -> 0 | E59: ='Load out and silos'!P34 -> 0 | J59: 0
B60: Methanol | F60: =Generator!I49 -> 0 | J60: 0
B61: Methyl chloroform | C61: ='Hot mix asphalt'!J51 -> 0 | J61: 0
B62: Methylene Chloride | D62: ='Load out and silos'!H35 -> 0 | E62: ='Load out and silos'!P35 -> 0 | F62: =Generator!I50 -> 0 | J62: 0
B63: MTBE | D63: ='Load out and silos'!H36 -> 0 | E63: ='Load out and silos'!P36 -> 0 | J63: 0
B64: Naphthalene | C64: ='Hot mix asphalt'!J69 -> 0 | D64: ='Load out and silos'!H60 -> 0 | E64: ='Load out and silos'!P60 -> 0 | F64: =Generator!I51 -> 0 | G64: ='Natural gas (auxilary heat)'!I34 -> 0 | H64: ='Propane (auxilary heat)'!I35 -> 0 | J64: 0
B65: n-Hexane | D65: ='Load out and silos'!H33 -> 0 | E65: ='Load out and silos'!P33 -> 0 | J65: 0
B66: Perylene | C66: ='Hot mix asphalt'!J73 -> 0 | D66: ='Load out and silos'!H61 -> 0 | E66: ='Load out and silos'!P61 -> 0 | J66: 0
B67: Phenanthrene | C67: ='Hot mix asphalt'!J70 -> 0 | D67: ='Load out and silos'!H62 -> 0 | E67: ='Load out and silos'!P62 -> 0 | J67: 0
B68: Phenol | F68: =Generator!I53 -> 0 | J68: 0
B69: Propionaldehyde | C69: ='Hot mix asphalt'!J53 -> 0 | J69: 0
B70: Pyrene | C70: ='Hot mix asphalt'!J73 -> 0 | D70: ='Load out and silos'!H63 -> 0 | E70: ='Load out and silos'!P63 -> 0 | J70: 0
B71: Quinone | C71: ='Hot mix asphalt'!J46 -> 0 | J71: 0
B72: Styrene | D72: ='Load out and silos'!H37 -> 0 | E72: ='Load out and silos'!P37 -> 0 | F72: =Generator!I54 -> 0 | J72: 0
B73: Tetrachloroethane | F73: =Generator!I55 -> 0 | J73: 0
B74: Tetrachloroethene | D74: ='Load out and silos'!H38 -> 0 | E74: ='Load out and silos'!P38 -> 0 | J74: 0
B75: Toluene | C75: ='Hot mix asphalt'!J47 -> 0 | D75: ='Load out and silos'!H39 -> 0 | E75: ='Load out and silos'!P39 -> 0 | F75: =Generator!I56 -> 0 | G75: ='Natural gas (auxilary heat)'!I35 -> 0 | H75: ='Propane (auxilary heat)'!I36 -> 0 | J75: 0
B76: Trichloroenthene | D76: ='Load out and silos'!H41 -> 0 | E76: ='Load out and silos'!P41 -> 0 | J76: 0
B77: Trichlorofluoromethane | D77: ='Load out and silos'!H42 -> 0 | E77: ='Load out and silos'!P42 -> 0 | J77: 0
B78: Vinyl chloride | F78: =Generator!I57 -> 0 | J78: 0
B79: Xylene | C79: ='Hot mix asphalt'!J48 -> 0 | D79: ='Load out and silos'!H43 -> 0 | E79: ='Load out and silos'!P43 -> 0 | F79: =Generator!I58 -> 0 | J79: 0
B80: Metal HAPs
B81: Antimony | C81: ='Hot mix asphalt'!J75 -> 0 | J81: 0
B82: Arsenic | C82: ='Hot mix asphalt'!J76 -> 0 | G82: ='Natural gas (auxilary heat)'!I36 -> 0 | H82: ='Propane (auxilary heat)'!I37 -> 0 | J82: 0
B83: Beryllium | C83: ='Hot mix asphalt'!J77 -> 0 | G83: ='Natural gas (auxilary heat)'!I37 -> 0 | H83: ='Propane (auxilary heat)'!I38 -> 0 | J83: 0
B84: Cadmium | C84: ='Hot mix asphalt'!J78 -> 0 | G84: ='Natural gas (auxilary heat)'!I38 -> 0 | H84: ='Propane (auxilary heat)'!I39 -> 0 | J84: 0
B85: Chromium | C85: ='Hot mix asphalt'!J79 -> 0 | G85: ='Natural gas (auxilary heat)'!I39 -> 0 | H85: ='Propane (auxilary heat)'!I40 -> 0 | J85: 0
B86: Chromium (VI) | C86: ='Hot mix asphalt'!J80 -> 0 | J86: =SUM(C86:I86) -> 0
B87: Cobalt | C87: ='Hot mix asphalt'!J81 -> 0 | G87: ='Natural gas (auxilary heat)'!I40 -> 0 | H87: ='Propane (auxilary heat)'!I41 -> 0 | J87: 0
B88: Manganese | C88: ='Hot mix asphalt'!J82 -> 0 | G88: ='Natural gas (auxilary heat)'!I41 -> 0 | H88: ='Propane (auxilary heat)'!I42 -> 0 | J88: 0
B89: Mercury | C89: ='Hot mix asphalt'!J83 -> 0 | G89: ='Natural gas (auxilary heat)'!I42 -> 0 | H89: ='Propane (auxilary heat)'!I43 -> 0 | J89: 0
B90: Nickel | C90: ='Hot mix asphalt'!J84 -> 0 | G90: ='Natural gas (auxilary heat)'!I43 -> 0 | H90: ='Propane (auxilary heat)'!I44 -> 0 | J90: 0
B91: Selenium | C91: ='Hot mix asphalt'!J85 -> 0 | G91: ='Natural gas (auxilary heat)'!I44 -> 0 | H91: ='Propane (auxilary heat)'!I45 -> 0 | J91: 0
B92: Dioxins
B93: Total TCCD | C93: ='Hot mix asphalt'!J87 -> 0 | J93: 0
B94: Total PeCDD | C94: ='Hot mix asphalt'!J88 -> 0 | J94: 0
B95: Total HxCDD | C95: ='Hot mix asphalt'!J89 -> 0 | J95: 0
B96: Total HpCDD | C96: ='Hot mix asphalt'!J90 -> 0 | J96: 0
B97: Total PCDD | C97: ='Hot mix asphalt'!J91 -> 0 | J97: 0
B98: Furans
B99: Total TCDF | C99: ='Hot mix asphalt'!J93 -> 0 | J99: 0
B100: Total PeCDF | C100: ='Hot mix asphalt'!J94 -> 0 | J100: 0
B101: Total HxCDF | C101: ='Hot mix asphalt'!J95 -> 0 | J101: 0
B102: Total HpCDF | C102: ='Hot mix asphalt'!J96 -> 0 | J102: 0
B103: Total PCDF | C103: ='Hot mix asphalt'!J97 -> 0 | J103: 0
B104: HAP Indiv. Max | J104: =MAX(J21:J103) -> 0 | K104: 10
B105: HAP total | J105: =SUM(J21:J103) -> 0 | K105: 25

Sheet Permits & requirements
I1: =Instructions!$O$3 -> p-sbap5-20 • 4/8/19
B2: Permits & Requirements
B3: The need for a permit is based on your entire business' potential air emissions. All activities that put pollutants into the air (such as paint and solvent use that are not associated with maintenance) need to be assessed if they are not included in this calculator. Once you identify if you need a permit, based on whether an NSPS applies and potential emissions, you can then use your actual emissions to see which permit is the best fit for your business.
B6: Content below is based on the information entered into this calculator and is not an official MPCA permit determination.
B9: Is a permit required? | F9: What type of permit? Assumes all air pollutant activities are entered into this calculator. If you have additional air emission sources, the recommendation below cannot be used. You must assess your facility's total potential emissions from all sources to identify your permitting needs.
B10: The summary below is based on information you entered in the blue tabs.
B11: Your business's potential emissions | C11: Your business's actual emissions | D11: A federal NSPS | E11: A federal NESHAP
B13: =IF('Data Validation'!A36="yes","do","do not") -> do not | C13: =IF('Data Validation'!A39="yes","do","do not") -> do not | D13: =IF('Data Validation'!A28>0,"Return to Federal tab and answer all Y/N questions",IF(AND('Data Validation'!A28=0,'Data Validation'!A20>0),"does","does not")) -> Return to Federal tab and answer all Y/N questions | E13: =IF('Federal standards'!N51="Choose Y/N","Return to Federal tab and answer all Y/N questions",IF('Federal standards'!N51="Yes","does",IF('Federal standards'!N51="No","does not"))) -> Return to Federal tab and answer all Y/N questions
B16: exceed permit thresholds | C16: exceed Option D limits | D16: apply to your business | E16: apply to your business
B18: Potential emissions exceed permit thresholds | C18: Actual emissions exceed Option D limits | D18: Federal NSPS applies?1 | E18: Federal NESHAP applies? | F18: Which permit do you need? | H18: More Information | I18: Forms
B21: no | C21: n/a | D21: no | E21: Applicability of a NESHAP does not determine if a permit is required. | F21: Below permit thresholds | H21: n/a | I21: n/a
B22: no | C22: n/a | D22: yes | F22: Registration Option A | H22: Info about Air Registration Permits | I22: Application Forms, scroll to Section 3
B23: yes | C23: no | D23: no | F23: Registration Option D
B24: yes | C24: no | D24: yes | F24: Registration Option D
B25: yes | C25: yes | D25: no | F25: Other state or federal permit | H25: Info about Air Permits | I25: Application Forms, scroll to Section 1
B26: yes | C26: yes | D26: yes | F26: Other state or federal permit
B27: 1 Applicability of NSPS IIII or JJJJ does not indicate a need for a permit if your engine did not rely on performance testing to demonstrate NSPS compliance and any compression ignition engines are less than 30 liters per cylinder. | H27: Minn. R. 7007.0300
B30: Types of insignificant activities | D30: Minn. R. 7007.1300
B31: subp. 2 | C31: Not required to be listed.
B32: supb. 3 | C32: Required to be listed but emissions do not need to be included in total facility emission calculations, unless requested by MPCA.
B33: subp. 4 | C33: Required to be listed if applying for a Part 70 (Federal permit or federally enforceable permit limits) but emissions do not need to be included in total facility emission calculations, unless requested by MPCA.
B35: If emissions units listed in 7007.1300 are subject to additional requirements under section 114(a)(3) of the act (Monitoring Requirements) or section 112 of the act (Hazardous Air Pollutants), or if part of a title I modification, or, if accounted for, make a stationary source subject to a part 70 permit, emissions from the emissions units must be calculated in the permit application.
B38: If all emission points are insignificant and total emissions do not exceed permitting thresholds, a permit is not required. Comply with any applicable regulations.
B40: Crusher engine and generator
B41: A stack height determination is required if:
B42: 1) Installing a non-emergency engine, including insignificant activities, OR
B43: 2) There are existing non-emergency engines installed after January 1, 2000, OR
B44: 3) Installing any permit-required engine, including emergency engines.
B46: Use the SCREEN3 program to enter engine and site-specific information to identify the necessary stack height for the engine.
B47: https://www.epa.gov/scram/air-quality-dispersion-modeling-screening-models#screen3
B48: See input requirements and instructions on modeling more than one engine on the MPCA Form EC-03.
B49: https://www.pca.state.mn.us/sites/default/files/aq-f1-ec03.doc
B51: MPCA Air permits page for engines | D51: https://www.pca.state.mn.us/air/engines

Sheet Hot mix emission factors
A1: Emission factors for hot mix asphalt | G1: =Instructions!$O$3 -> p-sbap5-20 • 4/8/19 | M1: p-sbap5-20
B2: Batch plant with rotary dryer | E2: Drum mix plant | J2: Load out | L2: Silo Filling
B3: Natural Gas | C3: Diesel No. 2 Fuel Oil | D3: Waste/drain Oil | E3: Natural Gas | F3: Diesel No. 2 Fuel Oil | G3: Waste/drain Oil | J3: No site specific information | K3: Equation with site specific information. | L3: No site specific information | M3: Equation with site specific information.
B4: Methane | C4: No. 1 Fuel Oil | D4: No. 6 Fuel Oil | E4: Methane | F4: No. 1 Fuel Oil | G4: No. 6 Fuel Oil
B5: Butane | C5: Gasoline | D5: No. 3 Fuel Oil | E5: Butane | F5: Gasoline | G5: No. 3 Fuel Oil
B6: Propane | C6: Kerosene | D6: No. 4 Fuel Oil | E6: Propane | F6: Kerosene | G6: No. 4 Fuel Oil
C7: Jet fuel | D7: No. 5 Fuel Oil | F7: Jet fuel | G7: No. 5 Fuel Oil
A8: Units | B8: lb/ton | C8: lb/ton | D8: lb/ton | E8: lb/ton | F8: lb/ton | G8: lb/ton | J8: lb/ton | K8: lb/ton | L8: lb/ton | M8: lb/ton
B9: SCC 3-05-002-45 | C9: SCC 3-05-002-46 | D9: SCC 3-05-002-47 | E9: SCC 3-05-002-55 | F9: SCC 3-05-002-58 | G9: SCC 3-05-002-61 | J9: SCC 3-05-002-14 | K9: SCC 3-05-002-14 | L9: SCC 3-05-002-13 | M9: SCC 3-05-002-13
A10: source | B10: AP-42 11.1 | C10: AP-42 11.1 | D10: AP-42 11.2 | E10: AP-42 11.3 | F10: AP-42 11.4 | G10: AP-42 11.5 | I10: source | J10: AP42 Tables 11.1-14 and 11.1-16 | L10: AP42 Tables 11.1-14 and 11.1-16
A11: Criteria | I11: Criteria
A12: PM | B12: 32.0171 | C12: 32.0171 | D12: 32.0171 | E12: 28.0654 | F12: 28.0654 | G12: 28.0654 | I12: PM | J12: 0.000522 | K12: 0.000181 + 0.00141(-V)e((0.0251)(T + 460) - 20.43) | L12: 0.000586 | M12: 0.000332 + 0.00105(-V)e((0.0251)(T + 460) - 20.43)
A13: PM10 | B13: 4.5 | C13: 4.5 | D13: 4.5 | E13: 6.5 | F13: 6.5 | G13: 6.5 | I13: PM10 | J13: 0.000522 | K13: 0.000181 + 0.00141(-V)e((0.0251)(T + 460) - 20.43) | L13: 0.000586 | M13: 0.000332 + 0.00105(-V)e((0.0251)(T + 460) - 20.43)
A14: PM2.5 | B14: 0.27 | C14: 0.27 | D14: 0.27 | E14: 1.5 | F14: 1.5 | G14: 1.5 | I14: PM2.5
A15: SO2 | B15: 0.0046 | C15: 0.088 | D15: 0.088 | E15: 0.0034 | F15: 0.011 | G15: 0.058 | I15: VOC | J15: 0.003909 | K15: (.94)(0.0172(-V)e((0.0251)(T + 460) - 20.43)) | L15: 0.012187 | M15: (1.00)(0.0504(-V)e((0.0251)(T + 460) - 20.43))
A16: NOx | B16: 0.025 | C16: 0.12 | D16: 0.12 | E16: 0.026 | F16: 0.055 | G16: 0.055 | I16: CO | J16: 0.001349 | K16: 0.00558(-)e((0.0251)(T + 460) - 20.43) | L16: 0.00118 | M16: 0.00488(-V)e((0.0251)(T + 460) -20.43)
A17: VOC | B17: 0.0082 | C17: 0.0082 | D17: 0.036 | E17: 0.032 | F17: 0.032 | G17: 0.032 | I17: GHG | J17: Compound/TOC1 | L17: Compound/TOC1
A18: CO | B18: 0.4 | C18: 0.4 | D18: 0.4 | E18: 0.13 | F18: 0.13 | G18: 0.13 | I18: Methane | J18: 0.065 | L18: 0.0026
A19: Pb | B19: =(0.00000089*0.03)*100 -> 2.67e-06 | C19: =(0.00000089*0.03)*100 -> 2.67e-06 | D19: =(0.00001*0.03)*100 -> 3e-05 | E19: =(0.00000062*0.03)*100 -> 1.86e-06 | F19: 0.00054 | G19: =(0.000015*0.03)*100 -> 4.5e-05
A20: GHG | I20: Non-PAH/Volatile HAPS | J20: Compound/TOC1 | K20: Notes | L20: Compound/TOC1 | M20: Notes
A21: CO2 | B21: 37 | C21: 37 | D21: 37 | E21: 33 | F21: 33 | G21: 33 | I21: Benzene | J21: 0.00052 | L21: 0.00032
A22: CH4 | B22: 0.0074 | C22: 0.0074 | D22: 0.0074 | E22: 0.012 | F22: 0.012 | G22: 0.012 | I22: Bromomethane | J22: 9.6e-05 | L22: 4.9e-05
A23: Non-PAH HAPS | I23: 2-Butanone | J23: 0.00049 | L23: 0.00039
A24: Acetaldehyde | B24: 0.00032 | C24: 0.00032 | D24: 0.00032 | G24: 0.0013 | I24: Carbon Disulfide | J24: 0.00013 | L24: 0.00016
A25: Benzene | B25: 0.00028 | C25: 0.00028 | D25: 0.00028 | E25: 0.00039 | F25: 0.00039 | G25: 0.00039 | I25: Chloroethane | J25: 2.1e-06 | L25: 4e-05
A26: Ethylbenzene | B26: 0.0022 | C26: 0.0022 | D26: 0.0022 | E26: 0.00024 | F26: 0.00024 | G26: 0.00024 | I26: Chloromethane | J26: 0.00015 | L26: 0.00023
A27: Formaldehyde | B27: 0.00074 | C27: 0.00074 | D27: 0.00074 | E27: 0.0031 | F27: 0.0031 | G27: 0.0031 | I27: Cumene | J27: 0.0011 | M27: No Data (ND)
A28: Quinone | B28: 0.00027 | C28: 0.00027 | D28: 0.00027 | G28: 0.00016 | I28: Ethylbenzene | J28: 0.0028 | L28: 0.00038
A29: Toluene | B29: 0.001 | C29: 0.001 | D29: 0.001 | E29: 0.00015 | F29: 0.0029 | G29: 0.0029 | I29: Formaldehyde | J29: 0.00088 | L29: 0.0069
A30: Xylene | B30: 0.0027 | C30: 0.0027 | D30: 0.0027 | E30: 0.0002 | F30: 0.0002 | G30: 0.0002 | I30: n-Hexane | J30: 0.0015 | L30: 0.001
A31: Hexane | E31: 0.00092 | F31: 0.00092 | G31: 0.00092 | I31: Isooctane | J31: 1.8e-05 | L31: 3.1e-06
A32: Isooctane | E32: 4e-05 | F32: 4e-05 | G32: 4e-05 | I32: Methylene Chloride | J32: 0 | L32: 2.7e-06
A33: Methyl chloroform | E33: 4.8e-05 | F33: 4.8e-05 | G33: 4.8e-05 | I33: MTBE | J33: 0 | M33: ND
A34: Acrolein | G34: 2.6e-05 | I34: Styrene | J34: 7.3e-05 | L34: 5.4e-05
A35: Propionaldehyde | G35: 0.00013 | I35: Tetrachloroethene | J35: 7.7e-05 | M35: ND
A36: PAH HAPs | B36: **HAPS emission factors provided as fabric filter controlled. Assumption: volatile HAPS = no control; particulate HAPS = 97% control (from Pb emission factor difference). | I36: Toluene | J36: 0.0021 | L36: 0.00062
A37: 2-Methylnaphthalene | B37: 7.1e-05 | C37: 7.1e-05 | D37: 7.1e-05 | E37: 7.4e-05 | F37: 0.00017 | G37: 0.00017 | I37: 1,1,1-Trichloroethane | J37: 0 | M37: ND
A38: Acenaphthene | B38: 9e-07 | C38: 9e-07 | D38: 9e-07 | E38: 1.4e-06 | F38: 1.4e-06 | G38: 1.4e-06 | I38: Trichloroenthene | J38: 0 | M38: ND
A39: Acenaphthylene | B39: 5.8e-07 | C39: 5.8e-07 | D39: 5.8e-07 | E39: 8.6e-06 | F39: 2.2e-05 | G39: 2.2e-05 | I39: Trichlorofluoromethane | J39: 1.3e-05 | M39: ND
A40: Antharacene | B40: 2.1e-07 | C40: 2.1e-07 | D40: 2.1e-07 | E40: 2.2e-07 | F40: 3.1e-06 | G40: 3.1e-06 | I40: Xylene | J40: =0.41%+0.08% -> 0.0049 | K40: m-/p-Xylene = 0.41%; o-Xylene = 0.08% | L40: =0.2%+0.057% -> 0.00257 | M40: m-/p-Xylene = 0.2%; o-Xylene = 0.057%
A41: Benzo(a)anthracene | B41: 4.6e-09 | C41: 4.6e-09 | D41: 4.6e-09 | E41: 2.1e-07 | F41: 2.1e-07 | G41: 2.1e-07 | I41: PAH HAPs | J41: Compound/Organic PM2 | L41: Compound/Organic PM2
A42: Benzo(a)pyrene | B42: 3.1e-10 | C42: 3.1e-10 | D42: 3.1e-10 | E42: 9.8e-09 | F42: 9.8e-09 | G42: 9.8e-09 | I42: Acenaphthene | J42: 0.0026 | L42: 0.0047
A43: Benzo(b)fluoranthene | B43: 9.4e-09 | C43: 9.4e-09 | D43: 9.4e-09 | E43: 1e-07 | F43: 1e-07 | G43: 1e-07 | I43: Acenaphthylene | J43: 0.00028 | L43: 0.00014
A44: Benzo(g,h,i)perylene | B44: 5e-10 | C44: 5e-10 | D44: 5e-10 | E44: 4e-08 | F44: 4e-08 | G44: 4e-08 | I44: Anthracene | J44: 0.0007 | L44: 0.0013
A45: Benzo(k)fluoranthene | B45: 1.3e-08 | C45: 1.3e-08 | D45: 1.3e-08 | E45: 4.1e-08 | F45: 4.1e-08 | G45: 4.1e-08 | I45: Benzo(a)anthracene | J45: 0.00019 | L45: 0.00056
A46: Chrysene | B46: 3.8e-09 | C46: 3.8e-09 | D46: 3.8e-09 | E46: 1.8e-07 | F46: 1.8e-07 | G46: 1.8e-07 | I46: Benzo(b)fluoranthene | J46: 7.6e-05 | M46: No Data (ND)
A47: Dibenz(a,h)anthracene | B47: 9.5e-11 | C47: 9.5e-11 | D47: 9.5e-11 | I47: Benzo(k)fluoranthene | J47: 2.2e-05 | M47: ND
A48: Fluoranthene | B48: 1.6e-07 | C48: 1.6e-07 | D48: 2.4e-05 | E48: 6.1e-07 | F48: 6.1e-07 | G48: 6.1e-07 | I48: Benzo(g,h,i)perylene | J48: 1.9e-05 | M48: ND
A49: Fluorene | B49: 1.6e-06 | C49: 1.6e-06 | D49: 1.6e-06 | E49: 3.8e-06 | F49: 1.1e-05 | G49: 1.1e-05 | I49: Benzo(a)pyrene | J49: 2.3e-05 | M49: ND
A50: Indeno(1,2,3-cd)pyrene | B50: 3e-10 | C50: 3e-10 | D50: 3e-10 | E50: 7e-09 | F50: 7e-09 | G50: 7e-09 | I50: Benzo(e)pyrene | J50: 7.8e-05 | L50: 9.5e-05
A51: Naphthalene | B51: 3.6e-05 | C51: 3.6e-05 | D51: 3.6e-05 | E51: 9e-05 | F51: 0.00065 | G51: 0.00065 | I51: Chrysene | J51: 0.00103 | L51: 0.0021
A52: Phenanthrene | B52: 2.6e-06 | C52: 2.6e-06 | D52: 3.7e-05 | E52: 7.6e-06 | F52: 2.3e-05 | G52: 2.3e-05 | I52: Dibenz(a,h)anthracene | J52: 3.7e-06 | M52: ND
A53: Pyrene | B53: 6.2e-08 | C53: 6.2e-08 | D53: 5.5e-05 | E53: 5.4e-07 | F53: 3e-06 | G53: 3e-06 | I53: Fluoranthene | J53: 0.0005 | L53: 0.0015
A54: Benzo(e)pyrene | E54: 1.1e-07 | F54: 1.1e-07 | G54: 1.1e-07 | I54: Fluorene | J54: 0.0077 | L54: 0.0101
A55: Perylene | E55: 8.8e-09 | F55: 8.8e-09 | G55: 8.8e-09 | I55: Indeno(1,2,3-cd)pyrene | J55: 4.7e-06 | M55: ND
A56: Metal HAPs | B56: **HAPS emission factors provided as fabric filter controlled. Assumption: volatile HAPS = no control; particulate HAPS = 97% control (from Pb emission factor difference). | I56: 2-Methylnaphthalene | J56: 0.0238 | L56: 0.0527
A57: Antimony | E57: 1.8e-07 | F57: 1.8e-07 | G57: 1.8e-07 | I57: Naphthalene | J57: 0.0125 | L57: 0.0182
A58: Arsenic | B58: =(0.00000046*0.03)*100 -> 1.38e-06 | C58: =B58 -> 1.38e-06 | D58: =B58 -> 1.38e-06 | E58: =(0.00000056*0.03)*100 -> 1.68e-06 | F58: =E58 -> 1.68e-06 | G58: =E58 -> 1.68e-06 | I58: Perylene | J58: 0.00022 | L58: 0.0003
A59: Beryllium | B59: =(0.00000015*0.03)*100 -> 4.5e-07 | C59: =B59 -> 4.5e-07 | D59: =B59 -> 4.5e-07 | I59: Phenanthrene | J59: 0.0081 | L59: 0.018
A60: Cadmium | B60: =(0.00000061*0.03)*100 -> 1.83e-06 | C60: =B60 -> 1.83e-06 | D60: =B60 -> 1.83e-06 | E60: =(0.00000041*0.03)*100 -> 1.23e-06 | F60: =E60 -> 1.23e-06 | G60: =E60 -> 1.23e-06 | I60: Pyrene | J60: 0.0015 | L60: 0.0044
A61: Chromium | B61: =(0.00000057*0.03)*100 -> 1.71e-06 | C61: =B61 -> 1.71e-06 | D61: =B61 -> 1.71e-06 | E61: =(0.0000055*0.03)*100 -> 1.65e-05 | F61: 1.65e-05 | G61: 1.65e-05 | I61: 1 Emission factor for compound is determined by multiplying the percentage presented for the compound by the emission factor for total organic compounds (TOC).
A62: Chromium (VI) | B62: =(0.000000048*0.03)*100 -> 1.44e-07 | C62: =B62 -> 1.44e-07 | D62: =B62 -> 1.44e-07 | E62: =(0.00000045*0.03)*100 -> 1.35e-06 | F62: 1.35e-06 | G62: 1.35e-06 | I62: 2 Emission factor for compound is determined by multiplying the percentage presented for the compound by the emission factor for extractable organic particulate (organic PM).
A63: Cobalt | E63: =(0.000000026*0.03)*100 -> 7.8e-08 | F63: 7.8e-08 | G63: 7.8e-08
A64: Manganese | B64: =(0.0000069*0.03)*100 -> 2.07e-05 | C64: =B64 -> 2.07e-05 | D64: =B64 -> 2.07e-05 | E64: =(0.0000077*0.03)*100 -> 2.31e-05 | F64: 2.31e-05 | G64: 2.31e-05
A65: Mercury | B65: =(0.00000041*0.03)*100 -> 1.23e-06 | C65: =B65 -> 1.23e-06 | D65: =B65 -> 1.23e-06 | E65: =(0.00000024*0.03)*100 -> 7.2e-07 | F65: 7.2e-07 | G65: 7.2e-07
A66: Nickel | B66: =(0.000003*0.03)*100 -> 9e-06 | C66: =B66 -> 9e-06 | D66: =B66 -> 9e-06 | E66: =(0.000063*0.03)*100 -> 0.000189 | F66: 0.000189 | G66: 0.000189
A67: Selenium | B67: =(0.00000049*0.03)*100 -> 1.47e-06 | C67: =B67 -> 1.47e-06 | D67: =B67 -> 1.47e-06 | E67: =(0.00000035*0.03)*100 -> 1.05e-06 | F67: 1.05e-06 | G67: 1.05e-06
A68: Dioxins | B68: none listed in AP42 | C68: none listed in AP42 | D68: none listed in AP42 | E68: none listed in AP42
A69: Total TCCD | F69: 9.3e-13 | G69: 9.3e-13
A70: Total PeCDD | F70: 2.2e-11 | G70: 2.2e-11
A71: Total HxCDD | F71: 1.2e-11 | G71: 1.2e-11
A72: Total HpCDD | F72: 1.9e-11 | G72: 1.9e-11
A73: Total PCDD | F73: 2.8e-09 | G73: 2.8e-09
A74: Furans | B74: none listed in AP42 | C74: none listed in AP42 | D74: none listed in AP42 | E74: none listed in AP42
A75: Total TCDF | F75: 3.7e-12 | G75: 3.7e-12
A76: Total PeCDF | F76: 8.4e-11 | G76: 8.4e-11
A77: Total HxCDF | F77: 1.3e-11 | G77: 1.3e-11
A78: Total HpCDF | F78: 1e-11 | G78: 1e-11
A79: Total PCDF | F79: 1.5e-10 | G79: 1.5e-10
A82: Particulate Control | B82: PM (%) | C82: PM10 (%) | D82: Control descriptions
A83: Fabric filter - total enclosure | B83: 0.99 | C83: 0.93 | D83: Fabric filter is a control device in which the incoming gas stream passes through a porous fabric filter forming a dust cake
A84: Fabric filter - certified hood | B84: 0.79 | C84: 0.74
A85: Fabric filter - uncertified hood | B85: 0.59 | C85: 0.56 | D85: Venturi scrubber is a control device in which the incoming gas stream passes through a venturi into which a low pressure liquid is introduced
A86: Venturi scrubber - total enclosure | B86: 0.94 | C86: 0.84
A87: Venturi scrubber - certified hood | B87: 0.76 | C87: 0.68 | D87: Total enclosure means an enclosure that completely surrounds emissions from an emissions unit such that all emissions are captured and discharged through ductwork to control equipment.
A88: Venturi scrubber - uncertified hood | B88: 0.57 | C88: 0.51
D89: Certified hood conforms to the design and operating practices recommended in "Industrial Ventilation - A Manual of Recommended Practice, American Conference of Governmental Industrial Hygienists." This document is subject to frequent change.
D92: Hood is a shaped inlet to a pollution control system that does not totally surround emissions from an emissions unit, that is designed, used, and maintained to capture and discharge the air emissions through ductwork to control equipment,

Sheet Engine Emission Factors
A1: Engine emission factors | H1: =Instructions!$O$3 -> p-sbap5-20 • 4/8/19
B2: RECIPROCATING ENGINES (<600HP) DIESEL (lb/MMBtu) | C2: RECIPROCATING ENGINES (>=600HP) DIESEL (lb/MMBtu)1 | D2: TURBINE ENGINES (electrical generation) NATURAL GAS (lb/MMBtu)1 | E2: RECIPROCATING GASOLINE (lb/MMBtu)2 | F2: RECIPROCATING Natural Gas 4-Stroke Rich-Burn (lb/MMBtu) | G2: RECIPROCATING Natural Gas 4-Stroke Lean-Burn (lb/MMBtu) | H2: RECIPROCATING Natural Gas 2-Stroke Lean-Burn (lb/MMBtu)
A3: source | B3: AP42 Chpt 3.3 (10/96) | C3: AP42 Chpt 3.4 (10/96) | D3: AP42 Chpt 3.1 (4/00) | E3: AP42 Chpt 3.3 (10/96) | F3: AP42 Chpt 3.2-3 (7/00) | G3: AP42 Chpt 3.2-2 (7/00) | H3: AP42 Chpt 3.2-2 (7/00)
A4: PM | B4: 0.31 | C4: 0.1 | D4: 0.0066 | E4: 0.1 | F4: =0.0095+0.00991 -> 0.01941 | G4: =0.0000771+0.00991 -> 0.0099871 | H4: =0.0384+0.00991 -> 0.04831
A5: PM10 | B5: 0.31 | C5: =0.0496+0.0077 -> 0.0573 | D5: =0.0019+0.0047 -> 0.0066 | E5: 0.1 | F5: =0.0095+0.00991 -> 0.01941 | G5: =G4 -> 0.0099871 | H5: =H4 -> 0.04831
A6: PM2.5 | B6: 0.31 | C6: =0.0479+0.0077 -> 0.0556 | D6: =D5 -> 0.0066 | E6: 0.1 | F6: =F5 -> 0.01941 | G6: =G4 -> 0.0099871 | H6: =H5 -> 0.04831
A7: SOx | B7: 0.29 | C7: 1.01 | D7: 0.94 | E7: 0.084 | F7: 0.000588 | G7: 0.000588 | H7: 0.000588
A8: NOx | B8: 4.41 | C8: 3.2 | D8: 0.32 | E8: 1.63 | F8: 2.21 | G8: 4.08 | H8: 3.17
A9: VOC | B9: =0.35+0+0.01+0 -> 0.36 | C9: 0.09 | D9: 0.0021 | E9: =2.1+0.09+0.69+0.15 -> 3.03 | F9: 0.0296 | G9: 0.118 | H9: 0.12
A10: CO | B10: 0.95 | C10: 0.85 | D10: 0.082 | E10: 0.99 | F10: 3.72 | G10: 0.317 | H10: 0.386
A11: 40 CFR 98, subp. C, Table C-1 and C-2
A12: CO2 | B12: =B47 -> 163.0540221 | C12: =B47 -> 163.0540221 | D12: =B46 -> 116.9773717 | E12: =B48 -> 154.8087268 | F12: =B46 -> 116.9773717 | G12: =B46 -> 116.9773717 | H12: =G12 -> 116.9773717
A13: CH4 | B13: =C47 -> 0.006613873261 | C13: =C47 -> 0.006613873261 | D13: =C46 -> 0.00220462442 | E13: =C48 -> 0.006613873261 | F13: =C46 -> 0.00220462442 | G13: =C46 -> 0.00220462442 | H13: =G13 -> 0.00220462442
A14: N2O | B14: =D47 -> 0.001322774652 | C14: =D47 -> 0.001322774652 | D14: =D46 -> 0.000220462442 | E14: =D48 -> 0.001322774652 | F14: =D46 -> 0.000220462442 | G14: =D46 -> 0.000220462442 | H14: 0.000220462442
A15: source (same as criteria) | E15: HAPs from Diesel<600HP
A16: 1,1,2,2-tetrachloroethane | F16: 2.53e-05 | G16: 4e-05 | H16: 6.63e-05
A17: 1,1,2-trichloroethane | F17: 1.53e-05 | G17: 3.18e-05 | H17: 5.27e-05
A18: 1,3-butadiene | B18: 3.91e-05 | D18: 4.3e-07 | E18: 3.91e-05 | F18: 0.000663 | G18: 0.000267 | H18: 0.00082
A19: 1,3-dichloropropene | F19: 1.27e-05 | G19: 2.64e-05 | H19: 4.38e-05
A20: Acetaldehyde | B20: 0.000767 | C20: 2.52e-05 | D20: 4e-05 | E20: =B20 -> 0.000767 | F20: 0.00279 | G20: 0.00836 | H20: 0.00776
A21: Acrolein | B21: 9.25e-05 | C21: 7.88e-06 | D21: 6.4e-06 | E21: =B21 -> 9.25e-05 | F21: 0.00263 | G21: 0.00514 | H21: 0.00778
A22: Benzene | B22: 0.000933 | C22: 0.000776 | D22: 1.2e-05 | E22: =B22 -> 0.000933 | F22: 0.00158 | G22: 0.00044 | H22: 0.00194
A23: Biphenyl | G23: 0.000212 | H23: 3.95e-06
A24: Carbon tetrachloride | F24: 1.77e-05 | G24: 3.67e-05 | H24: 6.07e-05
A25: Chlorobenzene | F25: 1.29e-05 | G25: 3.04e-05 | H25: 4.44e-05
A26: Chloroform | F26: 1.37e-05 | G26: 2.85e-05 | H26: 4.71e-05
A27: Ethylbenzene | D27: 3.2e-05 | F27: 2.48e-05 | G27: 3.97e-05 | H27: 0.000108
A28: Ethylene dibromide | F28: 2.13e-05 | G28: 4.43e-05 | H28: 7.34e-05
A29: Formaldehyde | B29: 0.00118 | C29: 7.89e-05 | D29: 0.00071 | E29: =B29 -> 0.00118 | F29: 0.0205 | G29: 0.0528 | H29: 0.0552
A30: Hexane | G30: 0.00111 | H30: 0.000445
A31: Methanol | F31: 0.00306 | G31: 0.0025 | H31: 0.00248
A32: Methylene chloride | F32: 4.12e-05 | G32: 2e-05 | H32: 0.000147
A33: Naphthalene | B33: 8.48e-05 | C33: 0.00013 | D33: 1.3e-06 | E33: =B33 -> 8.48e-05 | F33: 9.71e-05 | G33: 7.44e-05 | H33: 9.63e-05
A34: PAH | B34: 0.000168 | C34: 0.000212 | D34: 2.2e-06 | E34: 0.000168 | F34: 0.000141 | G34: 2.69e-05 | H34: 0.000134
A35: Phenol | G35: 2.4e-05 | H35: 4.21e-05
A36: Styrene | F36: 1.19e-05 | G36: 2.36e-05 | H36: 5.48e-05
A37: Tetrachloroethane | G37: 2.48e-06
A38: Toluene | B38: 0.000409 | C38: 0.000281 | D38: 0.00013 | E38: =B38 -> 0.000409 | F38: 0.000558 | G38: 0.000408 | H38: 0.000963
A39: Vinyl chloride | F39: 7.18e-06 | G39: 1.49e-05 | H39: 2.47e-05
A40: Xylene | B40: 0.000285 | C40: 0.000193 | D40: 6.4e-05 | E40: =B40 -> 0.000285 | F40: 0.000195 | G40: 0.000184 | H40: 0.000268
A41: 1 | B41: SOx emission factor given is multiplied by the sulfur content in the fuel (in percent) in the Engine (n) tabs.
A42: 2 | B42: All particulate is assumed to be less than or equal to 1 micrometer in size.
A45: Fuel | B45: CO2 Emission Factor3 (lbs/million BTU) | C45: CH4 Emission Factor3 (lbs/million BTU) | D45: N2O Emission Factor3 (lbs/million BTU) | E45: Source for Emission Factors | F45: Brake-specific fuel consumption (btu/hp*hr)4 | G45: Heat value (Btu/scf) | H45: Heat Value 5 (Btu/gal)
A46: NATURAL GAS | B46: =53.06/0.453592 -> 116.9773717 | C46: =0.001/0.453592 -> 0.00220462442 | D46: =0.0001/0.453592 -> 0.000220462442 | E46: 40 CFR 98, subp. C, Table C-1 | G46: 1020
A47: DISTILLATE OIL 2 | B47: =73.96/0.453592 -> 163.0540221 | C47: =0.003/0.453592 -> 0.006613873261 | D47: =0.0006/0.453592 -> 0.001322774652 | E47: 40 CFR 98, subp. C, Table C-1 | F47: 7000 | H47: =0.138*1000000 -> 138000
A48: GASOLINE | B48: =70.22/0.453592 -> 154.8087268 | C48: =C47 -> 0.006613873261 | D48: =D47 -> 0.001322774652 | E48: 40 CFR 98, subp. C, Table C-1 | F48: 7000 | H48: 125000
A49: 3 | B49: (1 lb = 0.453592 kg)
A50: 4 | B50: An average brake-specific fuel consumption of 7,000 Btu/hp-hr was assumed to convert from lb/MMBtu to lb/hp-hr (see AP42 Chpt 3.3).
B51: 7000 btu/hp*hr x GHG EF (lb/E6BTU)= lb GHG/hp*hr
A52: 5 | B52: Source: 40 CFR 98, Subp. C, Table C-1 and C-2

Sheet Data Validation (hidden)
A1: p-sbap5-20
A2: Data Validation - Hot Mix Asphalt
A4: General | B4: Hot Mix Asphalt | D4: Generator
A5: Options | B5: Plant type | D5: Engine and fuel type
A6: Choose one | B6: Choose one | D6: Choose one
A7: Yes | B7: Batch plant with rotary dryer | D7: Reciprocating - diesel
A8: No | B8: Drum mix plant | D8: Reciprocating - gasoline
D9: Turbine - natural gas
A10: Options 2 | D10: Recip - nat gas 4-stroke rich burn
A11: Choose Y/N | B11: Fuel Type | D11: Recip - nat gas 4-stroke lean burn
A12: Yes | B12: Choose one | D12: Recip - nat gas 2-stroke lean burn
A13: No | B13: Natural gas
B14: Diesel (No. 2 fuel oil) | D14: Engine use
B15: Waste/Drain Oil (No. 6 fuel oil) | D15: Choose one
D16: Routine
D17: Emergency
A18: Equation/reference | B18: Additional Fuels
A19: NSPS applies | B19: Choose which one | C19: Choose as Fuel Type | D19: Input Value
A20: =SUM(A21:A24) -> 0 | B20: Methane | C20: Natural gas | D20: Choose one
A21: =COUNTIF('Federal standards'!N16,"Yes") -> 0 | B21: Butane | C21: Natural gas | D21: Horsepower(HP) or Brake Power (HP-hr)
A22: =COUNTIF('Federal standards'!N32,"Yes") -> 0 | B22: Propane | C22: Natural gas | D22: Standard cubic feet/hr (scf/hr)
A23: =COUNTIF('Federal standards'!N42,"Yes") -> 0 | B23: No. 1 fuel oil | C23: Diesel (No. 2 fuel oil)
B24: No. 3 fuel oil | C24: Waste/Drain Oil (No. 6 fuel oil) | D24: Fuel Conversion
B25: No. 4 fuel oil | C25: Waste/Drain Oil (No. 6 fuel oil) | D25: Brake specific fuel consumption
B26: No. 5 fuel oil | C26: Waste/Drain Oil (No. 6 fuel oil) | D26: Heat value of fuel
A27: NSPS no selection | B27: Gasoline | C27: Diesel (No. 2 fuel oil)
A28: =SUM(A29:A32) -> 3 | B28: Kerosene | C28: Diesel (No. 2 fuel oil) | D28: Actual emissions entry
A29: =IF('Federal standards'!N16="Choose Y/N",1,0) -> 1 | B29: Jet fuel | C29: Diesel (No. 2 fuel oil) | D29: hours per year (hr/yr)
A30: =IF('Federal standards'!N32="Choose Y/N",1,0) -> 1 | D30: million Btu per year (MMBtu/yr)
A31: =IF('Federal standards'!$N$42="Choose Y/N",1,0) -> 1 | D31: gallons per year (gal/yr)
B32: If no performance test | C32: Then,
B33: Choose one | C33: PM = | D33: Choose one to calculate actual emissions
B34: No control | C34: =IF(OR('Hot mix asphalt'!G19='Data Validation'!B33,'Hot mix asphalt'!G19='Data Validation'!B34),0,IF('Hot mix asphalt'!G19='Data Validation'!B35,'Hot mix emission factors'!B83,IF('Hot mix asphalt'!G19='Data Validation'!B36,'Hot mix emission factors'!B84,IF('Hot mix asphalt'!G19='Data Validation'!B37,'Hot mix emission factors'!B86,IF('Hot mix asphalt'!G19='Data Validation'!B38,'Hot mix emission factors'!B87,IF('Hot mix asphalt'!G19='Data Validation'!B39,'Hot mix emission factors'!B88,IF('Hot mix asphalt'!G19='Data Validation'!B40,'Hot mix emission factors'!B89))))))) -> 0 | D34: Number of hours operated per 12 months
A35: Potential emissions | B35: Fabric filter - total enclosure | D35: Quantity of fuel actually burned per 12 months
A36: =IF((OR('Potential emissions'!J7>=100,OR('Potential emissions'!J8>=25,OR('Potential emissions'!J9>=100,OR('Potential emissions'!J10>=50,OR('Potential emissions'!J11>=100,OR('Potential emissions'!J12>=100,OR('Potential emissions'!J13>=100,OR('Potential emissions'!J14>=0.5,OR('Potential emissions'!J19>=100000,OR('Potential emissions'!J104>=10,'Potential emissions'!J105>=25))))))))))),"yes","no") -> no | B36: Fabric filter - certified hood | C36: PM10 =
B37: Fabric filter - uncertified hood | C37: =IF(OR('Hot mix asphalt'!G19='Data Validation'!B33,'Hot mix asphalt'!G19='Data Validation'!B34),0,IF('Hot mix asphalt'!G19='Data Validation'!B35,'Hot mix emission factors'!C83,IF('Hot mix asphalt'!G19='Data Validation'!B36,'Hot mix emission factors'!C84,IF('Hot mix asphalt'!G19='Data Validation'!B37,'Hot mix emission factors'!C86,IF('Hot mix asphalt'!G19='Data Validation'!B38,'Hot mix emission factors'!C87,IF('Hot mix asphalt'!G19='Data Validation'!B39,'Hot mix emission factors'!C88,IF('Hot mix asphalt'!G19='Data Validation'!B40,'Hot mix emission factors'!C89))))))) -> 0
A38: Actual Emissions | B38: Venturi scrubber - total enclosure | D38: Auxillary heat
A39: =IF((OR('Actual emissions'!J7>=50,OR('Actual emissions'!J8>=50,OR('Actual emissions'!J9>=50,OR('Actual emissions'!J10>=50,OR('Actual emissions'!J11>=50,OR('Actual emissions'!J12>=50,OR('Actual emissions'!J13>=50,OR('Actual emissions'!J14>=0.5,OR('Actual emissions'!J19>=50000,OR('Actual emissions'!J67>=5,'Actual emissions'!J68>=12.5))))))))))),"yes","no") -> no | B39: Venturi scrubber - certified hood | D39: Natural Gas
B40: Venturi scrubber - uncertified hood | D40: Choose one
D41: hours were the units actually operated?
D42: cubic feet of gas were actually burned?
D45: Propane
D46: Choose one
D47: hours were the units actually operated?
D48: gallons of propane were actually burned?
